Service Delivery Area(T),Service Delivery Team(T),ExpenditureGroup(T),Account(T),Supplier Name(T),Trans Date,Amount
Adult Social Care,ASC Prevention & Enablement,Transport-Related Expenditure,Taxi Costs,Cartello Ambulance,14/02/2024,165.00
Adult Social Care,ASC Prevention & Enablement,Transport-Related Expenditure,Taxi Costs,Cartello Ambulance,14/02/2024,165.00
Adult Social Care,ASC Prevention & Enablement,Transport-Related Expenditure,Taxi Costs,Cartello Ambulance,14/02/2024,165.00
Adult Social Care,ASC Prevention & Enablement,Transport-Related Expenditure,Taxi Costs,Cartello Ambulance,14/02/2024,192.50
Adult Social Care,ASC Prevention & Enablement,Transport-Related Expenditure,Taxi Costs,Cartello Ambulance,14/02/2024,220.00
Adult Social Care,ASC Prevention & Enablement,Transport-Related Expenditure,Taxi Costs,Cartello Ambulance,14/02/2024,214.00
Adult Social Care,ASC Prevention & Enablement,Transport-Related Expenditure,Taxi Costs,Cartello Ambulance,14/02/2024,220.00
Adult Social Care,ASC Prevention & Enablement,Third Party Payments,Nursing Expenditure,NHS Shropshire Telford & Wrekin ICB QOC Receivables ,14/02/2024,"7,440.00"
Adult Social Care,ASC Prevention & Enablement,Premises-Related Expenditure,Hire Of Rooms,MEETING POINT TRUST LTD,14/02/2024,115.00
Adult Social Care,ASC Prevention & Enablement,Premises-Related Expenditure,Hire Of Rooms,MEETING POINT TRUST LTD,14/02/2024,129.17
Adult Social Care,ASC Prevention & Enablement,Premises-Related Expenditure,Contract Cleaning,Vortex Cleaning Ltd,14/02/2024,"1,675.00"
Adult Social Care,ASC Prevention & Enablement,Supplies & Services,Translation Services,VISS Sign Language Interpreting Service,14/02/2024,120.00
Adult Social Care,ASC Prevention & Enablement,Employees,Employee Costs Recharged,SHROPSHIRE COMMUNITY HEALTH NHS TRUST,21/02/2024,"19,662.00"
Adult Social Care,ASC Prevention & Enablement,Premises-Related Expenditure,Contract Cleaning,Vortex Cleaning Ltd,21/02/2024,"2,425.00"
Adult Social Care,ASC Prevention & Enablement,Premises-Related Expenditure,Contract Cleaning,Vortex Cleaning Ltd,21/02/2024,"1,825.00"
Adult Social Care,ASC Prevention & Enablement,Supplies & Services,Equipment - Purchase,Lawley Pharmacy,21/02/2024,320.00
Adult Social Care,ASC Prevention & Enablement,Employees,Employee Costs Recharged,SHROPSHIRE COMMUNITY HEALTH NHS TRUST,21/02/2024,"19,662.00"
Adult Social Care,"Assurance, Transformation & Financial Management",Supplies & Services,Application Software Maint,CACI LTD,05/02/2024,"2,202.43"
Adult Social Care,"Assurance, Transformation & Financial Management",Supplies & Services,Systems Procurement,Prepaid Financial Services Limited,16/02/2024,550.80
Adult Social Care,"Assurance, Transformation & Financial Management",Supplies & Services,Systems Procurement,Prepaid Financial Services Limited,16/02/2024,373.83
Adult Social Care,"Commissioning, Procurement & Brokerage",Supplies & Services,Other Grants (Expenses),Helping Hands Domiciliary Care Services,13/02/2024,"15,700.20"
Adult Social Care,"Commissioning, Procurement & Brokerage",Supplies & Services,Other Grants (Expenses),GreatPride Care Limited,13/02/2024,"1,320.00"
Adult Social Care,"Commissioning, Procurement & Brokerage",Supplies & Services,Other Grants (Expenses),OSWESTRY CARE LIMITED,21/02/2024,"9,033.60"
Adult Social Care,"Commissioning, Procurement & Brokerage",Third Party Payments,Interpreters Fees,WORD 360 T/AEXPRESS INTERPRETING & TRANSLATION,23/02/2024,"4,548.16"
Adult Social Care,"Commissioning, Procurement & Brokerage",Supplies & Services,Other Grants (Expenses),TACT,06/02/2024,"10,450.00"
Adult Social Care,"Commissioning, Procurement & Brokerage",Supplies & Services,Other Grants (Expenses),TELFORD MIND,21/02/2024,"1,200.00"
Adult Social Care,"Commissioning, Procurement & Brokerage",Employees,Hospitality,PARK LANE CENTRE,06/02/2024,144.00
Adult Social Care,"Commissioning, Procurement & Brokerage",Premises-Related Expenditure,Hire Of Rooms,PARK LANE CENTRE,06/02/2024,125.00
Adult Social Care,"Commissioning, Procurement & Brokerage",Supplies & Services,Other Grants (Expenses),PARTNERS IN CARE,23/02/2024,"5,000.00"
Adult Social Care,Community Social Work & Adult Safeguarding,Premises-Related Expenditure,Hire Of Rooms,MEETING POINT TRUST LTD,16/02/2024,112.50
Adult Social Care,Community Social Work (Principal Social Worker),Transport-Related Expenditure,Taxi Costs,Ezy Car Ltd,09/02/2024,266.70
Adult Social Care,Community Social Work (Principal Social Worker),Third Party Payments,Other Care Purchasing,Inclusive Media Solutions Limited,26/02/2024,"6,625.09"
Adult Social Care,Community Social Work (Principal Social Worker),Premises-Related Expenditure,Gas,TOTAL GAS & POWER LIMITED,09/02/2024,338.19
Adult Social Care,Community Social Work (Principal Social Worker),Supplies & Services,Other Grants (Expenses),NHS Shropshire Telford & Wrekin ICB QOC Receivables ,26/02/2024,"2,736.00"
Adult Social Care,Community Social Work (Principal Social Worker),Transport-Related Expenditure,Transport,More Than Care Telford,09/02/2024,"4,512.38"
Adult Social Care,Community Social Work (Principal Social Worker),Supplies & Services,Medical Consultants Fees,St Teresa Ltd ,09/02/2024,"1,381.99"
Adult Social Care,Community Social Work (Principal Social Worker),Supplies & Services,Medical Consultants Fees,Social Care Assist Ltd,09/02/2024,476.00
Adult Social Care,Community Social Work (Principal Social Worker),Supplies & Services,Medical Consultants Fees,Social Care Assist Ltd,09/02/2024,308.00
Adult Social Care,My Options,Employees,Staff Training,SHROPSHIRE COUNCIL ,20/02/2024,283.50
Adult Social Care,My Options,Premises-Related Expenditure,Clean Mats & Toilet Requisites,CARESHOP,22/02/2024,247.44
Adult Social Care,My Options,Premises-Related Expenditure,Clean Mats & Toilet Requisites,BROSCH DIRECT LTD,13/02/2024,226.36
Adult Social Care,My Options,Premises-Related Expenditure,Hire Of Rooms,All Saints Wellington,15/02/2024,257.99
Adult Social Care,My Options,Premises-Related Expenditure,Hire Of Rooms,Dawley Baptist Church,13/02/2024,230.00
Adult Social Care,My Options,Premises-Related Expenditure,Hire Of Rooms,Dawley Baptist Church,13/02/2024,285.00
Adult Social Care,My Options,Premises-Related Expenditure,Hire Of Rooms,Dawley Baptist Church,13/02/2024,230.00
Adult Social Care,My Options,Premises-Related Expenditure,Hire Of Rooms,Dawley Baptist Church,13/02/2024,175.00
Adult Social Care,My Options,Employees,Agency Supply Costs,Safehands Recruitment,07/02/2024,"5,158.45"
Adult Social Care,My Options,Employees,Agency Supply Costs,Safehands Recruitment,08/02/2024,"3,010.98"
Adult Social Care,My Options,Employees,Agency Supply Costs,Safehands Recruitment,15/02/2024,"4,568.30"
Adult Social Care,My Options,Supplies & Services,Equipment - Hire,CARTWRIGHTS WASTE DISPOSAL SERV LTD,14/02/2024,215.25
Adult Social Care,My Options,Premises-Related Expenditure,Clean Mats & Toilet Requisites,BERWICK CARE EQUIPMENT LTD,15/02/2024,323.30
Adult Social Care,My Options,Employees,Agency Supply Costs,Safehands Recruitment,22/02/2024,"6,738.12"
Adult Social Care,My Options,Premises-Related Expenditure,Clean Mats & Toilet Requisites,BERWICK CARE EQUIPMENT LTD,28/02/2024,341.60
Adult Social Care,My Options,Supplies & Services,Respite Care,Redacted Personal Information,06/02/2024,"1,030.40"
Adult Social Care,My Options,Employees,Agency Supply Costs,Safehands Recruitment,22/02/2024,"4,989.60"
Adult Social Care,My Options,Employees,Agency Supply Costs,Safehands Recruitment,22/02/2024,"1,625.65"
Adult Social Care,My Options,Employees,Agency Supply Costs,Safehands Recruitment,07/02/2024,401.93
Adult Social Care,My Options,Employees,Agency Supply Costs,Safehands Recruitment,07/02/2024,"4,346.22"
Adult Social Care,My Options,Supplies & Services,Respite Care,Redacted Personal Information,06/02/2024,683.76
Adult Social Care,My Options,Supplies & Services,Respite Care,Redacted Personal Information,06/02/2024,"1,159.48"
Adult Social Care,My Options,Supplies & Services,Respite Care,Redacted Personal Information,06/02/2024,856.80
Adult Social Care,My Options,Employees,Agency Supply Costs,Safehands Recruitment,08/02/2024,"5,775.83"
Adult Social Care,My Options,Employees,Agency Supply Costs,Safehands Recruitment,08/02/2024,409.48
Adult Social Care,My Options,Employees,Agency Supply Costs,Safehands Recruitment,15/02/2024,863.75
Adult Social Care,My Options,Employees,Agency Supply Costs,Safehands Recruitment,15/02/2024,"3,778.74"
Adult Social Care,Prevention & Independence - Older Adults & Disability,Premises-Related Expenditure,Hire Of Rooms,The Leegate Centre CIC,02/02/2024,120.00
Adult Social Care,Prevention & Independence - Older Adults & Disability,Supplies & Services,Other Services,VISS Sign Language Interpreting Service,08/02/2024,120.00
Adult Social Care,Prevention & Independence - Older Adults & Disability,Supplies & Services,Aids & Appliances,Connected Care Solutions (Ethel Care),19/02/2024,730.00
Adult Social Care,Prevention & Independence - Older Adults & Disability,Supplies & Services,Aids & Appliances,Easylink,19/02/2024,168.30
Adult Social Care,Prevention & Independence - Older Adults & Disability,Supplies & Services,Equipment - Repair,STANNAH LIFT SERVICES LTD,02/02/2024,547.75
Adult Social Care,Prevention & Independence - Older Adults & Disability,Supplies & Services,Equipment - Repair,STANNAH LIFT SERVICES LTD,02/02/2024,"4,945.50"
Adult Social Care,Prevention & Independence - Older Adults & Disability,Supplies & Services,Aids & Appliances,Possum Ltd,08/02/2024,228.00
Adult Social Care,Prevention & Independence - Older Adults & Disability,Supplies & Services,Aids & Appliances,Possum Ltd,08/02/2024,281.00
Adult Social Care,Prevention & Independence - Older Adults & Disability,Supplies & Services,Aids & Appliances,Canary Care Global Limited,08/02/2024,120.00
Adult Social Care,Prevention & Independence - Older Adults & Disability,Supplies & Services,Equipment - Repair,Closomat Limited,09/02/2024,205.00
Adult Social Care,Prevention & Independence - Older Adults & Disability,Supplies & Services,Aids & Appliances,Legrand Care,09/02/2024,"2,186.26"
Adult Social Care,Prevention & Independence - Older Adults & Disability,Supplies & Services,Aids & Appliances,Ravencourt Ltd,14/02/2024,"2,838.50"
Adult Social Care,Prevention & Independence - Older Adults & Disability,Supplies & Services,Aids & Appliances,SARABEC LIMITED,29/02/2024,643.99
Adult Social Care,Prevention & Independence - Older Adults & Disability,Supplies & Services,Aids & Appliances,SW RETAIL LTD T/A IC,29/02/2024,109.50
Adult Social Care,Prevention & Independence - Older Adults & Disability,Supplies & Services,Aids & Appliances,THE WREKIN HOUSING TRUST ,29/02/2024,124.55
Adult Social Care,Prevention & Independence - Older Adults & Disability,Supplies & Services,Aids & Appliances,THE WREKIN HOUSING TRUST ,29/02/2024,423.68
Adult Social Care,Prevention & Independence - Older Adults & Disability,Supplies & Services,Aids & Appliances,THE WREKIN HOUSING TRUST ,29/02/2024,505.65
Adult Social Care,Prevention & Independence - Older Adults & Disability,Supplies & Services,Aids & Appliances,THE WREKIN HOUSING TRUST ,29/02/2024,469.45
Adult Social Care,Prevention & Independence - Older Adults & Disability,Supplies & Services,Aids & Appliances,THE WREKIN HOUSING TRUST ,29/02/2024,422.16
Adult Social Care,Prevention & Independence - Older Adults & Disability,Supplies & Services,Aids & Appliances,THE WREKIN HOUSING TRUST ,29/02/2024,473.00
Adult Social Care,Prevention & Independence - Older Adults & Disability,Supplies & Services,Aids & Appliances,THE WREKIN HOUSING TRUST ,29/02/2024,547.47
Adult Social Care,Prevention & Independence - Older Adults & Disability,Supplies & Services,Aids & Appliances,THE WREKIN HOUSING TRUST ,29/02/2024,310.80
Adult Social Care,Prevention & Independence - Older Adults & Disability,Supplies & Services,Aids & Appliances,THE WREKIN HOUSING TRUST ,29/02/2024,125.00
Adult Social Care,Prevention & Independence - Older Adults & Disability,Supplies & Services,Aids & Appliances,THE WREKIN HOUSING TRUST ,29/02/2024,495.00
Adult Social Care,Prevention & Independence - Older Adults & Disability,Supplies & Services,Aids & Appliances,THE WREKIN HOUSING TRUST ,29/02/2024,348.39
Adult Social Care,Prevention & Independence - Older Adults & Disability,Supplies & Services,Aids & Appliances,THE WREKIN HOUSING TRUST ,29/02/2024,370.00
Adult Social Care,Prevention & Independence - Older Adults & Disability,Supplies & Services,Aids & Appliances,THE WREKIN HOUSING TRUST ,29/02/2024,277.05
Adult Social Care,Prevention & Independence - Older Adults & Disability,Supplies & Services,Aids & Appliances,THE WREKIN HOUSING TRUST ,29/02/2024,495.00
Adult Social Care,Prevention & Independence - Older Adults & Disability,Supplies & Services,Aids & Appliances,THE WREKIN HOUSING TRUST ,29/02/2024,550.00
Adult Social Care,Prevention & Independence - Older Adults & Disability,Supplies & Services,Aids & Appliances,Possum Ltd,28/02/2024,895.00
Adult Social Care,Prevention & Independence - Older Adults & Disability,Supplies & Services,Aids & Appliances,NRS Healthcare T/A Nottingham Rehab Ltd,08/02/2024,"2,788.80"
Adult Social Care,Prevention & Independence - Older Adults & Disability,Supplies & Services,Aids & Appliances,PRISM MEDICAL WESTHOLME DIVISION,27/02/2024,"1,680.15"
Adult Social Care,Prevention & Independence - Older Adults & Disability,Supplies & Services,Aids & Appliances,OSPREY HEALTHCARE LTD,01/02/2024,116.00
Adult Social Care,Prevention & Independence - Older Adults & Disability,Supplies & Services,Aids & Appliances,Wealden Rehab,12/02/2024,"2,680.02"
Adult Social Care,Prevention & Independence - Older Adults & Disability,Supplies & Services,Aids & Appliances,CEFNDY ENTERPRISES HEALTHCARE,09/02/2024,129.58
Adult Social Care,Prevention & Independence - Older Adults & Disability,Supplies & Services,Aids & Appliances,Essentialaids Ltd,13/02/2024,"3,999.50"
Adult Social Care,Prevention & Independence - Older Adults & Disability,Supplies & Services,Aids & Appliances,Accora,22/02/2024,"2,013.00"
Adult Social Care,Prevention & Independence - Older Adults & Disability,Supplies & Services,Aids & Appliances,NRS Healthcare T/A Nottingham Rehab Ltd,22/02/2024,577.90
Adult Social Care,Prevention & Independence - Older Adults & Disability,Supplies & Services,Aids & Appliances,NRS Healthcare T/A Nottingham Rehab Ltd,22/02/2024,"1,012.40"
Adult Social Care,Prevention & Independence - Older Adults & Disability,Supplies & Services,Aids & Appliances,Direct Healthcare Group Limited,21/02/2024,152.00
Adult Social Care,Prevention & Independence - Older Adults & Disability,Supplies & Services,Aids & Appliances,OSPREY HEALTHCARE LTD,21/02/2024,528.90
Adult Social Care,Prevention & Independence - Older Adults & Disability,Supplies & Services,Aids & Appliances,OSPREY HEALTHCARE LTD,28/02/2024,462.24
Adult Social Care,Prevention & Independence - Older Adults & Disability,Supplies & Services,Carriage/Delivery Charge,Wealden Rehab,12/02/2024,235.95
Adult Social Care,Prevention & Independence - Older Adults & Disability,Supplies & Services,Translation Services,VISS Sign Language Interpreting Service,16/02/2024,120.00
Adult Social Care,Prevention & Independence - Older Adults & Disability,Employees,Staff Training,A1 Risk Solutions Ltd,15/02/2024,595.00
Adult Social Care,Prevention & Independence - Older Adults & Disability,Supplies & Services,Carriage/Delivery Charge,Accora,22/02/2024,175.00
Adult Social Care,Prevention & Independence - Older Adults & Disability,Supplies & Services,Aids & Appliances,SHROPSHIRE COMMUNITY HEALTH NHS TRUST,23/02/2024,"6,301.66"
Adult Social Care,Prevention & Independence - Older Adults & Disability,Premises-Related Expenditure,Hire Of Rooms,The Leegate Centre CIC,02/02/2024,168.00
Adult Social Care,Prevention & Independence - Older Adults & Disability,Premises-Related Expenditure,Hire Of Rooms,The Leegate Centre CIC,02/02/2024,210.00
Adult Social Care,Prevention & Independence - Older Adults & Disability,Premises-Related Expenditure,Hire Of Rooms,The Leegate Centre CIC,02/02/2024,126.00
Adult Social Care,Prevention & Independence - Older Adults & Disability,Transport-Related Expenditure,Taxi Costs,Telford and Wrekin Community Enterprise LTD,02/02/2024,144.00
Adult Social Care,Prevention & Independence - Older Adults & Disability,Supplies & Services,Medical Consultants Fees,Capacity Matters Ltd,16/02/2024,252.00
Adult Social Care,Prevention & Independence - Older Adults & Disability,Transport-Related Expenditure,Taxi Costs,MyCab Telford Ltd T/A 1st Choice,14/02/2024,130.00
Adult Social Care,Prevention & Independence - Older Adults & Disability,Transport-Related Expenditure,Taxi Costs,Cartello Ambulance,22/02/2024,214.00
Adult Social Care,Prevention & Independence - Older Adults & Disability,Third Party Payments,Homecare Expenditure,Nutrix Curae Care Ltd,22/02/2024,"9,112.57"
Adult Social Care,Prevention & Independence - Older Adults & Disability,Third Party Payments,Homecare Expenditure,Nutrix Curae Care Ltd,22/02/2024,"2,101.92"
Children's Safeguarding & Family Support,Child Protection & Family Support,Employees,Staff Training,Neurobox Limited,01/02/2024,345.00
Children's Safeguarding & Family Support,Child Protection & Family Support,Transport-Related Expenditure,Additional Overheads,Redacted Personal Information,20/02/2024,"1,203.80"
Children's Safeguarding & Family Support,Child Protection & Family Support,Transport-Related Expenditure,Taxi Costs,Ezy Car Ltd,21/02/2024,140.00
Children's Safeguarding & Family Support,Child Protection & Family Support,Transport-Related Expenditure,Taxi Costs,MyCab Telford Ltd T/A 1st Choice,21/02/2024,"1,188.00"
Children's Safeguarding & Family Support,Child Protection & Family Support,Transport-Related Expenditure,Taxi Costs,MyCab Telford Ltd T/A 1st Choice,21/02/2024,"1,170.00"
Children's Safeguarding & Family Support,Child Protection & Family Support,Supplies & Services,Other Grants (Expenses),Midlands Partnership NHS Foundation Trust,23/02/2024,"10,395.66"
Children's Safeguarding & Family Support,Child Protection & Family Support,Third Party Payments,Joint Financing,West Mercia Police & Crime Commissioner,23/02/2024,"64,255.50"
Children's Safeguarding & Family Support,Child Protection & Family Support,Premises-Related Expenditure,Hire Of Rooms,Mercure Telford Centre Hotel,26/02/2024,143.34
Children's Safeguarding & Family Support,Child Protection & Family Support,Supplies & Services,Application Software Maint,CACI LTD,05/02/2024,"2,202.43"
Children's Safeguarding & Family Support,Child Protection & Family Support,Transport-Related Expenditure,Taxi Costs,Ezy Car Ltd,23/02/2024,"2,158.20"
Children's Safeguarding & Family Support,Child Protection & Family Support,Supplies & Services,Legal Expenses,Cornwall Street Barristers,16/02/2024,200.00
Children's Safeguarding & Family Support,Child Protection & Family Support,Transport-Related Expenditure,Taxi Costs,Ezy Car Ltd,13/02/2024,"1,558.70"
Children's Safeguarding & Family Support,Child Protection & Family Support,Supplies & Services,Other Grants (Expenses),POST ROOM,01/02/2024,-350.00
Children's Safeguarding & Family Support,Child Protection & Family Support,Supplies & Services,Other Grants (Expenses),POST ROOM,01/02/2024,-216.00
Children's Safeguarding & Family Support,Child Protection & Family Support,Supplies & Services,Other Grants (Expenses),POST ROOM,02/02/2024,-350.00
Children's Safeguarding & Family Support,Child Protection & Family Support,Employees,Training Expenses,Headsight Services Ltd,23/02/2024,"3,201.00"
Children's Safeguarding & Family Support,Child Protection & Family Support,Employees,Training Expenses,PARK LANE CENTRE,23/02/2024,162.50
Children's Safeguarding & Family Support,Child Protection & Family Support,Employees,Training Expenses,PAVILION PUBLISHING (BRIGHTON) LTD,27/02/2024,"9,261.00"
Children's Safeguarding & Family Support,Child Protection & Family Support,Employees,Training Expenses,PAVILION PUBLISHING (BRIGHTON) LTD,27/02/2024,"9,261.00"
Children's Safeguarding & Family Support,Family Connect & Childrens Centres,Premises-Related Expenditure,R&M -Building Other,GRANVILLE CONSTRUCTION & MAINTENANCE LTD,05/02/2024,156.25
Children's Safeguarding & Family Support,Family Connect & Childrens Centres,Premises-Related Expenditure,R&M -Building Other,JCE & SONS LTD,21/02/2024,346.51
Children's Safeguarding & Family Support,Family Connect & Childrens Centres,Premises-Related Expenditure,R&M -Building Other,TAYLORS MECHANICAL H & P SERVICES LTD,21/02/2024,135.00
Children's Safeguarding & Family Support,Family Connect & Childrens Centres,Premises-Related Expenditure,R&M -Building Other,JCE & SONS LTD,14/02/2024,115.00
Children's Safeguarding & Family Support,Family Connect & Childrens Centres,Premises-Related Expenditure,R&M -Building Other,JCE & SONS LTD,14/02/2024,109.50
Children's Safeguarding & Family Support,Family Connect & Childrens Centres,Supplies & Services,Other Grants (Expenses),DEPARTMENT FOR WORK & PENSIONS,01/02/2024,109.91
Children's Safeguarding & Family Support,Family Connect & Childrens Centres,Supplies & Services,Other Grants (Expenses),CHILDCARE SOS,14/02/2024,127.12
Children's Safeguarding & Family Support,Family Connect & Childrens Centres,Premises-Related Expenditure,Hire Of Rooms,HOLLINSWOOD & RANDLAY PARISH COUNCIL,02/02/2024,150.00
Children's Safeguarding & Family Support,Family Connect & Childrens Centres,Premises-Related Expenditure,Trade Refuse,PHS GROUP,01/02/2024,141.00
Children's Safeguarding & Family Support,Family Connect & Childrens Centres,Supplies & Services,Other Grants (Expenses),DEPARTMENT FOR WORK & PENSIONS,01/02/2024,109.92
Children's Safeguarding & Family Support,Family Connect & Childrens Centres,Supplies & Services,Other Grants (Expenses),CHILDCARE SOS,14/02/2024,127.13
Children's Safeguarding & Family Support,Family Connect & Childrens Centres,Supplies & Services,Other Grants (Expenses),DEPARTMENT FOR WORK & PENSIONS,01/02/2024,109.92
Children's Safeguarding & Family Support,Family Connect & Childrens Centres,Supplies & Services,Other Grants (Expenses),CHILDCARE SOS,14/02/2024,127.13
Children's Safeguarding & Family Support,"Family Placements, Children in Care, Leaving Care & Emergency Duty Team",Employees,Recruitment Advertising,The Purple Company (UK) Ltd,23/02/2024,212.50
Children's Safeguarding & Family Support,"Family Placements, Children in Care, Leaving Care & Emergency Duty Team",Third Party Payments,Childminders,THE BEARS DEN PRE-SCHOOL ,09/02/2024,896.00
Children's Safeguarding & Family Support,"Family Placements, Children in Care, Leaving Care & Emergency Duty Team",Third Party Payments,Childminders,Country Kids Day Nursery,03/02/2024,420.00
Children's Safeguarding & Family Support,"Family Placements, Children in Care, Leaving Care & Emergency Duty Team",Third Party Payments,Childminders,HADLEY UNDER 5'S ,21/02/2024,352.00
Children's Safeguarding & Family Support,"Family Placements, Children in Care, Leaving Care & Emergency Duty Team",Supplies & Services,Comp Software (Purch / Hire),PHOENIX SOFTWARE LTD,06/02/2024,147.50
Children's Safeguarding & Family Support,"Family Placements, Children in Care, Leaving Care & Emergency Duty Team",Supplies & Services,Comp Software (Purch / Hire),PHOENIX SOFTWARE LTD,13/02/2024,555.99
Children's Safeguarding & Family Support,"Family Placements, Children in Care, Leaving Care & Emergency Duty Team",Supplies & Services,Aids & Appliances,M A S Associates,01/02/2024,500.00
Children's Safeguarding & Family Support,"Family Placements, Children in Care, Leaving Care & Emergency Duty Team",Supplies & Services,Aids & Appliances,Jiraffe,01/02/2024,"4,018.00"
Children's Safeguarding & Family Support,"Family Placements, Children in Care, Leaving Care & Emergency Duty Team",Supplies & Services,Aids & Appliances,OSPREY HEALTHCARE LTD,23/02/2024,867.08
Children's Safeguarding & Family Support,"Family Placements, Children in Care, Leaving Care & Emergency Duty Team",Supplies & Services,Equipment - Repair,STANNAH LIFT SERVICES LTD,02/02/2024,164.25
Children's Safeguarding & Family Support,"Family Placements, Children in Care, Leaving Care & Emergency Duty Team",Supplies & Services,Equipment - Repair,STANNAH LIFT SERVICES LTD,02/02/2024,158.25
Children's Safeguarding & Family Support,"Family Placements, Children in Care, Leaving Care & Emergency Duty Team",Supplies & Services,Aids & Appliances,Tough Furniture Ltd,08/02/2024,"2,010.00"
Children's Safeguarding & Family Support,"Family Placements, Children in Care, Leaving Care & Emergency Duty Team",Supplies & Services,Aids & Appliances,MIDSHIRES MOBILITY GROUP,08/02/2024,"2,926.75"
Children's Safeguarding & Family Support,"Family Placements, Children in Care, Leaving Care & Emergency Duty Team",Supplies & Services,Aids & Appliances,Tough Furniture Ltd,08/02/2024,788.00
Children's Safeguarding & Family Support,"Family Placements, Children in Care, Leaving Care & Emergency Duty Team",Supplies & Services,Aids & Appliances,Tough Furniture Ltd,23/02/2024,418.00
Children's Safeguarding & Family Support,"Family Placements, Children in Care, Leaving Care & Emergency Duty Team",Supplies & Services,Aids & Appliances,G & S SMIRTHWAITE LTD,15/02/2024,670.00
Children's Safeguarding & Family Support,"Family Placements, Children in Care, Leaving Care & Emergency Duty Team",Supplies & Services,Aids & Appliances,Etac Limited,15/02/2024,184.00
Children's Safeguarding & Family Support,"Family Placements, Children in Care, Leaving Care & Emergency Duty Team",Transport-Related Expenditure,Season Tickets,ARRIVA MIDLANDS LTD ,06/02/2024,"2,370.00"
Children's Safeguarding & Family Support,"Family Placements, Children in Care, Leaving Care & Emergency Duty Team",Supplies & Services,Comp Software (Purch / Hire),PHOENIX SOFTWARE LTD,06/02/2024,147.50
Children's Safeguarding & Family Support,"Family Placements, Children in Care, Leaving Care & Emergency Duty Team",Transport-Related Expenditure,Taxi Costs,Ezy Car Ltd,02/02/2024,477.00
Children's Safeguarding & Family Support,"Family Placements, Children in Care, Leaving Care & Emergency Duty Team",Transport-Related Expenditure,Taxi Costs,Ezy Car Ltd,02/02/2024,"1,318.90"
Children's Safeguarding & Family Support,"Family Placements, Children in Care, Leaving Care & Emergency Duty Team",Transport-Related Expenditure,Taxi Costs,Ezy Car Ltd,02/02/2024,795.00
Children's Safeguarding & Family Support,"Family Placements, Children in Care, Leaving Care & Emergency Duty Team",Supplies & Services,Comp Software (Purch / Hire),PHOENIX SOFTWARE LTD,21/02/2024,555.99
Children's Safeguarding & Family Support,"Family Placements, Children in Care, Leaving Care & Emergency Duty Team",Third Party Payments,Childminders,TRENCH TOTS NEIGHBOURHOOD NURSERY LTD,01/02/2024,437.50
Children's Safeguarding & Family Support,"Family Placements, Children in Care, Leaving Care & Emergency Duty Team",Third Party Payments,Childminders,TRENCH TOTS NEIGHBOURHOOD NURSERY LTD,01/02/2024,487.50
Children's Safeguarding & Family Support,Safeguarding Advisory,Supplies & Services,Comp Software (Purch / Hire),WORCESTERSHIRE COUNTY COUNCIL,07/02/2024,"2,969.20"
Children's Safeguarding & Family Support,Safeguarding Advisory,Supplies & Services,Public Transport Subsidy,MEETING POINT TRUST LTD,13/02/2024,115.00
Children's Safeguarding & Family Support,Safeguarding Advisory,Supplies & Services,Public Transport Subsidy,MEETING POINT TRUST LTD,13/02/2024,295.00
Children's Safeguarding & Family Support,Safeguarding Advisory,Supplies & Services,Public Transport Subsidy,MEETING POINT TRUST LTD,12/02/2024,115.00
Children's Safeguarding & Family Support,Safeguarding Advisory,Supplies & Services,Public Transport Subsidy,MEETING POINT TRUST LTD,28/02/2024,129.17
"Communities, Customer & Commercial Services",Community Services,Capital Expenditure,Other Capital Expenditure,National Grid Electricity Distribution (West Midlands) plc,07/02/2024,"2,920.00"
"Communities, Customer & Commercial Services",Community Services,Capital Expenditure,Other Capital Expenditure,ALAN BROUGH ASSOCIATES LTD,07/02/2024,"1,850.00"
"Communities, Customer & Commercial Services",Community Services,Capital Expenditure,Other Capital Expenditure,JCE & SONS LTD,07/02/2024,"10,551.43"
"Communities, Customer & Commercial Services",Community Services,Supplies & Services,Grants To Voluntary Organis,KETLEY PARISH COUNCIL,26/02/2024,750.00
"Communities, Customer & Commercial Services",Community Services,Supplies & Services,Grants To Voluntary Organis,KETLEY PARISH COUNCIL,26/02/2024,800.00
"Communities, Customer & Commercial Services",Community Services,Supplies & Services,Grants To Voluntary Organis,KETLEY PARISH COUNCIL,26/02/2024,200.00
"Communities, Customer & Commercial Services",Community Services,Supplies & Services,Grants To Voluntary Organis,KETLEY PARISH COUNCIL,26/02/2024,250.00
"Communities, Customer & Commercial Services",Community Services,Supplies & Services,Grants To Voluntary Organis,MADELEY TOWN COUNCIL ,08/02/2024,400.00
"Communities, Customer & Commercial Services",Community Services,Supplies & Services,Grants To Voluntary Organis,TELFORD & WREKIN CVS,08/02/2024,650.00
"Communities, Customer & Commercial Services",Community Services,Supplies & Services,Grants To Voluntary Organis,Telford Sailability,08/02/2024,250.00
"Communities, Customer & Commercial Services",Community Services,Supplies & Services,Grants To Voluntary Organis,The Leegate Centre CIC,08/02/2024,300.00
"Communities, Customer & Commercial Services",Community Services,Supplies & Services,Grants To Voluntary Organis,ST GEORGES & PRIORSLEE PARISH COUNCIL,15/02/2024,"2,000.00"
"Communities, Customer & Commercial Services",Community Services,Supplies & Services,Grants To Voluntary Organis,WROCKWARDINE PARISH COUNCIL ,15/02/2024,"1,500.00"
"Communities, Customer & Commercial Services",Community Services,Supplies & Services,Grants To Voluntary Organis,LAWLEY & OVERDALE PARISH COUNCIL,12/02/2024,650.00
"Communities, Customer & Commercial Services",Community Services,Supplies & Services,Grants To Voluntary Organis,Grange Park Primary School - Community Academies Trust,12/02/2024,"1,700.00"
"Communities, Customer & Commercial Services",Community Services,Supplies & Services,Grants To Voluntary Organis,Events in the Dale,12/02/2024,500.00
"Communities, Customer & Commercial Services",Community Services,Supplies & Services,Grants To Voluntary Organis,WROCKWARDINE WOOD CE JUNIOR SCHOOL,12/02/2024,544.00
"Communities, Customer & Commercial Services",Community Services,Supplies & Services,Grants To Voluntary Organis,LAWLEY & OVERDALE PARISH COUNCIL,07/02/2024,400.00
"Communities, Customer & Commercial Services",Community Services,Supplies & Services,Grants To Voluntary Organis,LAWLEY & OVERDALE PARISH COUNCIL,07/02/2024,275.00
"Communities, Customer & Commercial Services",Community Services,Supplies & Services,Grants To Voluntary Organis,Redhill Primary Academy,07/02/2024,200.00
"Communities, Customer & Commercial Services",Community Services,Supplies & Services,Grants To Voluntary Organis,Telford Crisis Support,06/02/2024,900.00
"Communities, Customer & Commercial Services",Community Services,Supplies & Services,Grants To Voluntary Organis,Telford Crisis Support,06/02/2024,500.00
"Communities, Customer & Commercial Services",Community Services,Supplies & Services,Grants To Voluntary Organis,LAWLEY & OVERDALE PARISH COUNCIL,06/02/2024,300.00
"Communities, Customer & Commercial Services",Community Services,Supplies & Services,Grants To Voluntary Organis,Telford Crisis Support,06/02/2024,500.00
"Communities, Customer & Commercial Services",Community Services,Supplies & Services,Grants To Voluntary Organis,HADLEY & LEEGOMERY PARISH COUNCIL,08/02/2024,300.00
"Communities, Customer & Commercial Services",Community Services,Supplies & Services,Grants To Voluntary Organis,LAWLEY & OVERDALE PARISH COUNCIL,08/02/2024,160.00
"Communities, Customer & Commercial Services",Community Services,Supplies & Services,Grants To Voluntary Organis,MADELEY TOWN COUNCIL ,08/02/2024,"1,000.00"
"Communities, Customer & Commercial Services",Community Services,Supplies & Services,Grants To Voluntary Organis,HADLEY & LEEGOMERY PARISH COUNCIL,09/02/2024,"1,000.00"
"Communities, Customer & Commercial Services",Community Services,Supplies & Services,Grants To Voluntary Organis,ST JOHNS PCC,09/02/2024,"2,555.00"
"Communities, Customer & Commercial Services",Community Services,Supplies & Services,Grants To Voluntary Organis,LAWLEY & OVERDALE PARISH COUNCIL,09/02/2024,500.00
"Communities, Customer & Commercial Services",Community Services,Supplies & Services,Grants To Voluntary Organis,LAWLEY & OVERDALE PARISH COUNCIL,09/02/2024,150.00
"Communities, Customer & Commercial Services",Community Services,Supplies & Services,Grants To Voluntary Organis,LAWLEY & OVERDALE PARISH COUNCIL,09/02/2024,675.00
"Communities, Customer & Commercial Services",Community Services,Supplies & Services,Grants To Voluntary Organis,LAWLEY & OVERDALE PARISH COUNCIL,09/02/2024,225.00
"Communities, Customer & Commercial Services",Community Services,Supplies & Services,Grants To Voluntary Organis,The Little Theatre Donnington Society,09/02/2024,500.00
"Communities, Customer & Commercial Services",Community Services,Supplies & Services,Grants To Voluntary Organis,LAWLEY & OVERDALE PARISH COUNCIL,09/02/2024,500.00
"Communities, Customer & Commercial Services",Community Services,Supplies & Services,Grants To Voluntary Organis,LAWLEY & OVERDALE PARISH COUNCIL,09/02/2024,"1,900.00"
"Communities, Customer & Commercial Services",Community Services,Supplies & Services,Grants To Voluntary Organis,LAWLEY & OVERDALE PARISH COUNCIL,09/02/2024,300.00
"Communities, Customer & Commercial Services",Community Services,Supplies & Services,Grants To Voluntary Organis,LAWLEY & OVERDALE PARISH COUNCIL,09/02/2024,300.00
"Communities, Customer & Commercial Services",Community Services,Supplies & Services,Grants To Voluntary Organis,Madeley Baptist Church,09/02/2024,500.00
"Communities, Customer & Commercial Services",Community Services,Supplies & Services,Grants To Voluntary Organis,HADLEY & LEEGOMERY PARISH COUNCIL,09/02/2024,796.00
"Communities, Customer & Commercial Services",Community Services,Supplies & Services,Grants To Voluntary Organis,LAWLEY & OVERDALE PARISH COUNCIL,09/02/2024,750.00
"Communities, Customer & Commercial Services",Community Services,Supplies & Services,Grants To Voluntary Organis,LAWLEY & OVERDALE PARISH COUNCIL,09/02/2024,600.00
"Communities, Customer & Commercial Services",Community Services,Supplies & Services,Grants To Voluntary Organis,Telford Crisis Support,09/02/2024,250.00
"Communities, Customer & Commercial Services",Community Services,Supplies & Services,Grants To Voluntary Organis,HADLEY & LEEGOMERY PARISH COUNCIL,09/02/2024,"1,000.00"
"Communities, Customer & Commercial Services",Community Services,Supplies & Services,Grants To Voluntary Organis,Sambrook Village Hall,12/02/2024,"1,000.00"
"Communities, Customer & Commercial Services",Community Services,Supplies & Services,Grants To Voluntary Organis,PARK LANE CENTRE,12/02/2024,400.00
"Communities, Customer & Commercial Services",Community Services,Supplies & Services,Grants To Voluntary Organis,PARK LANE CENTRE,12/02/2024,400.00
"Communities, Customer & Commercial Services",Community Services,Supplies & Services,Grants To Voluntary Organis,PARK LANE CENTRE,12/02/2024,409.80
"Communities, Customer & Commercial Services",Community Services,Supplies & Services,Grants To Voluntary Organis,YMCA,21/02/2024,"1,000.00"
"Communities, Customer & Commercial Services",Community Services,Supplies & Services,Grants To Voluntary Organis,Wellington Cricket Club,21/02/2024,900.00
"Communities, Customer & Commercial Services",Community Services,Supplies & Services,Grants To Voluntary Organis,Telford Gateway Club,21/02/2024,"2,500.00"
"Communities, Customer & Commercial Services",Community Services,Supplies & Services,Grants To Voluntary Organis,The Leegate Centre CIC,21/02/2024,"1,245.20"
"Communities, Customer & Commercial Services",Community Services,Supplies & Services,Grants To Voluntary Organis,Noor Women's Group,21/02/2024,911.82
"Communities, Customer & Commercial Services",Community Services,Supplies & Services,Grants To Voluntary Organis,MUXTON PRIMARY SCHOOL FUND,21/02/2024,"2,000.00"
"Communities, Customer & Commercial Services",Community Services,Supplies & Services,Grants To Voluntary Organis,YMCA,16/02/2024,750.00
"Communities, Customer & Commercial Services",Community Services,Supplies & Services,Grants To Voluntary Organis,YMCA,16/02/2024,250.00
"Communities, Customer & Commercial Services",Community Services,Supplies & Services,Grants To Voluntary Organis,YMCA,16/02/2024,161.68
"Communities, Customer & Commercial Services",Community Services,Supplies & Services,Grants To Voluntary Organis,NEWPORT TOWN COUNCIL,15/02/2024,"1,000.00"
"Communities, Customer & Commercial Services",Community Services,Supplies & Services,Grants To Voluntary Organis,NEWPORT TOWN COUNCIL,15/02/2024,500.00
"Communities, Customer & Commercial Services",Community Services,Supplies & Services,Grants To Voluntary Organis,LAWLEY & OVERDALE PARISH COUNCIL,15/02/2024,673.37
"Communities, Customer & Commercial Services",Community Services,Supplies & Services,Grants To Voluntary Organis,NEWPORT TOWN COUNCIL,15/02/2024,200.00
"Communities, Customer & Commercial Services",Community Services,Supplies & Services,Grants To Voluntary Organis,NEWPORT TOWN COUNCIL,15/02/2024,"1,500.00"
"Communities, Customer & Commercial Services",Community Services,Supplies & Services,Grants To Voluntary Organis,NEWPORT TOWN COUNCIL,15/02/2024,"1,000.00"
"Communities, Customer & Commercial Services",Community Services,Supplies & Services,Grants To Voluntary Organis,WELLINGTON TOWN COUNCIL,15/02/2024,561.83
"Communities, Customer & Commercial Services",Community Services,Supplies & Services,Grants To Voluntary Organis,WELLINGTON TOWN COUNCIL,15/02/2024,"1,250.00"
"Communities, Customer & Commercial Services",Community Services,Supplies & Services,Grants To Voluntary Organis,OAKENGATES TOWN COUNCIL,15/02/2024,500.00
"Communities, Customer & Commercial Services",Community Services,Supplies & Services,Grants To Voluntary Organis,LAWLEY & OVERDALE PARISH COUNCIL,15/02/2024,300.00
"Communities, Customer & Commercial Services",Community Services,Supplies & Services,Grants To Voluntary Organis,ST GEORGES & PRIORSLEE PARISH COUNCIL,15/02/2024,594.75
"Communities, Customer & Commercial Services",Community Services,Supplies & Services,Grants To Voluntary Organis,YMCA,16/02/2024,850.00
"Communities, Customer & Commercial Services",Community Services,Supplies & Services,Grants To Voluntary Organis,The Coalport Ferry Disaster Memorial Group,16/02/2024,900.00
"Communities, Customer & Commercial Services",Community Services,Supplies & Services,Grants To Voluntary Organis,YMCA,19/02/2024,"1,312.00"
"Communities, Customer & Commercial Services",Community Services,Supplies & Services,Grants To Voluntary Organis,Mighty Oaks Academy Trust,21/02/2024,200.00
"Communities, Customer & Commercial Services",Community Services,Supplies & Services,Grants To Voluntary Organis,THE LEARNING TREE PRE-SCHOOL ,21/02/2024,680.73
"Communities, Customer & Commercial Services",Community Services,Supplies & Services,Grants To Voluntary Organis,KETLEY PARISH COUNCIL,21/02/2024,"1,250.00"
"Communities, Customer & Commercial Services",Community Services,Supplies & Services,Grants To Voluntary Organis,2nd Donnington Garrison Scouts,26/02/2024,200.00
"Communities, Customer & Commercial Services",Community Services,Supplies & Services,Grants To Voluntary Organis,TACT,26/02/2024,"2,000.00"
"Communities, Customer & Commercial Services",Community Services,Supplies & Services,Grants To Voluntary Organis,Allscott Meads Primary School & Nursery,26/02/2024,"3,000.00"
"Communities, Customer & Commercial Services",Community Services,Supplies & Services,Grants To Voluntary Organis,CHETWYND PARISH COUNCIL  ,26/02/2024,"2,000.00"
"Communities, Customer & Commercial Services",Community Services,Supplies & Services,Grants To Voluntary Organis,St Andrews Church Hall Management Committee,26/02/2024,148.00
"Communities, Customer & Commercial Services",Community Services,Supplies & Services,Grants To Voluntary Organis,SGGSJ Telford,26/02/2024,"1,000.00"
"Communities, Customer & Commercial Services",Community Services,Supplies & Services,Grants To Voluntary Organis,Dementia Friendly Newport,26/02/2024,300.00
"Communities, Customer & Commercial Services",Community Services,Supplies & Services,Grants To Voluntary Organis,"You, Me and Us (Ketley Coffee Club)",26/02/2024,250.00
"Communities, Customer & Commercial Services",Community Services,Supplies & Services,Grants To Voluntary Organis,Wrekin View Community Fridge ,28/02/2024,"1,000.00"
"Communities, Customer & Commercial Services",Community Services,Supplies & Services,Grants To Voluntary Organis,Wrekin View Community Fridge ,28/02/2024,"1,000.00"
"Communities, Customer & Commercial Services",Community Services,Supplies & Services,Grants To Voluntary Organis,AFC Telford United Foundation CIC,29/02/2024,"1,750.00"
"Communities, Customer & Commercial Services",Community Services,Premises-Related Expenditure,Electricity,West Mercia Energy (WME),22/02/2024,"1,006.18"
"Communities, Customer & Commercial Services",Culture & Events,Premises-Related Expenditure,Hire Of Rooms,TELFORD INTERNATIONAL CENTRE,28/02/2024,237.50
"Communities, Customer & Commercial Services",Culture & Events,Supplies & Services,Marketing & Publicity,Blue Sail Consulting Limited,23/02/2024,"6,481.20"
"Communities, Customer & Commercial Services",Culture & Events,Supplies & Services,Equipment - Hire,Show Systems Marquees Ltd,07/02/2024,406.60
"Communities, Customer & Commercial Services",Culture & Events,Supplies & Services,Equipment - Hire,JCE & SONS LTD,12/02/2024,"1,400.56"
"Communities, Customer & Commercial Services",Culture & Events,Supplies & Services,Advertising,WHATS ON MAGAZINES LTD,08/02/2024,275.00
"Communities, Customer & Commercial Services",Culture & Events,Supplies & Services,Promotion Expenses,Spektrix Limited,08/02/2024,"2,364.57"
"Communities, Customer & Commercial Services",Culture & Events,Supplies & Services,Advertising,Colston Media Ltd,13/02/2024,150.00
"Communities, Customer & Commercial Services",Culture & Events,Supplies & Services,Performing Rights Fees,PPL PRS Ltd,14/02/2024,"4,850.45"
"Communities, Customer & Commercial Services",Culture & Events,Supplies & Services,Artistes Fees,M.T Productions Limited,19/02/2024,"2,803.49"
"Communities, Customer & Commercial Services",Culture & Events,Supplies & Services,Artistes Fees,Shones Productions Limited,02/02/2024,"94,374.60"
"Communities, Customer & Commercial Services",Culture & Events,Supplies & Services,Artistes Fees,HANDSHAKE LTD ,06/02/2024,"7,347.97"
"Communities, Customer & Commercial Services",Culture & Events,Supplies & Services,Artistes Fees,ODDSOCKS COMMUNICATIONS LTD,08/02/2024,775.00
"Communities, Customer & Commercial Services",Culture & Events,Supplies & Services,Artistes Fees,Ticketplan Limited,08/02/2024,184.96
"Communities, Customer & Commercial Services",Culture & Events,Supplies & Services,Promotion Expenses,crowdEngage Limited,13/02/2024,239.18
"Communities, Customer & Commercial Services",Culture & Events,Supplies & Services,Artistes Fees,HANDSHAKE LTD ,13/02/2024,"8,639.30"
"Communities, Customer & Commercial Services",Culture & Events,Supplies & Services,Artistes Fees,PHIL MCINTYRE ENTERTAINMENT LTD,14/02/2024,"5,760.00"
"Communities, Customer & Commercial Services",Culture & Events,Supplies & Services,Artistes Fees,J. W Music,14/02/2024,"4,553.99"
"Communities, Customer & Commercial Services",Culture & Events,Supplies & Services,Artistes Fees,Made To Measure Productions Ltd,27/02/2024,"8,849.92"
"Communities, Customer & Commercial Services",Culture & Events,Supplies & Services,Artistes Fees,ALAN CLAYTON CONCERTS LTD,27/02/2024,"9,720.96"
"Communities, Customer & Commercial Services",Culture & Events,Supplies & Services,Artistes Fees,Illyria Theatre Limited,27/02/2024,735.00
"Communities, Customer & Commercial Services",Culture & Events,Supplies & Services,Artistes Fees,Shones Productions Limited,27/02/2024,"2,203.34"
"Communities, Customer & Commercial Services",Culture & Events,Supplies & Services,Artistes Fees,ARTISTES INTERNATIONAL MANAGEMENT,29/02/2024,"8,861.70"
"Communities, Customer & Commercial Services",Culture & Events,Supplies & Services,Wet Resale Provision,MOLSON COORS BREWING COMPANY UK LTD,24/02/2024,149.68
"Communities, Customer & Commercial Services",Culture & Events,Supplies & Services,Wet Resale Provision,MOLSON COORS BREWING COMPANY UK LTD,24/02/2024,286.50
"Communities, Customer & Commercial Services",Culture & Events,Supplies & Services,Wet Resale Provision,MOLSON COORS BREWING COMPANY UK LTD,24/02/2024,238.68
"Communities, Customer & Commercial Services",Culture & Events,Supplies & Services,Wet Resale Provision,MOLSON COORS BREWING COMPANY UK LTD,24/02/2024,111.10
"Communities, Customer & Commercial Services",Culture & Events,Supplies & Services,Wet Resale Provision,MOLSON COORS BREWING COMPANY UK LTD,24/02/2024,299.36
"Communities, Customer & Commercial Services",Culture & Events,Supplies & Services,Wet Resale Provision,MOLSON COORS BREWING COMPANY UK LTD,24/02/2024,114.35
"Communities, Customer & Commercial Services",Culture & Events,Supplies & Services,Wet Resale Provision,MOLSON COORS BREWING COMPANY UK LTD,26/02/2024,114.35
"Communities, Customer & Commercial Services",Culture & Events,Supplies & Services,Wet Resale Provision,MOLSON COORS BREWING COMPANY UK LTD,26/02/2024,299.36
"Communities, Customer & Commercial Services",Culture & Events,Supplies & Services,Crockery/Hardware/Light Equip,A1 BARSTUFF LTD,26/02/2024,159.96
"Communities, Customer & Commercial Services",Culture & Events,Supplies & Services,Wet Resale Provision,MOLSON COORS BREWING COMPANY UK LTD,06/02/2024,110.63
"Communities, Customer & Commercial Services",Culture & Events,Supplies & Services,Wet Resale Provision,MOLSON COORS BREWING COMPANY UK LTD,06/02/2024,291.46
"Communities, Customer & Commercial Services",Culture & Events,Supplies & Services,Wet Resale Provision,MOLSON COORS BREWING COMPANY UK LTD,06/02/2024,182.82
"Communities, Customer & Commercial Services",Culture & Events,Supplies & Services,Wet Resale Provision,MOLSON COORS BREWING COMPANY UK LTD,06/02/2024,116.37
"Communities, Customer & Commercial Services",Culture & Events,Supplies & Services,Wet Resale Provision,MOLSON COORS BREWING COMPANY UK LTD,06/02/2024,126.27
"Communities, Customer & Commercial Services",Culture & Events,Supplies & Services,Wet Resale Provision,MOLSON COORS BREWING COMPANY UK LTD,06/02/2024,191.00
"Communities, Customer & Commercial Services",Culture & Events,Supplies & Services,Wet Resale Provision,MOLSON COORS BREWING COMPANY UK LTD,06/02/2024,437.19
"Communities, Customer & Commercial Services",Culture & Events,Supplies & Services,Audit Services,DMC STOCKTAKING,13/02/2024,160.00
"Communities, Customer & Commercial Services",Culture & Events,Supplies & Services,Wet Resale Provision,MOLSON COORS BREWING COMPANY UK LTD,18/02/2024,608.17
"Communities, Customer & Commercial Services",Culture & Events,Supplies & Services,Wet Resale Provision,MOLSON COORS BREWING COMPANY UK LTD,18/02/2024,126.27
"Communities, Customer & Commercial Services",Culture & Events,Supplies & Services,Wet Resale Provision,MOLSON COORS BREWING COMPANY UK LTD,18/02/2024,232.74
"Communities, Customer & Commercial Services",Culture & Events,Supplies & Services,Wet Resale Provision,MOLSON COORS BREWING COMPANY UK LTD,18/02/2024,145.73
"Communities, Customer & Commercial Services",Culture & Events,Supplies & Services,Audit Services,DMC STOCKTAKING,29/02/2024,160.00
"Communities, Customer & Commercial Services",Culture & Events,Supplies & Services,Wet Resale Provision,MOLSON COORS BREWING COMPANY UK LTD,24/02/2024,378.60
"Communities, Customer & Commercial Services",Culture & Events,Supplies & Services,Wet Resale Provision,MOLSON COORS BREWING COMPANY UK LTD,24/02/2024,191.00
"Communities, Customer & Commercial Services",Culture & Events,Supplies & Services,Wet Resale Provision,MOLSON COORS BREWING COMPANY UK LTD,24/02/2024,111.10
"Communities, Customer & Commercial Services",Culture & Events,Premises-Related Expenditure,Gas,GAS DIRECT LTD,26/02/2024,111.46
"Communities, Customer & Commercial Services",Culture & Events,Supplies & Services,Wet Resale Provision,MOLSON COORS BREWING COMPANY UK LTD,26/02/2024,101.08
"Communities, Customer & Commercial Services",Culture & Events,Supplies & Services,Wet Resale Provision,MOLSON COORS BREWING COMPANY UK LTD,26/02/2024,299.36
"Communities, Customer & Commercial Services",Culture & Events,Supplies & Services,Wet Resale Provision,MOLSON COORS BREWING COMPANY UK LTD,26/02/2024,238.68
"Communities, Customer & Commercial Services",Culture & Events,Supplies & Services,Wet Resale Provision,MOLSON COORS BREWING COMPANY UK LTD,26/02/2024,130.25
"Communities, Customer & Commercial Services",Culture & Events,Supplies & Services,Wet Resale Provision,MOLSON COORS BREWING COMPANY UK LTD,06/02/2024,232.74
"Communities, Customer & Commercial Services",Culture & Events,Supplies & Services,Wet Resale Provision,MOLSON COORS BREWING COMPANY UK LTD,06/02/2024,291.46
"Communities, Customer & Commercial Services",Culture & Events,Supplies & Services,Wet Resale Provision,MOLSON COORS BREWING COMPANY UK LTD,06/02/2024,119.06
"Communities, Customer & Commercial Services",Culture & Events,Supplies & Services,Wet Resale Provision,MOLSON COORS BREWING COMPANY UK LTD,18/02/2024,291.46
"Communities, Customer & Commercial Services",Culture & Events,Supplies & Services,Wet Resale Provision,MOLSON COORS BREWING COMPANY UK LTD,18/02/2024,232.74
"Communities, Customer & Commercial Services",Culture & Events,Supplies & Services,Wet Resale Provision,MOLSON COORS BREWING COMPANY UK LTD,18/02/2024,126.27
"Communities, Customer & Commercial Services",Culture & Events,Supplies & Services,Audit Services,DMC STOCKTAKING,13/02/2024,160.00
"Communities, Customer & Commercial Services",Culture & Events,Supplies & Services,Audit Services,DMC STOCKTAKING,29/02/2024,160.00
"Communities, Customer & Commercial Services",Customer Relationships & Welfare Services,Supplies & Services,Other Grants (Expenses),Hawk Incentives Ltd (Crown Commercial Services),21/02/2024,"19,744.00"
"Communities, Customer & Commercial Services",Customer Relationships & Welfare Services,Supplies & Services,Other Grants (Expenses),Discretionary Household Support,08/02/2024,"1,006.83"
"Communities, Customer & Commercial Services",Customer Relationships & Welfare Services,Supplies & Services,Other Grants (Expenses),Discretionary Household Support,08/02/2024,134.38
"Communities, Customer & Commercial Services",Customer Relationships & Welfare Services,Supplies & Services,Other Grants (Expenses),Discretionary Household Support,05/02/2024,"1,000.00"
"Communities, Customer & Commercial Services",Customer Relationships & Welfare Services,Transfer Payments,Crisis Assistance Awards,PayPoint Network Limited,27/02/2024,180.00
"Communities, Customer & Commercial Services",Customer Relationships & Welfare Services,Transfer Payments,Crisis Assistance Awards,PayPoint Network Limited,06/02/2024,279.00
"Communities, Customer & Commercial Services",Customer Relationships & Welfare Services,Supplies & Services,Translation Services,VISS Sign Language Interpreting Service,01/02/2024,120.00
"Communities, Customer & Commercial Services",Customer Relationships & Welfare Services,Transfer Payments,Crisis Assistance Awards,PayPoint Network Limited,21/02/2024,150.00
"Communities, Customer & Commercial Services",Customer Relationships & Welfare Services,Transfer Payments,Crisis Assistance Awards,PayPoint Network Limited,14/02/2024,120.00
"Communities, Customer & Commercial Services",Customer Relationships & Welfare Services,Supplies & Services,IT Services,NEC Software Solutions UK Ltd,27/02/2024,"2,250.00"
"Communities, Customer & Commercial Services",Customer Relationships & Welfare Services,Supplies & Services,Other Grants (Expenses),Discretionary Household Support,22/02/2024,450.46
"Communities, Customer & Commercial Services",Customer Relationships & Welfare Services,Supplies & Services,Postages,Financial Data Management plc,28/02/2024,140.77
"Communities, Customer & Commercial Services",Customer Relationships & Welfare Services,Supplies & Services,Postages,Financial Data Management plc,28/02/2024,118.11
"Communities, Customer & Commercial Services",Customer Relationships & Welfare Services,Supplies & Services,Postages,Financial Data Management plc,28/02/2024,104.76
"Communities, Customer & Commercial Services",Customer Relationships & Welfare Services,Supplies & Services,Postages,Financial Data Management plc,28/02/2024,108.86
"Communities, Customer & Commercial Services",Customer Relationships & Welfare Services,Supplies & Services,Printing - Other,Financial Data Management plc,28/02/2024,119.74
"Communities, Customer & Commercial Services",Customer Relationships & Welfare Services,Supplies & Services,Printing - Other,Financial Data Management plc,28/02/2024,"1,237.50"
"Communities, Customer & Commercial Services",Customer Relationships & Welfare Services,Supplies & Services,Stationery,Financial Data Management plc,28/02/2024,130.00
"Communities, Customer & Commercial Services",Customer Relationships & Welfare Services,Supplies & Services,Other Grants (Expenses),Discretionary Household Support,28/02/2024,500.00
"Communities, Customer & Commercial Services",Customer Relationships & Welfare Services,Supplies & Services,Other Grants (Expenses),Discretionary Household Support,28/02/2024,500.00
"Communities, Customer & Commercial Services",Customer Relationships & Welfare Services,Supplies & Services,Other Grants (Expenses),Discretionary Household Support,28/02/2024,150.00
"Communities, Customer & Commercial Services",Customer Relationships & Welfare Services,Supplies & Services,Other Grants (Expenses),Discretionary Household Support,29/02/2024,298.32
"Communities, Customer & Commercial Services",Customer Relationships & Welfare Services,Supplies & Services,Permit Production - Blue Badge,APS Group,07/02/2024,"1,070.59"
"Communities, Customer & Commercial Services",Customer Relationships & Welfare Services,Transport-Related Expenditure,Vehicle Leasing Charges,Valtech Limited,06/02/2024,491.28
"Communities, Customer & Commercial Services",Customer Relationships & Welfare Services,Supplies & Services,Bus Pass Production,Euclid Limited,09/02/2024,"1,004.96"
"Communities, Customer & Commercial Services",Customer Relationships & Welfare Services,Transfer Payments,Crisis Assistance Awards,Kings of the Road,27/02/2024,900.00
"Communities, Customer & Commercial Services",Customer Relationships & Welfare Services,Transfer Payments,Crisis Assistance Awards,Kings of the Road,07/02/2024,425.00
"Communities, Customer & Commercial Services",Customer Relationships & Welfare Services,Transfer Payments,Crisis Assistance Awards,Kings of the Road,14/02/2024,425.00
"Communities, Customer & Commercial Services",Customer Relationships & Welfare Services,Transfer Payments,Crisis Assistance Awards,Kings of the Road,14/02/2024,495.00
"Communities, Customer & Commercial Services",Customer Relationships & Welfare Services,Employees,Staff Training,DUDLEY METROPOLITAN BOROUGH COUNCIL,21/02/2024,200.00
"Communities, Customer & Commercial Services",Customer Relationships & Welfare Services,Supplies & Services,Comp Software (Purch / Hire),Zipporah Ltd.,27/02/2024,"16,800.00"
"Communities, Customer & Commercial Services",ICT,Capital Expenditure,Payments to Contractor,The Tree Man,07/02/2024,275.00
"Communities, Customer & Commercial Services",ICT,Capital Expenditure,Computer Hardware,CCS MEDIA LIMITED,14/02/2024,"65,551.86"
"Communities, Customer & Commercial Services",ICT,Capital Expenditure,Computer Hardware,CCS MEDIA LIMITED,14/02/2024,817.46
"Communities, Customer & Commercial Services",ICT,Capital Expenditure,Computer Hardware,CCS MEDIA LIMITED,14/02/2024,"263,027.70"
"Communities, Customer & Commercial Services",ICT,Capital Expenditure,Computer Hardware,CCS MEDIA LIMITED,14/02/2024,"2,327.14"
"Communities, Customer & Commercial Services",ICT,Capital Expenditure,Computer Hardware,ICTn Limited,15/02/2024,289.50
"Communities, Customer & Commercial Services",ICT,Capital Expenditure,Computer Hardware,ICTn Limited,15/02/2024,295.00
"Communities, Customer & Commercial Services",ICT,Capital Expenditure,Payments to Contractor,Trustmarque Solutions Limited,15/02/2024,"23,250.00"
"Communities, Customer & Commercial Services",ICT,Capital Expenditure,Computer Hardware,CCS MEDIA LIMITED,27/02/2024,252.00
"Communities, Customer & Commercial Services",ICT,Premises-Related Expenditure,R&M -Building Other,BUSINESS WATCH GUARDING LIMITED,06/02/2024,381.61
"Communities, Customer & Commercial Services",ICT,Supplies & Services,Comp Hardware (Purch / Hire),CCS MEDIA LIMITED,13/02/2024,320.00
"Communities, Customer & Commercial Services",ICT,Premises-Related Expenditure,Hire Of Rooms,PCC WROCKWARDINE WOOD RESTORATION,28/02/2024,330.00
"Communities, Customer & Commercial Services",ICT,Supplies & Services,Telecomms,Airband Community Internet,07/02/2024,295.00
"Communities, Customer & Commercial Services",ICT,Supplies & Services,Telecomms,Airband Community Internet,29/02/2024,295.00
"Communities, Customer & Commercial Services",ICT,Supplies & Services,Mobile Phones,EE LTD AIRTIME ,07/02/2024,"13,466.36"
"Communities, Customer & Commercial Services",ICT,Supplies & Services,Telephones,Trustmarque Solutions Limited,06/02/2024,"2,949.64"
"Communities, Customer & Commercial Services",ICT,Supplies & Services,Telephones,Trustmarque Solutions Limited,06/02/2024,"2,867.70"
"Communities, Customer & Commercial Services",ICT,Supplies & Services,Telephones,BRITISH TELECOMMUNICATIONS PLC ,14/02/2024,"7,799.97"
"Communities, Customer & Commercial Services",ICT,Supplies & Services,Text Messages,KONICA MINOLTA BUSINESS SOLUTIONS UK LTD,14/02/2024,384.90
"Communities, Customer & Commercial Services",ICT,Supplies & Services,Telecomms,VODAFONE LTD ,26/02/2024,"1,694.00"
"Communities, Customer & Commercial Services",ICT,Supplies & Services,Comp Hardware (Purch / Hire),CCS MEDIA LIMITED,13/02/2024,"1,080.00"
"Communities, Customer & Commercial Services",ICT,Premises-Related Expenditure,Service Contracts,PP ELECTRICAL SERVICES (Shropshire) Ltd,06/02/2024,220.00
"Communities, Customer & Commercial Services",ICT,Premises-Related Expenditure,R&M -Building Other,Charlton Academy,29/02/2024,"3,427.28"
"Communities, Customer & Commercial Services",ICT,Supplies & Services,Comp Software (Purch / Hire),JISC,16/02/2024,"2,000.00"
"Communities, Customer & Commercial Services",ICT,Supplies & Services,Comp Software (Purch / Hire),PHOENIX SOFTWARE LTD,06/02/2024,"15,565.11"
"Communities, Customer & Commercial Services",ICT,Supplies & Services,Comp Software (Purch / Hire),ICS.Al Ltd,14/02/2024,"4,053.00"
"Communities, Customer & Commercial Services",ICT,Supplies & Services,External Computer Use,DSP-Explorer,14/02/2024,"24,000.00"
"Communities, Customer & Commercial Services",ICT,Supplies & Services,Comp Software (Purch / Hire),PHOENIX SOFTWARE LTD,13/02/2024,"5,647.73"
"Communities, Customer & Commercial Services",ICT,Supplies & Services,Comp Software (Purch / Hire),PHOENIX SOFTWARE LTD,13/02/2024,"4,064.44"
"Communities, Customer & Commercial Services",ICT,Supplies & Services,Comp Software (Purch / Hire),PHOENIX SOFTWARE LTD,21/02/2024,"2,500.00"
"Communities, Customer & Commercial Services",ICT,Supplies & Services,Comp Software (Purch / Hire),PHOENIX SOFTWARE LTD,29/02/2024,"16,826.76"
"Communities, Customer & Commercial Services",ICT,Supplies & Services,Comp Software (Purch / Hire),ROL Solutions Ltd,28/02/2024,"2,971.00"
"Communities, Customer & Commercial Services",ICT,Supplies & Services,Comp Software (Purch / Hire),PHOENIX SOFTWARE LTD,28/02/2024,914.04
"Communities, Customer & Commercial Services",ICT,Supplies & Services,Equipment - Hire,RICOH UK LIMITED,26/02/2024,"3,317.73"
"Communities, Customer & Commercial Services",ICT,Supplies & Services,Photocopying,RICOH UK LIMITED,26/02/2024,"1,965.04"
"Communities, Customer & Commercial Services",ICT,Supplies & Services,Photocopying,RICOH UK LIMITED,26/02/2024,237.20
"Communities, Customer & Commercial Services",ICT,Supplies & Services,Comp Software (Purch / Hire),PHOENIX SOFTWARE LTD,28/02/2024,507.80
"Communities, Customer & Commercial Services",ICT,Supplies & Services,Comp Hardware (Purch / Hire),CCS MEDIA LIMITED,26/02/2024,144.00
"Communities, Customer & Commercial Services",ICT,Supplies & Services,Comp Software (Purch / Hire),Bromcom Computers Plc,12/02/2024,"1,150.00"
"Communities, Customer & Commercial Services",ICT,Supplies & Services,Comp Software (Purch / Hire),Bromcom Computers Plc,12/02/2024,"1,614.40"
"Communities, Customer & Commercial Services",ICT,Supplies & Services,Comp Software (Purch / Hire),PHOENIX SOFTWARE LTD,21/02/2024,152.34
"Communities, Customer & Commercial Services",ICT,Supplies & Services,Comp Software (Purch / Hire),Bromcom Computers Plc,14/02/2024,"1,803.70"
"Communities, Customer & Commercial Services",Sport & Leisure,Capital Expenditure,Fixtures & Fittings & Equipment,Head UK Limited,26/02/2024,"7,726.94"
"Communities, Customer & Commercial Services",Sport & Leisure,Premises-Related Expenditure,Clean Mats & Toilet Requisites,Border Janitorial Supplies Limited,22/02/2024,820.00
"Communities, Customer & Commercial Services",Sport & Leisure,Premises-Related Expenditure,Clean Mats & Toilet Requisites,Border Janitorial Supplies Limited,08/02/2024,145.73
"Communities, Customer & Commercial Services",Sport & Leisure,Premises-Related Expenditure,Clean Mats & Toilet Requisites,Border Janitorial Supplies Limited,08/02/2024,422.37
"Communities, Customer & Commercial Services",Sport & Leisure,Premises-Related Expenditure,Clean Mats & Toilet Requisites,Border Janitorial Supplies Limited,08/02/2024,115.41
"Communities, Customer & Commercial Services",Sport & Leisure,Premises-Related Expenditure,Clean Mats & Toilet Requisites,Border Janitorial Supplies Limited,08/02/2024,177.01
"Communities, Customer & Commercial Services",Sport & Leisure,Premises-Related Expenditure,Clean Mats & Toilet Requisites,Border Janitorial Supplies Limited,08/02/2024,474.71
"Communities, Customer & Commercial Services",Sport & Leisure,Premises-Related Expenditure,Clean Mats & Toilet Requisites,Border Janitorial Supplies Limited,08/02/2024,275.59
"Communities, Customer & Commercial Services",Sport & Leisure,Premises-Related Expenditure,Clean Mats & Toilet Requisites,Border Janitorial Supplies Limited,08/02/2024,"1,168.67"
"Communities, Customer & Commercial Services",Sport & Leisure,Premises-Related Expenditure,Clean Mats & Toilet Requisites,Border Janitorial Supplies Limited,08/02/2024,293.19
"Communities, Customer & Commercial Services",Sport & Leisure,Premises-Related Expenditure,Clean Mats & Toilet Requisites,Border Janitorial Supplies Limited,08/02/2024,142.74
"Communities, Customer & Commercial Services",Sport & Leisure,Premises-Related Expenditure,Clean Mats & Toilet Requisites,Border Janitorial Supplies Limited,08/02/2024,262.17
"Communities, Customer & Commercial Services",Sport & Leisure,Premises-Related Expenditure,Clean Mats & Toilet Requisites,Border Janitorial Supplies Limited,08/02/2024,259.02
"Communities, Customer & Commercial Services",Sport & Leisure,Premises-Related Expenditure,Clean Mats & Toilet Requisites,Border Janitorial Supplies Limited,08/02/2024,262.52
"Communities, Customer & Commercial Services",Sport & Leisure,Premises-Related Expenditure,Clean Mats & Toilet Requisites,Border Janitorial Supplies Limited,08/02/2024,179.13
"Communities, Customer & Commercial Services",Sport & Leisure,Premises-Related Expenditure,Clean Mats & Toilet Requisites,Border Janitorial Supplies Limited,08/02/2024,259.43
"Communities, Customer & Commercial Services",Sport & Leisure,Premises-Related Expenditure,Clean Mats & Toilet Requisites,Border Janitorial Supplies Limited,08/02/2024,243.59
"Communities, Customer & Commercial Services",Sport & Leisure,Premises-Related Expenditure,Clean Mats & Toilet Requisites,Border Janitorial Supplies Limited,08/02/2024,497.05
"Communities, Customer & Commercial Services",Sport & Leisure,Premises-Related Expenditure,Clean Mats & Toilet Requisites,Border Janitorial Supplies Limited,08/02/2024,408.40
"Communities, Customer & Commercial Services",Sport & Leisure,Premises-Related Expenditure,Clean Mats & Toilet Requisites,Border Janitorial Supplies Limited,08/02/2024,244.07
"Communities, Customer & Commercial Services",Sport & Leisure,Premises-Related Expenditure,Clean Mats & Toilet Requisites,Border Janitorial Supplies Limited,15/02/2024,108.54
"Communities, Customer & Commercial Services",Sport & Leisure,Premises-Related Expenditure,Clean Mats & Toilet Requisites,Border Janitorial Supplies Limited,29/02/2024,106.02
"Communities, Customer & Commercial Services",Sport & Leisure,Premises-Related Expenditure,Clean Mats & Toilet Requisites,Border Janitorial Supplies Limited,29/02/2024,262.17
"Communities, Customer & Commercial Services",Sport & Leisure,Premises-Related Expenditure,Clean Mats & Toilet Requisites,Border Janitorial Supplies Limited,29/02/2024,246.71
"Communities, Customer & Commercial Services",Sport & Leisure,Premises-Related Expenditure,Clean Mats & Toilet Requisites,Border Janitorial Supplies Limited,29/02/2024,826.80
"Communities, Customer & Commercial Services",Sport & Leisure,Premises-Related Expenditure,Clean Mats & Toilet Requisites,Border Janitorial Supplies Limited,08/02/2024,267.58
"Communities, Customer & Commercial Services",Sport & Leisure,Premises-Related Expenditure,Clean Mats & Toilet Requisites,Border Janitorial Supplies Limited,08/02/2024,158.19
"Communities, Customer & Commercial Services",Sport & Leisure,Premises-Related Expenditure,Clean Mats & Toilet Requisites,Border Janitorial Supplies Limited,08/02/2024,117.87
"Communities, Customer & Commercial Services",Sport & Leisure,Premises-Related Expenditure,Clean Mats & Toilet Requisites,Border Janitorial Supplies Limited,26/02/2024,294.03
"Communities, Customer & Commercial Services",Sport & Leisure,Premises-Related Expenditure,Clean Mats & Toilet Requisites,Border Janitorial Supplies Limited,26/02/2024,103.82
"Communities, Customer & Commercial Services",Sport & Leisure,Premises-Related Expenditure,Clean Mats & Toilet Requisites,Border Janitorial Supplies Limited,26/02/2024,102.26
"Communities, Customer & Commercial Services",Sport & Leisure,Premises-Related Expenditure,Clean Mats & Toilet Requisites,Border Janitorial Supplies Limited,09/02/2024,322.49
"Communities, Customer & Commercial Services",Sport & Leisure,Premises-Related Expenditure,Clean Mats & Toilet Requisites,Border Janitorial Supplies Limited,01/02/2024,216.12
"Communities, Customer & Commercial Services",Sport & Leisure,Premises-Related Expenditure,Clean Mats & Toilet Requisites,Border Janitorial Supplies Limited,01/02/2024,327.40
"Communities, Customer & Commercial Services",Sport & Leisure,Premises-Related Expenditure,Clean Mats & Toilet Requisites,Border Janitorial Supplies Limited,08/02/2024,528.66
"Communities, Customer & Commercial Services",Sport & Leisure,Premises-Related Expenditure,Clean Mats & Toilet Requisites,Border Janitorial Supplies Limited,08/02/2024,100.71
"Communities, Customer & Commercial Services",Sport & Leisure,Premises-Related Expenditure,Clean Mats & Toilet Requisites,Border Janitorial Supplies Limited,09/02/2024,425.88
"Communities, Customer & Commercial Services",Sport & Leisure,Premises-Related Expenditure,Clean Mats & Toilet Requisites,Border Janitorial Supplies Limited,09/02/2024,106.04
"Communities, Customer & Commercial Services",Sport & Leisure,Premises-Related Expenditure,Clean Mats & Toilet Requisites,Border Janitorial Supplies Limited,15/02/2024,247.03
"Communities, Customer & Commercial Services",Sport & Leisure,Premises-Related Expenditure,Clean Mats & Toilet Requisites,Border Janitorial Supplies Limited,08/02/2024,163.56
"Communities, Customer & Commercial Services",Sport & Leisure,Premises-Related Expenditure,Clean Mats & Toilet Requisites,Border Janitorial Supplies Limited,08/02/2024,104.83
"Communities, Customer & Commercial Services",Sport & Leisure,Supplies & Services,Protective Clothing,MYWORKWEAR,22/02/2024,140.62
"Communities, Customer & Commercial Services",Sport & Leisure,Premises-Related Expenditure,Clean Mats & Toilet Requisites,Border Janitorial Supplies Limited,15/02/2024,"1,116.56"
"Communities, Customer & Commercial Services",Sport & Leisure,Premises-Related Expenditure,Clean Mats & Toilet Requisites,Border Janitorial Supplies Limited,15/02/2024,108.13
"Communities, Customer & Commercial Services",Sport & Leisure,Premises-Related Expenditure,Clean Mats & Toilet Requisites,Border Janitorial Supplies Limited,15/02/2024,297.31
"Communities, Customer & Commercial Services",Sport & Leisure,Premises-Related Expenditure,Clean Mats & Toilet Requisites,Border Janitorial Supplies Limited,29/02/2024,190.66
"Communities, Customer & Commercial Services",Sport & Leisure,Premises-Related Expenditure,Clean Mats & Toilet Requisites,Border Janitorial Supplies Limited,29/02/2024,102.25
"Communities, Customer & Commercial Services",Sport & Leisure,Premises-Related Expenditure,Clean Mats & Toilet Requisites,Border Janitorial Supplies Limited,08/02/2024,128.86
"Communities, Customer & Commercial Services",Sport & Leisure,Premises-Related Expenditure,Clean Mats & Toilet Requisites,Border Janitorial Supplies Limited,08/02/2024,113.01
"Communities, Customer & Commercial Services",Sport & Leisure,Premises-Related Expenditure,Clean Mats & Toilet Requisites,Border Janitorial Supplies Limited,08/02/2024,323.71
"Communities, Customer & Commercial Services",Sport & Leisure,Premises-Related Expenditure,Clean Mats & Toilet Requisites,Border Janitorial Supplies Limited,08/02/2024,143.93
"Communities, Customer & Commercial Services",Sport & Leisure,Premises-Related Expenditure,Clean Mats & Toilet Requisites,Border Janitorial Supplies Limited,22/02/2024,404.26
"Communities, Customer & Commercial Services",Sport & Leisure,Premises-Related Expenditure,Clean Mats & Toilet Requisites,Border Janitorial Supplies Limited,22/02/2024,175.28
"Communities, Customer & Commercial Services",Sport & Leisure,Premises-Related Expenditure,Clean Mats & Toilet Requisites,Border Janitorial Supplies Limited,22/02/2024,222.08
"Communities, Customer & Commercial Services",Sport & Leisure,Premises-Related Expenditure,Clean Mats & Toilet Requisites,Border Janitorial Supplies Limited,22/02/2024,135.29
"Communities, Customer & Commercial Services",Sport & Leisure,Premises-Related Expenditure,Clean Mats & Toilet Requisites,Border Janitorial Supplies Limited,26/02/2024,129.70
"Communities, Customer & Commercial Services",Sport & Leisure,Premises-Related Expenditure,Clean Mats & Toilet Requisites,Border Janitorial Supplies Limited,26/02/2024,203.55
"Communities, Customer & Commercial Services",Sport & Leisure,Premises-Related Expenditure,Clean Mats & Toilet Requisites,Border Janitorial Supplies Limited,26/02/2024,296.98
"Communities, Customer & Commercial Services",Sport & Leisure,Premises-Related Expenditure,Clean Mats & Toilet Requisites,Border Janitorial Supplies Limited,26/02/2024,897.22
"Communities, Customer & Commercial Services",Sport & Leisure,Premises-Related Expenditure,Clean Mats & Toilet Requisites,Border Janitorial Supplies Limited,09/02/2024,305.48
"Communities, Customer & Commercial Services",Sport & Leisure,Premises-Related Expenditure,Clean Mats & Toilet Requisites,Border Janitorial Supplies Limited,09/02/2024,103.33
"Communities, Customer & Commercial Services",Sport & Leisure,Premises-Related Expenditure,Clean Mats & Toilet Requisites,Border Janitorial Supplies Limited,01/02/2024,110.86
"Communities, Customer & Commercial Services",Sport & Leisure,Premises-Related Expenditure,Clean Mats & Toilet Requisites,Border Janitorial Supplies Limited,01/02/2024,120.65
"Communities, Customer & Commercial Services",Sport & Leisure,Premises-Related Expenditure,Clean Mats & Toilet Requisites,Border Janitorial Supplies Limited,01/02/2024,154.89
"Communities, Customer & Commercial Services",Sport & Leisure,Premises-Related Expenditure,Clean Mats & Toilet Requisites,Border Janitorial Supplies Limited,08/02/2024,111.59
"Communities, Customer & Commercial Services",Sport & Leisure,Premises-Related Expenditure,Clean Mats & Toilet Requisites,Border Janitorial Supplies Limited,08/02/2024,129.35
"Communities, Customer & Commercial Services",Sport & Leisure,Premises-Related Expenditure,Clean Mats & Toilet Requisites,Border Janitorial Supplies Limited,08/02/2024,150.01
"Communities, Customer & Commercial Services",Sport & Leisure,Premises-Related Expenditure,Clean Mats & Toilet Requisites,Border Janitorial Supplies Limited,09/02/2024,227.99
"Communities, Customer & Commercial Services",Sport & Leisure,Premises-Related Expenditure,Clean Mats & Toilet Requisites,Border Janitorial Supplies Limited,09/02/2024,351.19
"Communities, Customer & Commercial Services",Sport & Leisure,Premises-Related Expenditure,Clean Mats & Toilet Requisites,Border Janitorial Supplies Limited,21/02/2024,357.14
"Communities, Customer & Commercial Services",Sport & Leisure,Premises-Related Expenditure,Clean Mats & Toilet Requisites,Border Janitorial Supplies Limited,21/02/2024,194.64
"Communities, Customer & Commercial Services",Sport & Leisure,Premises-Related Expenditure,Clean Mats & Toilet Requisites,Border Janitorial Supplies Limited,21/02/2024,192.35
"Communities, Customer & Commercial Services",Sport & Leisure,Premises-Related Expenditure,Clean Mats & Toilet Requisites,Border Janitorial Supplies Limited,15/02/2024,113.84
"Communities, Customer & Commercial Services",Sport & Leisure,Premises-Related Expenditure,Electricity,EON next,09/02/2024,247.08
"Communities, Customer & Commercial Services",Sport & Leisure,Premises-Related Expenditure,Trade Refuse,FCC Recycling (UK) Ltd,06/02/2024,777.35
"Communities, Customer & Commercial Services",Sport & Leisure,Premises-Related Expenditure,Trade Refuse,FCC Recycling (UK) Ltd ,06/02/2024,"-1,110.50"
"Communities, Customer & Commercial Services",Sport & Leisure,Supplies & Services,Crockery/Hardware/Light Equip,CALTEL CATERING & LAUNDRY EQUIPMENT LLP,16/02/2024,250.25
"Communities, Customer & Commercial Services",Sport & Leisure,Supplies & Services,Crockery/Hardware/Light Equip,CALTEL CATERING & LAUNDRY EQUIPMENT LLP,16/02/2024,249.00
"Communities, Customer & Commercial Services",Sport & Leisure,Supplies & Services,EEC Whole Milk,JOHAL DAIRIES,09/02/2024,"1,768.40"
"Communities, Customer & Commercial Services",Sport & Leisure,Supplies & Services,EEC Whole Milk,JOHAL DAIRIES,09/02/2024,794.95
"Communities, Customer & Commercial Services",Sport & Leisure,Supplies & Services,EEC Whole Milk,JOHAL DAIRIES,16/02/2024,798.85
"Communities, Customer & Commercial Services",Sport & Leisure,Supplies & Services,EEC Whole Milk,JOHAL DAIRIES,16/02/2024,"1,768.40"
"Communities, Customer & Commercial Services",Sport & Leisure,Supplies & Services,EEC Whole Milk,JOHAL DAIRIES,27/02/2024,798.85
"Communities, Customer & Commercial Services",Sport & Leisure,Supplies & Services,EEC Whole Milk,JOHAL DAIRIES,27/02/2024,"1,710.96"
"Communities, Customer & Commercial Services",Sport & Leisure,Supplies & Services,Provisions,BIKOLD,08/02/2024,134.67
"Communities, Customer & Commercial Services",Sport & Leisure,Supplies & Services,Provisions,BIKOLD,01/02/2024,149.20
"Communities, Customer & Commercial Services",Sport & Leisure,Employees,Agency Supply Costs,TOTAL CATERING SOLUTONS RECRUITMENT LTD,02/02/2024,273.92
"Communities, Customer & Commercial Services",Sport & Leisure,Employees,Agency Supply Costs,TOTAL CATERING SOLUTONS RECRUITMENT LTD,02/02/2024,342.40
"Communities, Customer & Commercial Services",Sport & Leisure,Employees,Agency Supply Costs,TOTAL CATERING SOLUTONS RECRUITMENT LTD,02/02/2024,342.40
"Communities, Customer & Commercial Services",Sport & Leisure,Employees,Agency Supply Costs,TOTAL CATERING SOLUTONS RECRUITMENT LTD,02/02/2024,273.92
"Communities, Customer & Commercial Services",Sport & Leisure,Employees,Agency Supply Costs,TOTAL CATERING SOLUTONS RECRUITMENT LTD,02/02/2024,342.40
"Communities, Customer & Commercial Services",Sport & Leisure,Employees,Agency Supply Costs,TOTAL CATERING SOLUTONS RECRUITMENT LTD,02/02/2024,342.40
"Communities, Customer & Commercial Services",Sport & Leisure,Employees,Agency Supply Costs,TOTAL CATERING SOLUTONS RECRUITMENT LTD,09/02/2024,342.40
"Communities, Customer & Commercial Services",Sport & Leisure,Employees,Agency Supply Costs,TOTAL CATERING SOLUTONS RECRUITMENT LTD,09/02/2024,342.40
"Communities, Customer & Commercial Services",Sport & Leisure,Employees,Agency Supply Costs,TOTAL CATERING SOLUTONS RECRUITMENT LTD,09/02/2024,333.84
"Communities, Customer & Commercial Services",Sport & Leisure,Employees,Agency Supply Costs,TOTAL CATERING SOLUTONS RECRUITMENT LTD,09/02/2024,273.92
"Communities, Customer & Commercial Services",Sport & Leisure,Employees,Agency Supply Costs,TOTAL CATERING SOLUTONS RECRUITMENT LTD,09/02/2024,342.40
"Communities, Customer & Commercial Services",Sport & Leisure,Employees,Agency Supply Costs,TOTAL CATERING SOLUTONS RECRUITMENT LTD,09/02/2024,248.24
"Communities, Customer & Commercial Services",Sport & Leisure,Employees,Agency Supply Costs,TOTAL CATERING SOLUTONS RECRUITMENT LTD,16/02/2024,342.40
"Communities, Customer & Commercial Services",Sport & Leisure,Employees,Agency Supply Costs,TOTAL CATERING SOLUTONS RECRUITMENT LTD,16/02/2024,342.40
"Communities, Customer & Commercial Services",Sport & Leisure,Employees,Agency Supply Costs,TOTAL CATERING SOLUTONS RECRUITMENT LTD,16/02/2024,350.96
"Communities, Customer & Commercial Services",Sport & Leisure,Employees,Agency Supply Costs,TOTAL CATERING SOLUTONS RECRUITMENT LTD,16/02/2024,342.40
"Communities, Customer & Commercial Services",Sport & Leisure,Employees,Agency Supply Costs,TOTAL CATERING SOLUTONS RECRUITMENT LTD,16/02/2024,273.92
"Communities, Customer & Commercial Services",Sport & Leisure,Employees,Agency Supply Costs,TOTAL CATERING SOLUTONS RECRUITMENT LTD,16/02/2024,342.40
"Communities, Customer & Commercial Services",Sport & Leisure,Employees,Agency Supply Costs,TOTAL CATERING SOLUTONS RECRUITMENT LTD,27/02/2024,342.40
"Communities, Customer & Commercial Services",Sport & Leisure,Employees,Agency Supply Costs,TOTAL CATERING SOLUTONS RECRUITMENT LTD,27/02/2024,273.92
"Communities, Customer & Commercial Services",Sport & Leisure,Employees,Agency Supply Costs,TOTAL CATERING SOLUTONS RECRUITMENT LTD,27/02/2024,342.40
"Communities, Customer & Commercial Services",Sport & Leisure,Employees,Agency Supply Costs,TOTAL CATERING SOLUTONS RECRUITMENT LTD,27/02/2024,342.40
"Communities, Customer & Commercial Services",Sport & Leisure,Employees,Agency Supply Costs,TOTAL CATERING SOLUTONS RECRUITMENT LTD,27/02/2024,342.40
"Communities, Customer & Commercial Services",Sport & Leisure,Employees,Agency Supply Costs,TOTAL CATERING SOLUTONS RECRUITMENT LTD,27/02/2024,273.92
"Communities, Customer & Commercial Services",Sport & Leisure,Employees,Agency Supply Costs,TOTAL CATERING SOLUTONS RECRUITMENT LTD,27/02/2024,273.92
"Communities, Customer & Commercial Services",Sport & Leisure,Premises-Related Expenditure,Clean Mats & Toilet Requisites,Border Janitorial Supplies Limited,02/02/2024,247.48
"Communities, Customer & Commercial Services",Sport & Leisure,Premises-Related Expenditure,Clean Mats & Toilet Requisites,Border Janitorial Supplies Limited,02/02/2024,119.90
"Communities, Customer & Commercial Services",Sport & Leisure,Premises-Related Expenditure,Clean Mats & Toilet Requisites,Border Janitorial Supplies Limited,06/02/2024,269.25
"Communities, Customer & Commercial Services",Sport & Leisure,Premises-Related Expenditure,Clean Mats & Toilet Requisites,Border Janitorial Supplies Limited,06/02/2024,199.30
"Communities, Customer & Commercial Services",Sport & Leisure,Premises-Related Expenditure,Clean Mats & Toilet Requisites,Border Janitorial Supplies Limited,22/02/2024,324.47
"Communities, Customer & Commercial Services",Sport & Leisure,Premises-Related Expenditure,Clean Mats & Toilet Requisites,Border Janitorial Supplies Limited,22/02/2024,-110.93
"Communities, Customer & Commercial Services",Sport & Leisure,Premises-Related Expenditure,Clean Mats & Toilet Requisites,Border Janitorial Supplies Limited,22/02/2024,306.22
"Communities, Customer & Commercial Services",Sport & Leisure,Supplies & Services,Crockery/Hardware/Light Equip,CALTEL CATERING & LAUNDRY EQUIPMENT LLP,09/02/2024,183.00
"Communities, Customer & Commercial Services",Sport & Leisure,Supplies & Services,Crockery/Hardware/Light Equip,CALTEL CATERING & LAUNDRY EQUIPMENT LLP,16/02/2024,122.02
"Communities, Customer & Commercial Services",Sport & Leisure,Supplies & Services,Crockery/Hardware/Light Equip,CALTEL CATERING & LAUNDRY EQUIPMENT LLP,27/02/2024,240.00
"Communities, Customer & Commercial Services",Sport & Leisure,Supplies & Services,Crockery/Hardware/Light Equip,CALTEL CATERING & LAUNDRY EQUIPMENT LLP,27/02/2024,283.79
"Communities, Customer & Commercial Services",Sport & Leisure,Supplies & Services,Provisions,BIKOLD,08/02/2024,164.54
"Communities, Customer & Commercial Services",Sport & Leisure,Supplies & Services,Provisions,BIKOLD,08/02/2024,170.76
"Communities, Customer & Commercial Services",Sport & Leisure,Supplies & Services,Provisions,BIKOLD,08/02/2024,280.78
"Communities, Customer & Commercial Services",Sport & Leisure,Supplies & Services,Provisions,BIKOLD,08/02/2024,203.45
"Communities, Customer & Commercial Services",Sport & Leisure,Supplies & Services,Provisions,BIKOLD,08/02/2024,402.30
"Communities, Customer & Commercial Services",Sport & Leisure,Supplies & Services,Provisions,BIKOLD,08/02/2024,110.98
"Communities, Customer & Commercial Services",Sport & Leisure,Supplies & Services,Provisions,BIKOLD,08/02/2024,130.40
"Communities, Customer & Commercial Services",Sport & Leisure,Supplies & Services,Provisions,BIKOLD,08/02/2024,342.81
"Communities, Customer & Commercial Services",Sport & Leisure,Supplies & Services,Provisions,BIKOLD,08/02/2024,-147.78
"Communities, Customer & Commercial Services",Sport & Leisure,Supplies & Services,Provisions,BIKOLD,08/02/2024,160.11
"Communities, Customer & Commercial Services",Sport & Leisure,Supplies & Services,Provisions,BIKOLD,08/02/2024,424.60
"Communities, Customer & Commercial Services",Sport & Leisure,Supplies & Services,Provisions,BIKOLD,08/02/2024,212.23
"Communities, Customer & Commercial Services",Sport & Leisure,Supplies & Services,Provisions,BIKOLD,08/02/2024,295.82
"Communities, Customer & Commercial Services",Sport & Leisure,Supplies & Services,Provisions,BIKOLD,08/02/2024,195.88
"Communities, Customer & Commercial Services",Sport & Leisure,Supplies & Services,Provisions,BIKOLD,08/02/2024,279.40
"Communities, Customer & Commercial Services",Sport & Leisure,Supplies & Services,Provisions,BIKOLD,08/02/2024,133.79
"Communities, Customer & Commercial Services",Sport & Leisure,Supplies & Services,Provisions,BIKOLD,08/02/2024,198.80
"Communities, Customer & Commercial Services",Sport & Leisure,Supplies & Services,Provisions,BIKOLD,08/02/2024,100.59
"Communities, Customer & Commercial Services",Sport & Leisure,Supplies & Services,Provisions,BIKOLD,08/02/2024,163.74
"Communities, Customer & Commercial Services",Sport & Leisure,Supplies & Services,Provisions,BIKOLD,08/02/2024,142.64
"Communities, Customer & Commercial Services",Sport & Leisure,Supplies & Services,Provisions,BIKOLD,08/02/2024,439.32
"Communities, Customer & Commercial Services",Sport & Leisure,Supplies & Services,Provisions,BIKOLD,08/02/2024,173.41
"Communities, Customer & Commercial Services",Sport & Leisure,Supplies & Services,Provisions,BIKOLD,08/02/2024,429.21
"Communities, Customer & Commercial Services",Sport & Leisure,Supplies & Services,Provisions,BIKOLD,08/02/2024,349.98
"Communities, Customer & Commercial Services",Sport & Leisure,Supplies & Services,Provisions,BIKOLD,08/02/2024,-130.90
"Communities, Customer & Commercial Services",Sport & Leisure,Supplies & Services,Provisions,BIKOLD,08/02/2024,286.92
"Communities, Customer & Commercial Services",Sport & Leisure,Supplies & Services,Provisions,BIKOLD,08/02/2024,592.57
"Communities, Customer & Commercial Services",Sport & Leisure,Supplies & Services,Provisions,BIKOLD,29/02/2024,162.34
"Communities, Customer & Commercial Services",Sport & Leisure,Supplies & Services,Provisions,BIKOLD,29/02/2024,431.49
"Communities, Customer & Commercial Services",Sport & Leisure,Supplies & Services,Provisions,BIKOLD,29/02/2024,161.17
"Communities, Customer & Commercial Services",Sport & Leisure,Supplies & Services,Provisions,BIKOLD,29/02/2024,135.56
"Communities, Customer & Commercial Services",Sport & Leisure,Supplies & Services,Provisions,BIKOLD,29/02/2024,272.14
"Communities, Customer & Commercial Services",Sport & Leisure,Supplies & Services,Provisions,BIKOLD,29/02/2024,259.75
"Communities, Customer & Commercial Services",Sport & Leisure,Supplies & Services,Provisions,BIKOLD,29/02/2024,134.52
"Communities, Customer & Commercial Services",Sport & Leisure,Supplies & Services,Provisions,BIKOLD,29/02/2024,108.92
"Communities, Customer & Commercial Services",Sport & Leisure,Supplies & Services,Provisions,BIKOLD,29/02/2024,178.31
"Communities, Customer & Commercial Services",Sport & Leisure,Supplies & Services,Provisions,BIKOLD,29/02/2024,579.27
"Communities, Customer & Commercial Services",Sport & Leisure,Supplies & Services,Provisions,BIKOLD,29/02/2024,186.75
"Communities, Customer & Commercial Services",Sport & Leisure,Supplies & Services,Provisions,BIKOLD,29/02/2024,158.89
"Communities, Customer & Commercial Services",Sport & Leisure,Supplies & Services,Provisions,BIKOLD,29/02/2024,124.14
"Communities, Customer & Commercial Services",Sport & Leisure,Supplies & Services,Provisions,BIKOLD,29/02/2024,131.92
"Communities, Customer & Commercial Services",Sport & Leisure,Supplies & Services,Provisions,BIKOLD,29/02/2024,148.76
"Communities, Customer & Commercial Services",Sport & Leisure,Supplies & Services,Provisions,BIKOLD,29/02/2024,318.09
"Communities, Customer & Commercial Services",Sport & Leisure,Supplies & Services,Provisions,BIKOLD,29/02/2024,230.25
"Communities, Customer & Commercial Services",Sport & Leisure,Supplies & Services,Provisions,BIKOLD,29/02/2024,549.07
"Communities, Customer & Commercial Services",Sport & Leisure,Supplies & Services,Provisions,BIKOLD,29/02/2024,390.20
"Communities, Customer & Commercial Services",Sport & Leisure,Supplies & Services,Provisions,BIKOLD,29/02/2024,451.55
"Communities, Customer & Commercial Services",Sport & Leisure,Supplies & Services,Provisions,BIKOLD,29/02/2024,201.88
"Communities, Customer & Commercial Services",Sport & Leisure,Supplies & Services,Provisions,BIKOLD,29/02/2024,460.79
"Communities, Customer & Commercial Services",Sport & Leisure,Supplies & Services,Provisions,BIKOLD,29/02/2024,431.92
"Communities, Customer & Commercial Services",Sport & Leisure,Supplies & Services,Provisions,BIKOLD,29/02/2024,315.30
"Communities, Customer & Commercial Services",Sport & Leisure,Supplies & Services,Provisions,BIKOLD,29/02/2024,147.70
"Communities, Customer & Commercial Services",Sport & Leisure,Supplies & Services,Provisions,BIKOLD,29/02/2024,280.22
"Communities, Customer & Commercial Services",Sport & Leisure,Supplies & Services,Provisions,BIKOLD,29/02/2024,147.54
"Communities, Customer & Commercial Services",Sport & Leisure,Supplies & Services,Provisions,BIKOLD,29/02/2024,117.86
"Communities, Customer & Commercial Services",Sport & Leisure,Supplies & Services,Provisions,BIKOLD,29/02/2024,245.28
"Communities, Customer & Commercial Services",Sport & Leisure,Supplies & Services,Provisions,BIKOLD,29/02/2024,340.50
"Communities, Customer & Commercial Services",Sport & Leisure,Supplies & Services,Provisions,BIKOLD,29/02/2024,128.60
"Communities, Customer & Commercial Services",Sport & Leisure,Supplies & Services,Provisions,BIKOLD,29/02/2024,164.23
"Communities, Customer & Commercial Services",Sport & Leisure,Supplies & Services,Provisions,BIKOLD,29/02/2024,165.77
"Communities, Customer & Commercial Services",Sport & Leisure,Supplies & Services,Provisions,BIKOLD,29/02/2024,159.93
"Communities, Customer & Commercial Services",Sport & Leisure,Supplies & Services,Provisions,BIKOLD,29/02/2024,253.36
"Communities, Customer & Commercial Services",Sport & Leisure,Supplies & Services,Provisions,BIKOLD,29/02/2024,340.57
"Communities, Customer & Commercial Services",Sport & Leisure,Supplies & Services,Provisions,BIKOLD,29/02/2024,443.19
"Communities, Customer & Commercial Services",Sport & Leisure,Supplies & Services,Provisions,BIKOLD,29/02/2024,201.58
"Communities, Customer & Commercial Services",Sport & Leisure,Supplies & Services,Provisions,BIKOLD,29/02/2024,102.70
"Communities, Customer & Commercial Services",Sport & Leisure,Supplies & Services,Provisions,BIKOLD,29/02/2024,342.32
"Communities, Customer & Commercial Services",Sport & Leisure,Supplies & Services,Provisions,BIKOLD,29/02/2024,221.31
"Communities, Customer & Commercial Services",Sport & Leisure,Supplies & Services,Provisions,BIKOLD,29/02/2024,105.04
"Communities, Customer & Commercial Services",Sport & Leisure,Supplies & Services,Provisions,BIKOLD,29/02/2024,207.48
"Communities, Customer & Commercial Services",Sport & Leisure,Supplies & Services,Provisions,BIKOLD,29/02/2024,307.67
"Communities, Customer & Commercial Services",Sport & Leisure,Supplies & Services,Provisions,BIKOLD,29/02/2024,157.93
"Communities, Customer & Commercial Services",Sport & Leisure,Supplies & Services,Provisions,BIKOLD,29/02/2024,190.96
"Communities, Customer & Commercial Services",Sport & Leisure,Supplies & Services,Provisions,BIKOLD,29/02/2024,140.40
"Communities, Customer & Commercial Services",Sport & Leisure,Supplies & Services,Provisions,BIKOLD,29/02/2024,110.65
"Communities, Customer & Commercial Services",Sport & Leisure,Supplies & Services,Provisions,BIKOLD,29/02/2024,130.11
"Communities, Customer & Commercial Services",Sport & Leisure,Supplies & Services,Provisions,BIKOLD,29/02/2024,322.69
"Communities, Customer & Commercial Services",Sport & Leisure,Supplies & Services,Provisions,BIKOLD,29/02/2024,410.73
"Communities, Customer & Commercial Services",Sport & Leisure,Supplies & Services,Provisions,BIKOLD,29/02/2024,506.38
"Communities, Customer & Commercial Services",Sport & Leisure,Supplies & Services,Provisions,BIKOLD,29/02/2024,567.50
"Communities, Customer & Commercial Services",Sport & Leisure,Supplies & Services,Provisions,BIKOLD,29/02/2024,209.14
"Communities, Customer & Commercial Services",Sport & Leisure,Supplies & Services,Provisions,BIKOLD,29/02/2024,188.30
"Communities, Customer & Commercial Services",Sport & Leisure,Supplies & Services,Provisions,BIKOLD,29/02/2024,207.64
"Communities, Customer & Commercial Services",Sport & Leisure,Supplies & Services,Provisions,BIKOLD,29/02/2024,489.45
"Communities, Customer & Commercial Services",Sport & Leisure,Supplies & Services,Provisions,BIKOLD,29/02/2024,318.69
"Communities, Customer & Commercial Services",Sport & Leisure,Supplies & Services,Provisions,BIKOLD,29/02/2024,347.05
"Communities, Customer & Commercial Services",Sport & Leisure,Supplies & Services,Provisions,BIKOLD,29/02/2024,108.63
"Communities, Customer & Commercial Services",Sport & Leisure,Supplies & Services,Provisions,BIKOLD,29/02/2024,246.16
"Communities, Customer & Commercial Services",Sport & Leisure,Supplies & Services,Provisions,BIKOLD,29/02/2024,196.92
"Communities, Customer & Commercial Services",Sport & Leisure,Supplies & Services,Provisions,BIKOLD,29/02/2024,483.75
"Communities, Customer & Commercial Services",Sport & Leisure,Supplies & Services,Provisions,BIKOLD,29/02/2024,260.21
"Communities, Customer & Commercial Services",Sport & Leisure,Supplies & Services,Provisions,BIKOLD,29/02/2024,100.61
"Communities, Customer & Commercial Services",Sport & Leisure,Supplies & Services,Provisions,BIKOLD,29/02/2024,163.58
"Communities, Customer & Commercial Services",Sport & Leisure,Supplies & Services,Provisions,BIKOLD,29/02/2024,181.93
"Communities, Customer & Commercial Services",Sport & Leisure,Supplies & Services,Provisions,BIKOLD,29/02/2024,350.84
"Communities, Customer & Commercial Services",Sport & Leisure,Supplies & Services,Provisions,BIKOLD,29/02/2024,238.37
"Communities, Customer & Commercial Services",Sport & Leisure,Supplies & Services,Provisions,BIKOLD,29/02/2024,118.75
"Communities, Customer & Commercial Services",Sport & Leisure,Supplies & Services,Provisions,BIKOLD,29/02/2024,136.21
"Communities, Customer & Commercial Services",Sport & Leisure,Supplies & Services,Provisions,ROWLANDS & COMPANY,09/02/2024,122.15
"Communities, Customer & Commercial Services",Sport & Leisure,Supplies & Services,Provisions,ROWLANDS & COMPANY,09/02/2024,120.54
"Communities, Customer & Commercial Services",Sport & Leisure,Supplies & Services,Provisions,ROWLANDS & COMPANY,09/02/2024,111.22
"Communities, Customer & Commercial Services",Sport & Leisure,Supplies & Services,Provisions,ROWLANDS & COMPANY,09/02/2024,156.24
"Communities, Customer & Commercial Services",Sport & Leisure,Supplies & Services,Provisions,ROWLANDS & COMPANY,09/02/2024,144.23
"Communities, Customer & Commercial Services",Sport & Leisure,Supplies & Services,Provisions,ROWLANDS & COMPANY,09/02/2024,121.36
"Communities, Customer & Commercial Services",Sport & Leisure,Supplies & Services,Provisions,ROWLANDS & COMPANY,09/02/2024,110.13
"Communities, Customer & Commercial Services",Sport & Leisure,Supplies & Services,Provisions,ROWLANDS & COMPANY,09/02/2024,102.25
"Communities, Customer & Commercial Services",Sport & Leisure,Supplies & Services,Provisions,ROWLANDS & COMPANY,09/02/2024,147.65
"Communities, Customer & Commercial Services",Sport & Leisure,Supplies & Services,Provisions,ROWLANDS & COMPANY,09/02/2024,137.28
"Communities, Customer & Commercial Services",Sport & Leisure,Supplies & Services,Provisions,ROWLANDS & COMPANY,09/02/2024,120.66
"Communities, Customer & Commercial Services",Sport & Leisure,Supplies & Services,Provisions,ROWLANDS & COMPANY,09/02/2024,138.30
"Communities, Customer & Commercial Services",Sport & Leisure,Supplies & Services,Provisions,ROWLANDS & COMPANY,09/02/2024,105.09
"Communities, Customer & Commercial Services",Sport & Leisure,Supplies & Services,Provisions,ROWLANDS & COMPANY,09/02/2024,104.57
"Communities, Customer & Commercial Services",Sport & Leisure,Supplies & Services,Provisions,ROWLANDS & COMPANY,09/02/2024,101.12
"Communities, Customer & Commercial Services",Sport & Leisure,Supplies & Services,Provisions,ROWLANDS & COMPANY,09/02/2024,120.64
"Communities, Customer & Commercial Services",Sport & Leisure,Supplies & Services,Provisions,ROWLANDS & COMPANY,09/02/2024,106.06
"Communities, Customer & Commercial Services",Sport & Leisure,Supplies & Services,Provisions,ROWLANDS & COMPANY,09/02/2024,259.87
"Communities, Customer & Commercial Services",Sport & Leisure,Supplies & Services,Provisions,ROWLANDS & COMPANY,09/02/2024,112.01
"Communities, Customer & Commercial Services",Sport & Leisure,Supplies & Services,Provisions,ROWLANDS & COMPANY,09/02/2024,138.72
"Communities, Customer & Commercial Services",Sport & Leisure,Supplies & Services,Provisions,ROWLANDS & COMPANY,09/02/2024,130.80
"Communities, Customer & Commercial Services",Sport & Leisure,Supplies & Services,Provisions,ROWLANDS & COMPANY,09/02/2024,230.72
"Communities, Customer & Commercial Services",Sport & Leisure,Supplies & Services,Provisions,BIKOLD,01/02/2024,176.23
"Communities, Customer & Commercial Services",Sport & Leisure,Supplies & Services,Provisions,BIKOLD,01/02/2024,173.69
"Communities, Customer & Commercial Services",Sport & Leisure,Supplies & Services,Provisions,BIKOLD,01/02/2024,266.58
"Communities, Customer & Commercial Services",Sport & Leisure,Supplies & Services,Provisions,BIKOLD,01/02/2024,323.57
"Communities, Customer & Commercial Services",Sport & Leisure,Supplies & Services,Provisions,BIKOLD,01/02/2024,273.44
"Communities, Customer & Commercial Services",Sport & Leisure,Supplies & Services,Provisions,BIKOLD,01/02/2024,419.46
"Communities, Customer & Commercial Services",Sport & Leisure,Supplies & Services,Provisions,BIKOLD,01/02/2024,505.77
"Communities, Customer & Commercial Services",Sport & Leisure,Supplies & Services,Provisions,BIKOLD,01/02/2024,123.20
"Communities, Customer & Commercial Services",Sport & Leisure,Supplies & Services,Provisions,BIKOLD,01/02/2024,238.35
"Communities, Customer & Commercial Services",Sport & Leisure,Supplies & Services,Provisions,BIKOLD,01/02/2024,395.84
"Communities, Customer & Commercial Services",Sport & Leisure,Supplies & Services,Provisions,BIKOLD,01/02/2024,100.54
"Communities, Customer & Commercial Services",Sport & Leisure,Supplies & Services,Provisions,BIKOLD,01/02/2024,211.93
"Communities, Customer & Commercial Services",Sport & Leisure,Supplies & Services,Provisions,BIKOLD,01/02/2024,569.64
"Communities, Customer & Commercial Services",Sport & Leisure,Supplies & Services,Provisions,BIKOLD,01/02/2024,145.99
"Communities, Customer & Commercial Services",Sport & Leisure,Supplies & Services,Provisions,BIKOLD,01/02/2024,161.63
"Communities, Customer & Commercial Services",Sport & Leisure,Supplies & Services,Provisions,BIKOLD,01/02/2024,-292.92
"Communities, Customer & Commercial Services",Sport & Leisure,Supplies & Services,Provisions,BIKOLD,01/02/2024,254.61
"Communities, Customer & Commercial Services",Sport & Leisure,Supplies & Services,Provisions,BIKOLD,01/02/2024,376.21
"Communities, Customer & Commercial Services",Sport & Leisure,Supplies & Services,Provisions,BIKOLD,01/02/2024,192.45
"Communities, Customer & Commercial Services",Sport & Leisure,Supplies & Services,Provisions,BIKOLD,01/02/2024,254.85
"Communities, Customer & Commercial Services",Sport & Leisure,Supplies & Services,Provisions,BIKOLD,01/02/2024,157.18
"Communities, Customer & Commercial Services",Sport & Leisure,Supplies & Services,Provisions,BIKOLD,01/02/2024,300.59
"Communities, Customer & Commercial Services",Sport & Leisure,Supplies & Services,Provisions,BIKOLD,01/02/2024,259.78
"Communities, Customer & Commercial Services",Sport & Leisure,Supplies & Services,Provisions,BIKOLD,01/02/2024,578.61
"Communities, Customer & Commercial Services",Sport & Leisure,Supplies & Services,Provisions,BIKOLD,01/02/2024,167.30
"Communities, Customer & Commercial Services",Sport & Leisure,Supplies & Services,Provisions,BIKOLD,01/02/2024,302.78
"Communities, Customer & Commercial Services",Sport & Leisure,Supplies & Services,Provisions,BIKOLD,01/02/2024,321.74
"Communities, Customer & Commercial Services",Sport & Leisure,Supplies & Services,Provisions,BIKOLD,01/02/2024,202.92
"Communities, Customer & Commercial Services",Sport & Leisure,Supplies & Services,Provisions,BIKOLD,01/02/2024,296.30
"Communities, Customer & Commercial Services",Sport & Leisure,Supplies & Services,Provisions,BIKOLD,01/02/2024,104.86
"Communities, Customer & Commercial Services",Sport & Leisure,Supplies & Services,Provisions,BIKOLD,01/02/2024,104.67
"Communities, Customer & Commercial Services",Sport & Leisure,Supplies & Services,Provisions,BIKOLD,01/02/2024,362.72
"Communities, Customer & Commercial Services",Sport & Leisure,Supplies & Services,Provisions,BIKOLD,01/02/2024,329.00
"Communities, Customer & Commercial Services",Sport & Leisure,Supplies & Services,Provisions,BIKOLD,01/02/2024,114.62
"Communities, Customer & Commercial Services",Sport & Leisure,Supplies & Services,Provisions,BIKOLD,01/02/2024,103.93
"Communities, Customer & Commercial Services",Sport & Leisure,Supplies & Services,Provisions,BIKOLD,01/02/2024,141.95
"Communities, Customer & Commercial Services",Sport & Leisure,Supplies & Services,Provisions,BIKOLD,01/02/2024,202.54
"Communities, Customer & Commercial Services",Sport & Leisure,Supplies & Services,Provisions,BIKOLD,01/02/2024,141.74
"Communities, Customer & Commercial Services",Sport & Leisure,Supplies & Services,Provisions,BIKOLD,01/02/2024,167.69
"Communities, Customer & Commercial Services",Sport & Leisure,Supplies & Services,Provisions,BIKOLD,01/02/2024,287.61
"Communities, Customer & Commercial Services",Sport & Leisure,Supplies & Services,Provisions,BIKOLD,01/02/2024,128.39
"Communities, Customer & Commercial Services",Sport & Leisure,Supplies & Services,Provisions,BIKOLD,01/02/2024,196.95
"Communities, Customer & Commercial Services",Sport & Leisure,Supplies & Services,Provisions,BIKOLD,01/02/2024,355.50
"Communities, Customer & Commercial Services",Sport & Leisure,Supplies & Services,Provisions,BIKOLD,01/02/2024,118.37
"Communities, Customer & Commercial Services",Sport & Leisure,Supplies & Services,Provisions,BIKOLD,01/02/2024,264.94
"Communities, Customer & Commercial Services",Sport & Leisure,Supplies & Services,Provisions,BIKOLD,01/02/2024,208.21
"Communities, Customer & Commercial Services",Sport & Leisure,Supplies & Services,Provisions,BIKOLD,01/02/2024,353.09
"Communities, Customer & Commercial Services",Sport & Leisure,Supplies & Services,Provisions,BIKOLD,01/02/2024,612.02
"Communities, Customer & Commercial Services",Sport & Leisure,Supplies & Services,Provisions,BIKOLD,01/02/2024,395.73
"Communities, Customer & Commercial Services",Sport & Leisure,Supplies & Services,Provisions,BIKOLD,01/02/2024,110.30
"Communities, Customer & Commercial Services",Sport & Leisure,Supplies & Services,Provisions,BIKOLD,01/02/2024,103.31
"Communities, Customer & Commercial Services",Sport & Leisure,Supplies & Services,Provisions,BIKOLD,01/02/2024,100.48
"Communities, Customer & Commercial Services",Sport & Leisure,Supplies & Services,Provisions,BIKOLD,01/02/2024,240.88
"Communities, Customer & Commercial Services",Sport & Leisure,Supplies & Services,Provisions,BIKOLD,01/02/2024,104.54
"Communities, Customer & Commercial Services",Sport & Leisure,Supplies & Services,Provisions,BIKOLD,01/02/2024,327.39
"Communities, Customer & Commercial Services",Sport & Leisure,Supplies & Services,Provisions,BIKOLD,01/02/2024,360.51
"Communities, Customer & Commercial Services",Sport & Leisure,Supplies & Services,Provisions,BIKOLD,01/02/2024,147.53
"Communities, Customer & Commercial Services",Sport & Leisure,Supplies & Services,Provisions,BIKOLD,01/02/2024,667.76
"Communities, Customer & Commercial Services",Sport & Leisure,Supplies & Services,Provisions,BIKOLD,01/02/2024,658.42
"Communities, Customer & Commercial Services",Sport & Leisure,Supplies & Services,Provisions,BIKOLD,01/02/2024,298.61
"Communities, Customer & Commercial Services",Sport & Leisure,Supplies & Services,Provisions,BIKOLD,01/02/2024,566.48
"Communities, Customer & Commercial Services",Sport & Leisure,Supplies & Services,Provisions,BIKOLD,01/02/2024,409.01
"Communities, Customer & Commercial Services",Sport & Leisure,Supplies & Services,Provisions,BIKOLD,01/02/2024,130.16
"Communities, Customer & Commercial Services",Sport & Leisure,Supplies & Services,Provisions,BIKOLD,01/02/2024,454.31
"Communities, Customer & Commercial Services",Sport & Leisure,Supplies & Services,Provisions,BIKOLD,01/02/2024,186.86
"Communities, Customer & Commercial Services",Sport & Leisure,Supplies & Services,Provisions,BIKOLD,01/02/2024,454.17
"Communities, Customer & Commercial Services",Sport & Leisure,Supplies & Services,Provisions,BIKOLD,01/02/2024,449.63
"Communities, Customer & Commercial Services",Sport & Leisure,Supplies & Services,Provisions,BIKOLD,01/02/2024,218.85
"Communities, Customer & Commercial Services",Sport & Leisure,Supplies & Services,Provisions,BIKOLD,01/02/2024,324.89
"Communities, Customer & Commercial Services",Sport & Leisure,Supplies & Services,Provisions,BIKOLD,01/02/2024,161.38
"Communities, Customer & Commercial Services",Sport & Leisure,Supplies & Services,Provisions,BIKOLD,01/02/2024,327.70
"Communities, Customer & Commercial Services",Sport & Leisure,Supplies & Services,Provisions,BIKOLD,01/02/2024,419.24
"Communities, Customer & Commercial Services",Sport & Leisure,Supplies & Services,Provisions,BIKOLD,01/02/2024,133.76
"Communities, Customer & Commercial Services",Sport & Leisure,Supplies & Services,Provisions,BIKOLD,01/02/2024,465.25
"Communities, Customer & Commercial Services",Sport & Leisure,Supplies & Services,Provisions,BIKOLD,01/02/2024,142.38
"Communities, Customer & Commercial Services",Sport & Leisure,Supplies & Services,Provisions,BIKOLD,01/02/2024,491.41
"Communities, Customer & Commercial Services",Sport & Leisure,Supplies & Services,Provisions,BIKOLD,01/02/2024,543.18
"Communities, Customer & Commercial Services",Sport & Leisure,Supplies & Services,Provisions,BIKOLD,01/02/2024,173.15
"Communities, Customer & Commercial Services",Sport & Leisure,Supplies & Services,Provisions,BIKOLD,01/02/2024,114.98
"Communities, Customer & Commercial Services",Sport & Leisure,Supplies & Services,Provisions,BIKOLD,01/02/2024,151.39
"Communities, Customer & Commercial Services",Sport & Leisure,Supplies & Services,Provisions,BIKOLD,01/02/2024,122.79
"Communities, Customer & Commercial Services",Sport & Leisure,Supplies & Services,Provisions,BIKOLD,01/02/2024,122.92
"Communities, Customer & Commercial Services",Sport & Leisure,Supplies & Services,Provisions,BIKOLD,01/02/2024,113.88
"Communities, Customer & Commercial Services",Sport & Leisure,Supplies & Services,Provisions,BIKOLD,01/02/2024,127.62
"Communities, Customer & Commercial Services",Sport & Leisure,Supplies & Services,Provisions,BIKOLD,01/02/2024,101.12
"Communities, Customer & Commercial Services",Sport & Leisure,Supplies & Services,Provisions,BIKOLD,01/02/2024,293.29
"Communities, Customer & Commercial Services",Sport & Leisure,Supplies & Services,Provisions,BIKOLD,01/02/2024,100.95
"Communities, Customer & Commercial Services",Sport & Leisure,Supplies & Services,Provisions,BIKOLD,01/02/2024,368.36
"Communities, Customer & Commercial Services",Sport & Leisure,Supplies & Services,Provisions,BIKOLD,01/02/2024,129.30
"Communities, Customer & Commercial Services",Sport & Leisure,Supplies & Services,Provisions,BIKOLD,01/02/2024,332.28
"Communities, Customer & Commercial Services",Sport & Leisure,Supplies & Services,Provisions,BIKOLD,01/02/2024,232.12
"Communities, Customer & Commercial Services",Sport & Leisure,Supplies & Services,Provisions,BIKOLD,01/02/2024,117.78
"Communities, Customer & Commercial Services",Sport & Leisure,Supplies & Services,Provisions,BIKOLD,01/02/2024,676.59
"Communities, Customer & Commercial Services",Sport & Leisure,Supplies & Services,Provisions,BIKOLD,01/02/2024,134.36
"Communities, Customer & Commercial Services",Sport & Leisure,Supplies & Services,Provisions,BIKOLD,01/02/2024,223.69
"Communities, Customer & Commercial Services",Sport & Leisure,Supplies & Services,Provisions,BIKOLD,01/02/2024,303.67
"Communities, Customer & Commercial Services",Sport & Leisure,Supplies & Services,Provisions,BIKOLD,01/02/2024,333.55
"Communities, Customer & Commercial Services",Sport & Leisure,Supplies & Services,Provisions,BIKOLD,01/02/2024,427.69
"Communities, Customer & Commercial Services",Sport & Leisure,Supplies & Services,Provisions,BIKOLD,01/02/2024,209.47
"Communities, Customer & Commercial Services",Sport & Leisure,Supplies & Services,Provisions,BIKOLD,01/02/2024,174.61
"Communities, Customer & Commercial Services",Sport & Leisure,Supplies & Services,Provisions,BIKOLD,01/02/2024,473.53
"Communities, Customer & Commercial Services",Sport & Leisure,Supplies & Services,Provisions,BIKOLD,01/02/2024,258.47
"Communities, Customer & Commercial Services",Sport & Leisure,Supplies & Services,Provisions,BIKOLD,01/02/2024,126.13
"Communities, Customer & Commercial Services",Sport & Leisure,Supplies & Services,Provisions,BIKOLD,01/02/2024,179.18
"Communities, Customer & Commercial Services",Sport & Leisure,Supplies & Services,Provisions,BIKOLD,01/02/2024,140.31
"Communities, Customer & Commercial Services",Sport & Leisure,Supplies & Services,Provisions,BIKOLD,01/02/2024,216.92
"Communities, Customer & Commercial Services",Sport & Leisure,Supplies & Services,Provisions,BIKOLD,01/02/2024,212.12
"Communities, Customer & Commercial Services",Sport & Leisure,Supplies & Services,Provisions,BIKOLD,01/02/2024,167.74
"Communities, Customer & Commercial Services",Sport & Leisure,Supplies & Services,Provisions,BIKOLD,01/02/2024,452.61
"Communities, Customer & Commercial Services",Sport & Leisure,Supplies & Services,Provisions,BIKOLD,01/02/2024,140.31
"Communities, Customer & Commercial Services",Sport & Leisure,Supplies & Services,Provisions,BIKOLD,01/02/2024,131.86
"Communities, Customer & Commercial Services",Sport & Leisure,Supplies & Services,Provisions,BIKOLD,01/02/2024,381.44
"Communities, Customer & Commercial Services",Sport & Leisure,Supplies & Services,Provisions,BIKOLD,01/02/2024,371.10
"Communities, Customer & Commercial Services",Sport & Leisure,Supplies & Services,Provisions,BIKOLD,01/02/2024,423.51
"Communities, Customer & Commercial Services",Sport & Leisure,Supplies & Services,Provisions,BIKOLD,01/02/2024,246.30
"Communities, Customer & Commercial Services",Sport & Leisure,Supplies & Services,Provisions,BIKOLD,01/02/2024,422.68
"Communities, Customer & Commercial Services",Sport & Leisure,Supplies & Services,Provisions,BIKOLD,01/02/2024,273.39
"Communities, Customer & Commercial Services",Sport & Leisure,Supplies & Services,Provisions,ROWLANDS & COMPANY,02/02/2024,136.82
"Communities, Customer & Commercial Services",Sport & Leisure,Supplies & Services,Provisions,ROWLANDS & COMPANY,02/02/2024,108.99
"Communities, Customer & Commercial Services",Sport & Leisure,Supplies & Services,Provisions,ROWLANDS & COMPANY,02/02/2024,146.90
"Communities, Customer & Commercial Services",Sport & Leisure,Supplies & Services,Provisions,ROWLANDS & COMPANY,02/02/2024,117.05
"Communities, Customer & Commercial Services",Sport & Leisure,Supplies & Services,Provisions,ROWLANDS & COMPANY,02/02/2024,145.13
"Communities, Customer & Commercial Services",Sport & Leisure,Supplies & Services,Provisions,ROWLANDS & COMPANY,02/02/2024,208.34
"Communities, Customer & Commercial Services",Sport & Leisure,Supplies & Services,Provisions,ROWLANDS & COMPANY,02/02/2024,113.67
"Communities, Customer & Commercial Services",Sport & Leisure,Supplies & Services,Provisions,ROWLANDS & COMPANY,02/02/2024,175.61
"Communities, Customer & Commercial Services",Sport & Leisure,Supplies & Services,Provisions,ROWLANDS & COMPANY,02/02/2024,213.91
"Communities, Customer & Commercial Services",Sport & Leisure,Supplies & Services,Provisions,ROWLANDS & COMPANY,02/02/2024,121.52
"Communities, Customer & Commercial Services",Sport & Leisure,Supplies & Services,Provisions,ROWLANDS & COMPANY,02/02/2024,124.01
"Communities, Customer & Commercial Services",Sport & Leisure,Supplies & Services,Provisions,ROWLANDS & COMPANY,02/02/2024,118.70
"Communities, Customer & Commercial Services",Sport & Leisure,Supplies & Services,Provisions,ROWLANDS & COMPANY,02/02/2024,236.90
"Communities, Customer & Commercial Services",Sport & Leisure,Supplies & Services,Provisions,ROWLANDS & COMPANY,02/02/2024,120.64
"Communities, Customer & Commercial Services",Sport & Leisure,Supplies & Services,Provisions,ROWLANDS & COMPANY,02/02/2024,129.53
"Communities, Customer & Commercial Services",Sport & Leisure,Supplies & Services,Provisions,ROWLANDS & COMPANY,02/02/2024,146.98
"Communities, Customer & Commercial Services",Sport & Leisure,Supplies & Services,Provisions,ROWLANDS & COMPANY,02/02/2024,289.55
"Communities, Customer & Commercial Services",Sport & Leisure,Supplies & Services,Provisions,ROWLANDS & COMPANY,02/02/2024,143.12
"Communities, Customer & Commercial Services",Sport & Leisure,Supplies & Services,Provisions,ROWLANDS & COMPANY,02/02/2024,211.07
"Communities, Customer & Commercial Services",Sport & Leisure,Supplies & Services,Provisions,ROWLANDS & COMPANY,02/02/2024,111.79
"Communities, Customer & Commercial Services",Sport & Leisure,Supplies & Services,Provisions,ROWLANDS & COMPANY,02/02/2024,168.05
"Communities, Customer & Commercial Services",Sport & Leisure,Supplies & Services,Provisions,ROWLANDS & COMPANY,02/02/2024,113.76
"Communities, Customer & Commercial Services",Sport & Leisure,Supplies & Services,Provisions,ROWLANDS & COMPANY,02/02/2024,107.65
"Communities, Customer & Commercial Services",Sport & Leisure,Supplies & Services,Provisions,ROWLANDS & COMPANY,02/02/2024,187.21
"Communities, Customer & Commercial Services",Sport & Leisure,Supplies & Services,Provisions,ROWLANDS & COMPANY,02/02/2024,123.19
"Communities, Customer & Commercial Services",Sport & Leisure,Supplies & Services,Provisions,ROWLANDS & COMPANY,02/02/2024,102.60
"Communities, Customer & Commercial Services",Sport & Leisure,Supplies & Services,Provisions,John Sheppard Catering Butchers,02/02/2024,135.18
"Communities, Customer & Commercial Services",Sport & Leisure,Supplies & Services,Provisions,John Sheppard Catering Butchers,02/02/2024,234.63
"Communities, Customer & Commercial Services",Sport & Leisure,Supplies & Services,Provisions,John Sheppard Catering Butchers,02/02/2024,110.40
"Communities, Customer & Commercial Services",Sport & Leisure,Supplies & Services,Provisions,John Sheppard Catering Butchers,02/02/2024,205.35
"Communities, Customer & Commercial Services",Sport & Leisure,Supplies & Services,Provisions,John Sheppard Catering Butchers,02/02/2024,104.93
"Communities, Customer & Commercial Services",Sport & Leisure,Supplies & Services,Provisions,BIKOLD,08/02/2024,221.72
"Communities, Customer & Commercial Services",Sport & Leisure,Supplies & Services,Provisions,BIKOLD,08/02/2024,151.32
"Communities, Customer & Commercial Services",Sport & Leisure,Supplies & Services,Provisions,BIKOLD,08/02/2024,313.45
"Communities, Customer & Commercial Services",Sport & Leisure,Supplies & Services,Provisions,BIKOLD,08/02/2024,147.48
"Communities, Customer & Commercial Services",Sport & Leisure,Supplies & Services,Provisions,BIKOLD,08/02/2024,122.98
"Communities, Customer & Commercial Services",Sport & Leisure,Supplies & Services,Provisions,BIKOLD,08/02/2024,204.00
"Communities, Customer & Commercial Services",Sport & Leisure,Supplies & Services,Provisions,BIKOLD,08/02/2024,513.55
"Communities, Customer & Commercial Services",Sport & Leisure,Supplies & Services,Provisions,BIKOLD,08/02/2024,177.23
"Communities, Customer & Commercial Services",Sport & Leisure,Supplies & Services,Provisions,BIKOLD,08/02/2024,348.53
"Communities, Customer & Commercial Services",Sport & Leisure,Supplies & Services,Provisions,BIKOLD,08/02/2024,169.39
"Communities, Customer & Commercial Services",Sport & Leisure,Supplies & Services,Provisions,BIKOLD,08/02/2024,485.34
"Communities, Customer & Commercial Services",Sport & Leisure,Supplies & Services,Provisions,BIKOLD,08/02/2024,211.13
"Communities, Customer & Commercial Services",Sport & Leisure,Supplies & Services,Provisions,BIKOLD,08/02/2024,403.02
"Communities, Customer & Commercial Services",Sport & Leisure,Supplies & Services,Provisions,BIKOLD,08/02/2024,101.43
"Communities, Customer & Commercial Services",Sport & Leisure,Supplies & Services,Provisions,BIKOLD,08/02/2024,167.58
"Communities, Customer & Commercial Services",Sport & Leisure,Supplies & Services,Provisions,BIKOLD,08/02/2024,129.28
"Communities, Customer & Commercial Services",Sport & Leisure,Supplies & Services,Provisions,BIKOLD,08/02/2024,152.99
"Communities, Customer & Commercial Services",Sport & Leisure,Supplies & Services,Provisions,BIKOLD,08/02/2024,429.02
"Communities, Customer & Commercial Services",Sport & Leisure,Supplies & Services,Provisions,BIKOLD,08/02/2024,415.12
"Communities, Customer & Commercial Services",Sport & Leisure,Supplies & Services,Provisions,BIKOLD,08/02/2024,318.41
"Communities, Customer & Commercial Services",Sport & Leisure,Supplies & Services,Provisions,BIKOLD,08/02/2024,292.03
"Communities, Customer & Commercial Services",Sport & Leisure,Supplies & Services,Provisions,BIKOLD,08/02/2024,147.86
"Communities, Customer & Commercial Services",Sport & Leisure,Supplies & Services,Provisions,BIKOLD,08/02/2024,289.64
"Communities, Customer & Commercial Services",Sport & Leisure,Supplies & Services,Provisions,BIKOLD,08/02/2024,233.29
"Communities, Customer & Commercial Services",Sport & Leisure,Supplies & Services,Provisions,BIKOLD,08/02/2024,258.29
"Communities, Customer & Commercial Services",Sport & Leisure,Supplies & Services,Provisions,BIKOLD,08/02/2024,250.80
"Communities, Customer & Commercial Services",Sport & Leisure,Supplies & Services,Provisions,BIKOLD,08/02/2024,358.22
"Communities, Customer & Commercial Services",Sport & Leisure,Supplies & Services,Provisions,BIKOLD,08/02/2024,111.40
"Communities, Customer & Commercial Services",Sport & Leisure,Supplies & Services,Provisions,BIKOLD,08/02/2024,101.28
"Communities, Customer & Commercial Services",Sport & Leisure,Supplies & Services,Provisions,BIKOLD,08/02/2024,366.84
"Communities, Customer & Commercial Services",Sport & Leisure,Supplies & Services,Provisions,BIKOLD,08/02/2024,185.23
"Communities, Customer & Commercial Services",Sport & Leisure,Supplies & Services,Provisions,BIKOLD,08/02/2024,135.13
"Communities, Customer & Commercial Services",Sport & Leisure,Supplies & Services,Provisions,BIKOLD,08/02/2024,271.99
"Communities, Customer & Commercial Services",Sport & Leisure,Supplies & Services,Provisions,BIKOLD,08/02/2024,137.31
"Communities, Customer & Commercial Services",Sport & Leisure,Supplies & Services,Provisions,BIKOLD,08/02/2024,449.70
"Communities, Customer & Commercial Services",Sport & Leisure,Supplies & Services,Provisions,BIKOLD,08/02/2024,155.14
"Communities, Customer & Commercial Services",Sport & Leisure,Supplies & Services,Provisions,BIKOLD,08/02/2024,258.69
"Communities, Customer & Commercial Services",Sport & Leisure,Supplies & Services,Provisions,BIKOLD,08/02/2024,129.71
"Communities, Customer & Commercial Services",Sport & Leisure,Supplies & Services,Provisions,BIKOLD,08/02/2024,288.14
"Communities, Customer & Commercial Services",Sport & Leisure,Supplies & Services,Provisions,BIKOLD,08/02/2024,449.88
"Communities, Customer & Commercial Services",Sport & Leisure,Supplies & Services,Provisions,BIKOLD,08/02/2024,148.17
"Communities, Customer & Commercial Services",Sport & Leisure,Supplies & Services,Provisions,BIKOLD,08/02/2024,302.32
"Communities, Customer & Commercial Services",Sport & Leisure,Supplies & Services,Provisions,BIKOLD,08/02/2024,107.19
"Communities, Customer & Commercial Services",Sport & Leisure,Supplies & Services,Provisions,BIKOLD,08/02/2024,120.64
"Communities, Customer & Commercial Services",Sport & Leisure,Supplies & Services,Provisions,BIKOLD,08/02/2024,559.42
"Communities, Customer & Commercial Services",Sport & Leisure,Supplies & Services,Provisions,BIKOLD,08/02/2024,402.11
"Communities, Customer & Commercial Services",Sport & Leisure,Supplies & Services,Provisions,BIKOLD,08/02/2024,252.73
"Communities, Customer & Commercial Services",Sport & Leisure,Supplies & Services,Provisions,BIKOLD,08/02/2024,152.72
"Communities, Customer & Commercial Services",Sport & Leisure,Supplies & Services,Provisions,BIKOLD,08/02/2024,291.18
"Communities, Customer & Commercial Services",Sport & Leisure,Supplies & Services,Provisions,BIKOLD,08/02/2024,129.46
"Communities, Customer & Commercial Services",Sport & Leisure,Supplies & Services,Provisions,BIKOLD,08/02/2024,264.03
"Communities, Customer & Commercial Services",Sport & Leisure,Supplies & Services,Provisions,BIKOLD,08/02/2024,"1,028.69"
"Communities, Customer & Commercial Services",Sport & Leisure,Supplies & Services,Provisions,BIKOLD,08/02/2024,451.99
"Communities, Customer & Commercial Services",Sport & Leisure,Supplies & Services,Provisions,BIKOLD,08/02/2024,239.45
"Communities, Customer & Commercial Services",Sport & Leisure,Supplies & Services,Provisions,BIKOLD,08/02/2024,336.28
"Communities, Customer & Commercial Services",Sport & Leisure,Supplies & Services,Provisions,BIKOLD,08/02/2024,105.83
"Communities, Customer & Commercial Services",Sport & Leisure,Supplies & Services,Provisions,BIKOLD,08/02/2024,159.55
"Communities, Customer & Commercial Services",Sport & Leisure,Supplies & Services,Provisions,BIKOLD,08/02/2024,351.58
"Communities, Customer & Commercial Services",Sport & Leisure,Supplies & Services,Provisions,BIKOLD,08/02/2024,619.64
"Communities, Customer & Commercial Services",Sport & Leisure,Supplies & Services,Provisions,BIKOLD,08/02/2024,103.75
"Communities, Customer & Commercial Services",Sport & Leisure,Supplies & Services,Provisions,BIKOLD,08/02/2024,102.78
"Communities, Customer & Commercial Services",Sport & Leisure,Supplies & Services,Provisions,BIKOLD,08/02/2024,279.35
"Communities, Customer & Commercial Services",Sport & Leisure,Supplies & Services,Provisions,BIKOLD,08/02/2024,343.93
"Communities, Customer & Commercial Services",Sport & Leisure,Supplies & Services,Provisions,BIKOLD,08/02/2024,431.33
"Communities, Customer & Commercial Services",Sport & Leisure,Supplies & Services,Provisions,BIKOLD,08/02/2024,290.87
"Communities, Customer & Commercial Services",Sport & Leisure,Supplies & Services,Provisions,BIKOLD,08/02/2024,180.77
"Communities, Customer & Commercial Services",Sport & Leisure,Supplies & Services,Provisions,BIKOLD,08/02/2024,339.26
"Communities, Customer & Commercial Services",Sport & Leisure,Supplies & Services,Provisions,BIKOLD,08/02/2024,184.30
"Communities, Customer & Commercial Services",Sport & Leisure,Supplies & Services,Provisions,BIKOLD,08/02/2024,159.57
"Communities, Customer & Commercial Services",Sport & Leisure,Supplies & Services,Provisions,BIKOLD,08/02/2024,147.37
"Communities, Customer & Commercial Services",Sport & Leisure,Supplies & Services,Provisions,BIKOLD,08/02/2024,239.38
"Communities, Customer & Commercial Services",Sport & Leisure,Supplies & Services,Provisions,BIKOLD,08/02/2024,128.47
"Communities, Customer & Commercial Services",Sport & Leisure,Supplies & Services,Provisions,BIKOLD,08/02/2024,144.22
"Communities, Customer & Commercial Services",Sport & Leisure,Supplies & Services,Provisions,BIKOLD,08/02/2024,243.42
"Communities, Customer & Commercial Services",Sport & Leisure,Supplies & Services,Provisions,BIKOLD,08/02/2024,115.70
"Communities, Customer & Commercial Services",Sport & Leisure,Supplies & Services,Provisions,BIKOLD,08/02/2024,183.87
"Communities, Customer & Commercial Services",Sport & Leisure,Supplies & Services,Provisions,BIKOLD,08/02/2024,274.40
"Communities, Customer & Commercial Services",Sport & Leisure,Supplies & Services,Provisions,BIKOLD,08/02/2024,167.72
"Communities, Customer & Commercial Services",Sport & Leisure,Supplies & Services,Provisions,BIKOLD,08/02/2024,132.41
"Communities, Customer & Commercial Services",Sport & Leisure,Supplies & Services,Provisions,BIKOLD,08/02/2024,117.60
"Communities, Customer & Commercial Services",Sport & Leisure,Supplies & Services,Provisions,BIKOLD,08/02/2024,128.66
"Communities, Customer & Commercial Services",Sport & Leisure,Supplies & Services,Provisions,BIKOLD,08/02/2024,141.55
"Communities, Customer & Commercial Services",Sport & Leisure,Supplies & Services,Provisions,BIKOLD,08/02/2024,159.04
"Communities, Customer & Commercial Services",Sport & Leisure,Supplies & Services,Provisions,BIKOLD,08/02/2024,319.16
"Communities, Customer & Commercial Services",Sport & Leisure,Supplies & Services,Provisions,John Sheppard Catering Butchers,09/02/2024,112.00
"Communities, Customer & Commercial Services",Sport & Leisure,Supplies & Services,Provisions,John Sheppard Catering Butchers,09/02/2024,218.47
"Communities, Customer & Commercial Services",Sport & Leisure,Supplies & Services,Provisions,John Sheppard Catering Butchers,09/02/2024,180.63
"Communities, Customer & Commercial Services",Sport & Leisure,Supplies & Services,Provisions,John Sheppard Catering Butchers,09/02/2024,190.80
"Communities, Customer & Commercial Services",Sport & Leisure,Supplies & Services,Provisions,John Sheppard Catering Butchers,09/02/2024,144.50
"Communities, Customer & Commercial Services",Sport & Leisure,Supplies & Services,Provisions,John Sheppard Catering Butchers,09/02/2024,110.88
"Communities, Customer & Commercial Services",Sport & Leisure,Supplies & Services,Provisions,On A Roll,09/02/2024,256.20
"Communities, Customer & Commercial Services",Sport & Leisure,Supplies & Services,Provisions,John Sheppard Catering Butchers,09/02/2024,218.47
"Communities, Customer & Commercial Services",Sport & Leisure,Supplies & Services,Provisions,John Sheppard Catering Butchers,09/02/2024,180.63
"Communities, Customer & Commercial Services",Sport & Leisure,Supplies & Services,Provisions,John Sheppard Catering Butchers,09/02/2024,190.80
"Communities, Customer & Commercial Services",Sport & Leisure,Supplies & Services,Provisions,John Sheppard Catering Butchers,09/02/2024,144.50
"Communities, Customer & Commercial Services",Sport & Leisure,Supplies & Services,Provisions,John Sheppard Catering Butchers,09/02/2024,110.88
"Communities, Customer & Commercial Services",Sport & Leisure,Supplies & Services,Provisions,John Sheppard Catering Butchers,09/02/2024,112.00
"Communities, Customer & Commercial Services",Sport & Leisure,Supplies & Services,Provisions,BIKOLD,15/02/2024,195.42
"Communities, Customer & Commercial Services",Sport & Leisure,Supplies & Services,Provisions,BIKOLD,15/02/2024,434.27
"Communities, Customer & Commercial Services",Sport & Leisure,Supplies & Services,Provisions,BIKOLD,15/02/2024,457.31
"Communities, Customer & Commercial Services",Sport & Leisure,Supplies & Services,Provisions,On A Roll,16/02/2024,220.90
"Communities, Customer & Commercial Services",Sport & Leisure,Supplies & Services,Provisions,On A Roll,20/02/2024,197.70
"Communities, Customer & Commercial Services",Sport & Leisure,Supplies & Services,Provisions,PASTA KING (UK) LIMITED,27/02/2024,187.80
"Communities, Customer & Commercial Services",Sport & Leisure,Supplies & Services,Provisions,On A Roll,23/02/2024,106.30
"Communities, Customer & Commercial Services",Sport & Leisure,Supplies & Services,Provisions,ROWLANDS & COMPANY,23/02/2024,135.97
"Communities, Customer & Commercial Services",Sport & Leisure,Supplies & Services,Provisions,ROWLANDS & COMPANY,23/02/2024,115.04
"Communities, Customer & Commercial Services",Sport & Leisure,Supplies & Services,Provisions,ROWLANDS & COMPANY,23/02/2024,146.21
"Communities, Customer & Commercial Services",Sport & Leisure,Supplies & Services,Provisions,ROWLANDS & COMPANY,23/02/2024,123.33
"Communities, Customer & Commercial Services",Sport & Leisure,Supplies & Services,Provisions,ROWLANDS & COMPANY,23/02/2024,216.97
"Communities, Customer & Commercial Services",Sport & Leisure,Supplies & Services,Provisions,John Sheppard Catering Butchers,23/02/2024,159.86
"Communities, Customer & Commercial Services",Sport & Leisure,Supplies & Services,Provisions,John Sheppard Catering Butchers,23/02/2024,118.11
"Communities, Customer & Commercial Services",Sport & Leisure,Supplies & Services,Provisions,John Sheppard Catering Butchers,23/02/2024,234.63
"Communities, Customer & Commercial Services",Sport & Leisure,Supplies & Services,Provisions,John Sheppard Catering Butchers,23/02/2024,110.40
"Communities, Customer & Commercial Services",Sport & Leisure,Supplies & Services,Provisions,John Sheppard Catering Butchers,23/02/2024,224.40
"Communities, Customer & Commercial Services",Sport & Leisure,Supplies & Services,Provisions,ROWLANDS & COMPANY,23/02/2024,202.47
"Communities, Customer & Commercial Services",Sport & Leisure,Supplies & Services,Provisions,ROWLANDS & COMPANY,23/02/2024,163.85
"Communities, Customer & Commercial Services",Sport & Leisure,Supplies & Services,Provisions,ROWLANDS & COMPANY,23/02/2024,227.30
"Communities, Customer & Commercial Services",Sport & Leisure,Supplies & Services,Provisions,ROWLANDS & COMPANY,23/02/2024,186.99
"Communities, Customer & Commercial Services",Sport & Leisure,Supplies & Services,Provisions,ROWLANDS & COMPANY,23/02/2024,146.89
"Communities, Customer & Commercial Services",Sport & Leisure,Supplies & Services,Provisions,ROWLANDS & COMPANY,23/02/2024,113.75
"Communities, Customer & Commercial Services",Sport & Leisure,Supplies & Services,Provisions,ROWLANDS & COMPANY,23/02/2024,119.58
"Communities, Customer & Commercial Services",Sport & Leisure,Supplies & Services,Provisions,ROWLANDS & COMPANY,23/02/2024,178.00
"Communities, Customer & Commercial Services",Sport & Leisure,Supplies & Services,Provisions,ROWLANDS & COMPANY,23/02/2024,102.85
"Communities, Customer & Commercial Services",Sport & Leisure,Supplies & Services,Provisions,ROWLANDS & COMPANY,23/02/2024,140.48
"Communities, Customer & Commercial Services",Sport & Leisure,Supplies & Services,Provisions,ROWLANDS & COMPANY,23/02/2024,281.91
"Communities, Customer & Commercial Services",Sport & Leisure,Supplies & Services,Provisions,ROWLANDS & COMPANY,23/02/2024,192.22
"Communities, Customer & Commercial Services",Sport & Leisure,Supplies & Services,Provisions,ROWLANDS & COMPANY,23/02/2024,118.89
"Communities, Customer & Commercial Services",Sport & Leisure,Supplies & Services,Provisions,ROWLANDS & COMPANY,23/02/2024,167.25
"Communities, Customer & Commercial Services",Sport & Leisure,Supplies & Services,Provisions,ROWLANDS & COMPANY,23/02/2024,128.81
"Communities, Customer & Commercial Services",Sport & Leisure,Supplies & Services,Provisions,ROWLANDS & COMPANY,23/02/2024,126.40
"Communities, Customer & Commercial Services",Sport & Leisure,Supplies & Services,Provisions,ROWLANDS & COMPANY,23/02/2024,133.94
"Communities, Customer & Commercial Services",Sport & Leisure,Supplies & Services,Provisions,ROWLANDS & COMPANY,23/02/2024,139.31
"Communities, Customer & Commercial Services",Sport & Leisure,Supplies & Services,Provisions,ROWLANDS & COMPANY,23/02/2024,186.37
"Communities, Customer & Commercial Services",Sport & Leisure,Supplies & Services,Provisions,ROWLANDS & COMPANY,23/02/2024,234.62
"Communities, Customer & Commercial Services",Sport & Leisure,Supplies & Services,Provisions,ROWLANDS & COMPANY,23/02/2024,110.24
"Communities, Customer & Commercial Services",Sport & Leisure,Supplies & Services,Provisions,ROWLANDS & COMPANY,23/02/2024,109.95
"Communities, Customer & Commercial Services",Sport & Leisure,Supplies & Services,Provisions,ROWLANDS & COMPANY,23/02/2024,183.25
"Communities, Customer & Commercial Services",Sport & Leisure,Supplies & Services,Provisions,ROWLANDS & COMPANY,23/02/2024,166.97
"Communities, Customer & Commercial Services",Sport & Leisure,Supplies & Services,Provisions,ROWLANDS & COMPANY,23/02/2024,128.60
"Communities, Customer & Commercial Services",Sport & Leisure,Supplies & Services,Provisions,BIKOLD,22/02/2024,140.40
"Communities, Customer & Commercial Services",Sport & Leisure,Supplies & Services,Provisions,BIKOLD,22/02/2024,463.13
"Communities, Customer & Commercial Services",Sport & Leisure,Supplies & Services,Provisions,BIKOLD,22/02/2024,111.30
"Communities, Customer & Commercial Services",Sport & Leisure,Supplies & Services,Provisions,BIKOLD,22/02/2024,148.56
"Communities, Customer & Commercial Services",Sport & Leisure,Supplies & Services,Provisions,BIKOLD,22/02/2024,305.22
"Communities, Customer & Commercial Services",Sport & Leisure,Supplies & Services,Provisions,BIKOLD,22/02/2024,142.42
"Communities, Customer & Commercial Services",Sport & Leisure,Supplies & Services,Provisions,BIKOLD,22/02/2024,152.02
"Communities, Customer & Commercial Services",Sport & Leisure,Supplies & Services,Provisions,BIKOLD,22/02/2024,167.34
"Communities, Customer & Commercial Services",Sport & Leisure,Supplies & Services,Provisions,BIKOLD,22/02/2024,204.75
"Communities, Customer & Commercial Services",Sport & Leisure,Supplies & Services,Provisions,BIKOLD,22/02/2024,184.99
"Communities, Customer & Commercial Services",Sport & Leisure,Supplies & Services,Provisions,BIKOLD,22/02/2024,119.46
"Communities, Customer & Commercial Services",Sport & Leisure,Supplies & Services,Provisions,BIKOLD,22/02/2024,174.19
"Communities, Customer & Commercial Services",Sport & Leisure,Supplies & Services,Provisions,BIKOLD,22/02/2024,476.06
"Communities, Customer & Commercial Services",Sport & Leisure,Supplies & Services,Provisions,BIKOLD,22/02/2024,300.62
"Communities, Customer & Commercial Services",Sport & Leisure,Supplies & Services,Provisions,BIKOLD,22/02/2024,354.09
"Communities, Customer & Commercial Services",Sport & Leisure,Supplies & Services,Provisions,BIKOLD,22/02/2024,203.12
"Communities, Customer & Commercial Services",Sport & Leisure,Supplies & Services,Provisions,BIKOLD,22/02/2024,241.79
"Communities, Customer & Commercial Services",Sport & Leisure,Supplies & Services,Provisions,BIKOLD,22/02/2024,270.17
"Communities, Customer & Commercial Services",Sport & Leisure,Supplies & Services,Provisions,BIKOLD,22/02/2024,398.53
"Communities, Customer & Commercial Services",Sport & Leisure,Supplies & Services,Provisions,BIKOLD,22/02/2024,691.42
"Communities, Customer & Commercial Services",Sport & Leisure,Supplies & Services,Provisions,BIKOLD,22/02/2024,302.98
"Communities, Customer & Commercial Services",Sport & Leisure,Supplies & Services,Provisions,BIKOLD,22/02/2024,386.41
"Communities, Customer & Commercial Services",Sport & Leisure,Supplies & Services,Provisions,BIKOLD,22/02/2024,179.49
"Communities, Customer & Commercial Services",Sport & Leisure,Supplies & Services,Provisions,BIKOLD,22/02/2024,379.55
"Communities, Customer & Commercial Services",Sport & Leisure,Supplies & Services,Provisions,BIKOLD,22/02/2024,396.85
"Communities, Customer & Commercial Services",Sport & Leisure,Supplies & Services,Provisions,BIKOLD,22/02/2024,441.23
"Communities, Customer & Commercial Services",Sport & Leisure,Supplies & Services,Provisions,BIKOLD,22/02/2024,412.19
"Communities, Customer & Commercial Services",Sport & Leisure,Supplies & Services,Provisions,BIKOLD,22/02/2024,132.84
"Communities, Customer & Commercial Services",Sport & Leisure,Supplies & Services,Provisions,BIKOLD,22/02/2024,182.02
"Communities, Customer & Commercial Services",Sport & Leisure,Supplies & Services,Provisions,BIKOLD,22/02/2024,130.32
"Communities, Customer & Commercial Services",Sport & Leisure,Supplies & Services,Provisions,BIKOLD,22/02/2024,101.41
"Communities, Customer & Commercial Services",Sport & Leisure,Supplies & Services,Provisions,BIKOLD,22/02/2024,188.72
"Communities, Customer & Commercial Services",Sport & Leisure,Supplies & Services,Provisions,BIKOLD,22/02/2024,397.15
"Communities, Customer & Commercial Services",Sport & Leisure,Supplies & Services,Provisions,BIKOLD,22/02/2024,118.08
"Communities, Customer & Commercial Services",Sport & Leisure,Supplies & Services,Provisions,BIKOLD,22/02/2024,412.05
"Communities, Customer & Commercial Services",Sport & Leisure,Supplies & Services,Provisions,BIKOLD,22/02/2024,159.52
"Communities, Customer & Commercial Services",Sport & Leisure,Supplies & Services,Provisions,BIKOLD,22/02/2024,167.82
"Communities, Customer & Commercial Services",Sport & Leisure,Supplies & Services,Provisions,BIKOLD,22/02/2024,381.09
"Communities, Customer & Commercial Services",Sport & Leisure,Supplies & Services,Provisions,BIKOLD,22/02/2024,247.05
"Communities, Customer & Commercial Services",Sport & Leisure,Supplies & Services,Provisions,BIKOLD,22/02/2024,116.15
"Communities, Customer & Commercial Services",Sport & Leisure,Supplies & Services,Provisions,BIKOLD,22/02/2024,178.78
"Communities, Customer & Commercial Services",Sport & Leisure,Supplies & Services,Provisions,BIKOLD,22/02/2024,354.51
"Communities, Customer & Commercial Services",Sport & Leisure,Supplies & Services,Provisions,BIKOLD,22/02/2024,116.28
"Communities, Customer & Commercial Services",Sport & Leisure,Supplies & Services,Provisions,BIKOLD,22/02/2024,711.52
"Communities, Customer & Commercial Services",Sport & Leisure,Supplies & Services,Provisions,BIKOLD,22/02/2024,105.15
"Communities, Customer & Commercial Services",Sport & Leisure,Supplies & Services,Provisions,BIKOLD,22/02/2024,120.55
"Communities, Customer & Commercial Services",Sport & Leisure,Supplies & Services,Provisions,BIKOLD,22/02/2024,411.30
"Communities, Customer & Commercial Services",Sport & Leisure,Supplies & Services,Provisions,BIKOLD,22/02/2024,135.06
"Communities, Customer & Commercial Services",Sport & Leisure,Supplies & Services,Provisions,BIKOLD,22/02/2024,387.73
"Communities, Customer & Commercial Services",Sport & Leisure,Supplies & Services,Provisions,BIKOLD,22/02/2024,268.01
"Communities, Customer & Commercial Services",Sport & Leisure,Supplies & Services,Provisions,BIKOLD,22/02/2024,164.02
"Communities, Customer & Commercial Services",Sport & Leisure,Supplies & Services,Provisions,BIKOLD,22/02/2024,124.23
"Communities, Customer & Commercial Services",Sport & Leisure,Supplies & Services,Provisions,BIKOLD,22/02/2024,194.72
"Communities, Customer & Commercial Services",Sport & Leisure,Supplies & Services,Provisions,BIKOLD,22/02/2024,123.52
"Communities, Customer & Commercial Services",Sport & Leisure,Supplies & Services,Provisions,BIKOLD,22/02/2024,212.30
"Communities, Customer & Commercial Services",Sport & Leisure,Supplies & Services,Provisions,BIKOLD,22/02/2024,132.35
"Communities, Customer & Commercial Services",Sport & Leisure,Supplies & Services,Provisions,BIKOLD,22/02/2024,575.99
"Communities, Customer & Commercial Services",Sport & Leisure,Supplies & Services,Provisions,BIKOLD,22/02/2024,120.02
"Communities, Customer & Commercial Services",Sport & Leisure,Supplies & Services,Provisions,BIKOLD,22/02/2024,213.80
"Communities, Customer & Commercial Services",Sport & Leisure,Supplies & Services,Provisions,BIKOLD,22/02/2024,423.14
"Communities, Customer & Commercial Services",Sport & Leisure,Supplies & Services,Provisions,BIKOLD,22/02/2024,174.90
"Communities, Customer & Commercial Services",Sport & Leisure,Supplies & Services,Provisions,BIKOLD,22/02/2024,457.66
"Communities, Customer & Commercial Services",Sport & Leisure,Supplies & Services,Provisions,BIKOLD,22/02/2024,147.77
"Communities, Customer & Commercial Services",Sport & Leisure,Supplies & Services,Provisions,BIKOLD,22/02/2024,346.39
"Communities, Customer & Commercial Services",Sport & Leisure,Supplies & Services,Provisions,BIKOLD,22/02/2024,242.83
"Communities, Customer & Commercial Services",Sport & Leisure,Supplies & Services,Provisions,BIKOLD,22/02/2024,371.44
"Communities, Customer & Commercial Services",Sport & Leisure,Supplies & Services,Provisions,BIKOLD,22/02/2024,364.51
"Communities, Customer & Commercial Services",Sport & Leisure,Supplies & Services,Provisions,BIKOLD,22/02/2024,360.97
"Communities, Customer & Commercial Services",Sport & Leisure,Supplies & Services,Provisions,BIKOLD,22/02/2024,464.49
"Communities, Customer & Commercial Services",Sport & Leisure,Supplies & Services,Provisions,BIKOLD,22/02/2024,318.39
"Communities, Customer & Commercial Services",Sport & Leisure,Supplies & Services,Provisions,BIKOLD,22/02/2024,513.59
"Communities, Customer & Commercial Services",Sport & Leisure,Supplies & Services,Provisions,BIKOLD,22/02/2024,302.66
"Communities, Customer & Commercial Services",Sport & Leisure,Supplies & Services,Provisions,BIKOLD,22/02/2024,656.65
"Communities, Customer & Commercial Services",Sport & Leisure,Supplies & Services,Provisions,BIKOLD,22/02/2024,395.04
"Communities, Customer & Commercial Services",Sport & Leisure,Supplies & Services,Provisions,BIKOLD,22/02/2024,148.41
"Communities, Customer & Commercial Services",Sport & Leisure,Supplies & Services,Provisions,BIKOLD,22/02/2024,186.39
"Communities, Customer & Commercial Services",Sport & Leisure,Supplies & Services,Provisions,BIKOLD,22/02/2024,292.24
"Communities, Customer & Commercial Services",Sport & Leisure,Supplies & Services,Provisions,BIKOLD,22/02/2024,477.23
"Communities, Customer & Commercial Services",Sport & Leisure,Supplies & Services,Provisions,BIKOLD,22/02/2024,144.10
"Communities, Customer & Commercial Services",Sport & Leisure,Supplies & Services,Provisions,BIKOLD,22/02/2024,474.47
"Communities, Customer & Commercial Services",Sport & Leisure,Supplies & Services,Provisions,BIKOLD,22/02/2024,170.87
"Communities, Customer & Commercial Services",Sport & Leisure,Supplies & Services,Provisions,BIKOLD,22/02/2024,153.79
"Communities, Customer & Commercial Services",Sport & Leisure,Supplies & Services,Provisions,BIKOLD,22/02/2024,216.93
"Communities, Customer & Commercial Services",Sport & Leisure,Supplies & Services,Provisions,BIKOLD,22/02/2024,214.73
"Communities, Customer & Commercial Services",Sport & Leisure,Supplies & Services,Provisions,BIKOLD,22/02/2024,327.96
"Communities, Customer & Commercial Services",Sport & Leisure,Supplies & Services,Provisions,BIKOLD,22/02/2024,497.44
"Communities, Customer & Commercial Services",Sport & Leisure,Supplies & Services,Provisions,BIKOLD,22/02/2024,214.10
"Communities, Customer & Commercial Services",Sport & Leisure,Supplies & Services,Provisions,BIKOLD,22/02/2024,110.23
"Communities, Customer & Commercial Services",Sport & Leisure,Supplies & Services,Provisions,BIKOLD,22/02/2024,167.58
"Communities, Customer & Commercial Services",Sport & Leisure,Supplies & Services,Provisions,BIKOLD,22/02/2024,111.01
"Communities, Customer & Commercial Services",Sport & Leisure,Supplies & Services,Provisions,BIKOLD,22/02/2024,485.47
"Communities, Customer & Commercial Services",Sport & Leisure,Supplies & Services,Provisions,BIKOLD,22/02/2024,170.78
"Communities, Customer & Commercial Services",Sport & Leisure,Supplies & Services,Provisions,BIKOLD,22/02/2024,214.03
"Communities, Customer & Commercial Services",Sport & Leisure,Supplies & Services,Provisions,BIKOLD,22/02/2024,284.58
"Communities, Customer & Commercial Services",Sport & Leisure,Supplies & Services,Provisions,BIKOLD,22/02/2024,151.78
"Communities, Customer & Commercial Services",Sport & Leisure,Supplies & Services,Provisions,BIKOLD,22/02/2024,108.19
"Communities, Customer & Commercial Services",Sport & Leisure,Supplies & Services,Provisions,BIKOLD,22/02/2024,175.79
"Communities, Customer & Commercial Services",Sport & Leisure,Supplies & Services,Provisions,BIKOLD,22/02/2024,114.68
"Communities, Customer & Commercial Services",Sport & Leisure,Supplies & Services,Provisions,BIKOLD,22/02/2024,160.07
"Communities, Customer & Commercial Services",Sport & Leisure,Supplies & Services,Provisions,BIKOLD,22/02/2024,294.15
"Communities, Customer & Commercial Services",Sport & Leisure,Supplies & Services,Provisions,BIKOLD,22/02/2024,130.16
"Communities, Customer & Commercial Services",Sport & Leisure,Supplies & Services,Provisions,BIKOLD,22/02/2024,177.80
"Communities, Customer & Commercial Services",Sport & Leisure,Supplies & Services,Provisions,BIKOLD,22/02/2024,173.79
"Communities, Customer & Commercial Services",Sport & Leisure,Supplies & Services,Provisions,BIKOLD,22/02/2024,156.04
"Communities, Customer & Commercial Services",Sport & Leisure,Supplies & Services,Provisions,BIKOLD,22/02/2024,531.68
"Communities, Customer & Commercial Services",Sport & Leisure,Supplies & Services,Provisions,BIKOLD,22/02/2024,225.29
"Communities, Customer & Commercial Services",Sport & Leisure,Supplies & Services,Provisions,BIKOLD,22/02/2024,500.73
"Communities, Customer & Commercial Services",Sport & Leisure,Supplies & Services,Provisions,BIKOLD,22/02/2024,324.54
"Communities, Customer & Commercial Services",Sport & Leisure,Supplies & Services,Provisions,BIKOLD,22/02/2024,694.10
"Communities, Customer & Commercial Services",Sport & Leisure,Supplies & Services,Provisions,BIKOLD,22/02/2024,220.99
"Communities, Customer & Commercial Services",Sport & Leisure,Supplies & Services,Provisions,BIKOLD,22/02/2024,684.37
"Communities, Customer & Commercial Services",Sport & Leisure,Supplies & Services,Provisions,BIKOLD,22/02/2024,225.19
"Communities, Customer & Commercial Services",Sport & Leisure,Supplies & Services,Provisions,BIKOLD,22/02/2024,409.43
"Communities, Customer & Commercial Services",Sport & Leisure,Supplies & Services,Provisions,BIKOLD,22/02/2024,258.55
"Communities, Customer & Commercial Services",Sport & Leisure,Supplies & Services,Provisions,BIKOLD,22/02/2024,122.05
"Communities, Customer & Commercial Services",Sport & Leisure,Supplies & Services,Provisions,BIKOLD,22/02/2024,103.75
"Communities, Customer & Commercial Services",Sport & Leisure,Supplies & Services,Provisions,BIKOLD,22/02/2024,182.79
"Communities, Customer & Commercial Services",Sport & Leisure,Supplies & Services,Provisions,BIKOLD,22/02/2024,140.80
"Communities, Customer & Commercial Services",Sport & Leisure,Supplies & Services,Provisions,BIKOLD,22/02/2024,158.17
"Communities, Customer & Commercial Services",Sport & Leisure,Supplies & Services,Provisions,BIKOLD,22/02/2024,363.67
"Communities, Customer & Commercial Services",Sport & Leisure,Supplies & Services,Provisions,BIKOLD,22/02/2024,145.10
"Communities, Customer & Commercial Services",Sport & Leisure,Supplies & Services,Provisions,BIKOLD,22/02/2024,121.76
"Communities, Customer & Commercial Services",Sport & Leisure,Supplies & Services,Provisions,BIKOLD,22/02/2024,124.91
"Communities, Customer & Commercial Services",Sport & Leisure,Supplies & Services,Provisions,BIKOLD,22/02/2024,162.92
"Communities, Customer & Commercial Services",Sport & Leisure,Supplies & Services,Provisions,BIKOLD,22/02/2024,144.32
"Communities, Customer & Commercial Services",Sport & Leisure,Supplies & Services,Provisions,BIKOLD,29/02/2024,203.59
"Communities, Customer & Commercial Services",Sport & Leisure,Supplies & Services,Provisions,BIKOLD,29/02/2024,153.39
"Communities, Customer & Commercial Services",Sport & Leisure,Supplies & Services,Provisions,BIKOLD,29/02/2024,242.24
"Communities, Customer & Commercial Services",Sport & Leisure,Supplies & Services,Provisions,BIKOLD,29/02/2024,186.38
"Communities, Customer & Commercial Services",Sport & Leisure,Supplies & Services,Provisions,BIKOLD,29/02/2024,146.74
"Communities, Customer & Commercial Services",Sport & Leisure,Supplies & Services,Provisions,BIKOLD,29/02/2024,469.33
"Communities, Customer & Commercial Services",Sport & Leisure,Supplies & Services,Provisions,BIKOLD,29/02/2024,167.65
"Communities, Customer & Commercial Services",Sport & Leisure,Supplies & Services,Provisions,BIKOLD,29/02/2024,276.66
"Communities, Customer & Commercial Services",Sport & Leisure,Supplies & Services,Provisions,BIKOLD,29/02/2024,435.40
"Communities, Customer & Commercial Services",Sport & Leisure,Supplies & Services,Provisions,BIKOLD,29/02/2024,319.29
"Communities, Customer & Commercial Services",Sport & Leisure,Supplies & Services,Provisions,BIKOLD,29/02/2024,505.07
"Communities, Customer & Commercial Services",Sport & Leisure,Supplies & Services,Provisions,BIKOLD,29/02/2024,283.12
"Communities, Customer & Commercial Services",Sport & Leisure,Supplies & Services,Provisions,BIKOLD,29/02/2024,104.43
"Communities, Customer & Commercial Services",Sport & Leisure,Supplies & Services,Provisions,BIKOLD,29/02/2024,258.03
"Communities, Customer & Commercial Services",Sport & Leisure,Supplies & Services,Provisions,BIKOLD,29/02/2024,164.01
"Communities, Customer & Commercial Services",Sport & Leisure,Supplies & Services,Provisions,BIKOLD,29/02/2024,139.90
"Communities, Customer & Commercial Services",Sport & Leisure,Supplies & Services,Provisions,BIKOLD,29/02/2024,100.29
"Communities, Customer & Commercial Services",Sport & Leisure,Supplies & Services,Provisions,BIKOLD,29/02/2024,380.74
"Communities, Customer & Commercial Services",Sport & Leisure,Supplies & Services,Provisions,BIKOLD,29/02/2024,305.87
"Communities, Customer & Commercial Services",Sport & Leisure,Supplies & Services,Provisions,BIKOLD,29/02/2024,169.75
"Communities, Customer & Commercial Services",Sport & Leisure,Supplies & Services,Provisions,BIKOLD,29/02/2024,191.36
"Communities, Customer & Commercial Services",Sport & Leisure,Supplies & Services,Provisions,BIKOLD,29/02/2024,583.59
"Communities, Customer & Commercial Services",Sport & Leisure,Supplies & Services,Provisions,BIKOLD,29/02/2024,303.26
"Communities, Customer & Commercial Services",Sport & Leisure,Supplies & Services,Provisions,BIKOLD,29/02/2024,250.66
"Communities, Customer & Commercial Services",Sport & Leisure,Supplies & Services,Provisions,BIKOLD,29/02/2024,459.80
"Communities, Customer & Commercial Services",Sport & Leisure,Supplies & Services,Provisions,BIKOLD,29/02/2024,430.13
"Communities, Customer & Commercial Services",Sport & Leisure,Supplies & Services,Provisions,BIKOLD,29/02/2024,520.33
"Communities, Customer & Commercial Services",Sport & Leisure,Supplies & Services,Provisions,BIKOLD,29/02/2024,529.19
"Communities, Customer & Commercial Services",Sport & Leisure,Supplies & Services,Provisions,BIKOLD,29/02/2024,149.87
"Communities, Customer & Commercial Services",Sport & Leisure,Supplies & Services,Provisions,BIKOLD,29/02/2024,175.42
"Communities, Customer & Commercial Services",Sport & Leisure,Supplies & Services,Provisions,BIKOLD,29/02/2024,230.55
"Communities, Customer & Commercial Services",Sport & Leisure,Supplies & Services,Provisions,BIKOLD,29/02/2024,133.20
"Communities, Customer & Commercial Services",Sport & Leisure,Supplies & Services,Provisions,BIKOLD,29/02/2024,105.27
"Communities, Customer & Commercial Services",Sport & Leisure,Supplies & Services,Provisions,BIKOLD,29/02/2024,212.22
"Communities, Customer & Commercial Services",Sport & Leisure,Supplies & Services,Provisions,BIKOLD,29/02/2024,376.00
"Communities, Customer & Commercial Services",Sport & Leisure,Supplies & Services,Provisions,BIKOLD,29/02/2024,120.20
"Communities, Customer & Commercial Services",Sport & Leisure,Supplies & Services,Provisions,BIKOLD,29/02/2024,114.79
"Communities, Customer & Commercial Services",Sport & Leisure,Supplies & Services,Provisions,BIKOLD,29/02/2024,606.72
"Communities, Customer & Commercial Services",Sport & Leisure,Supplies & Services,Provisions,BIKOLD,29/02/2024,372.09
"Communities, Customer & Commercial Services",Sport & Leisure,Supplies & Services,Provisions,BIKOLD,29/02/2024,533.11
"Communities, Customer & Commercial Services",Sport & Leisure,Supplies & Services,Provisions,BIKOLD,29/02/2024,141.26
"Communities, Customer & Commercial Services",Sport & Leisure,Supplies & Services,Provisions,BIKOLD,29/02/2024,159.31
"Communities, Customer & Commercial Services",Sport & Leisure,Supplies & Services,Provisions,BIKOLD,29/02/2024,132.61
"Communities, Customer & Commercial Services",Sport & Leisure,Supplies & Services,Provisions,BIKOLD,29/02/2024,140.17
"Communities, Customer & Commercial Services",Sport & Leisure,Supplies & Services,Provisions,BIKOLD,29/02/2024,281.88
"Communities, Customer & Commercial Services",Sport & Leisure,Supplies & Services,Provisions,BIKOLD,29/02/2024,145.59
"Communities, Customer & Commercial Services",Sport & Leisure,Supplies & Services,Provisions,BIKOLD,29/02/2024,582.52
"Communities, Customer & Commercial Services",Sport & Leisure,Supplies & Services,Provisions,BIKOLD,29/02/2024,186.19
"Communities, Customer & Commercial Services",Sport & Leisure,Supplies & Services,Provisions,BIKOLD,29/02/2024,226.58
"Communities, Customer & Commercial Services",Sport & Leisure,Employees,Agency Supply Costs,TOTAL CATERING SOLUTONS RECRUITMENT LTD,02/02/2024,102.72
"Communities, Customer & Commercial Services",Sport & Leisure,Supplies & Services,Crockery/Hardware/Light Equip,Vegware,02/02/2024,114.10
"Communities, Customer & Commercial Services",Sport & Leisure,Supplies & Services,Crockery/Hardware/Light Equip,PLANGLOW LTD,27/02/2024,442.94
"Communities, Customer & Commercial Services",Sport & Leisure,Supplies & Services,Crockery/Hardware/Light Equip,PLANGLOW LTD,27/02/2024,129.80
"Communities, Customer & Commercial Services",Sport & Leisure,Supplies & Services,Provisions,BIKOLD,08/02/2024,269.70
"Communities, Customer & Commercial Services",Sport & Leisure,Supplies & Services,Provisions,BIKOLD,08/02/2024,401.40
"Communities, Customer & Commercial Services",Sport & Leisure,Supplies & Services,Provisions,BIKOLD,08/02/2024,198.03
"Communities, Customer & Commercial Services",Sport & Leisure,Supplies & Services,Provisions,BIKOLD,08/02/2024,580.41
"Communities, Customer & Commercial Services",Sport & Leisure,Supplies & Services,Provisions,BIKOLD,08/02/2024,251.68
"Communities, Customer & Commercial Services",Sport & Leisure,Supplies & Services,Provisions,BIKOLD,08/02/2024,182.90
"Communities, Customer & Commercial Services",Sport & Leisure,Supplies & Services,Provisions,BIKOLD,08/02/2024,269.85
"Communities, Customer & Commercial Services",Sport & Leisure,Supplies & Services,Provisions,BIKOLD,08/02/2024,123.30
"Communities, Customer & Commercial Services",Sport & Leisure,Supplies & Services,Provisions,BIKOLD,08/02/2024,486.19
"Communities, Customer & Commercial Services",Sport & Leisure,Supplies & Services,Computer Hardware (Maint),CIVICA UK LIMITED ,22/02/2024,493.11
"Communities, Customer & Commercial Services",Sport & Leisure,Supplies & Services,Provisions,BIKOLD,29/02/2024,115.76
"Communities, Customer & Commercial Services",Sport & Leisure,Supplies & Services,Provisions,BIKOLD,29/02/2024,378.66
"Communities, Customer & Commercial Services",Sport & Leisure,Supplies & Services,Provisions,BIKOLD,29/02/2024,202.37
"Communities, Customer & Commercial Services",Sport & Leisure,Supplies & Services,Provisions,BIKOLD,29/02/2024,184.46
"Communities, Customer & Commercial Services",Sport & Leisure,Supplies & Services,Provisions,BIKOLD,29/02/2024,168.83
"Communities, Customer & Commercial Services",Sport & Leisure,Supplies & Services,Provisions,BIKOLD,29/02/2024,690.43
"Communities, Customer & Commercial Services",Sport & Leisure,Supplies & Services,Provisions,BIKOLD,29/02/2024,317.43
"Communities, Customer & Commercial Services",Sport & Leisure,Supplies & Services,Provisions,BIKOLD,29/02/2024,504.47
"Communities, Customer & Commercial Services",Sport & Leisure,Supplies & Services,Provisions,BIKOLD,29/02/2024,243.82
"Communities, Customer & Commercial Services",Sport & Leisure,Supplies & Services,Provisions,BIKOLD,29/02/2024,412.92
"Communities, Customer & Commercial Services",Sport & Leisure,Supplies & Services,Provisions,BIKOLD,29/02/2024,229.19
"Communities, Customer & Commercial Services",Sport & Leisure,Supplies & Services,Provisions,ROWLANDS & COMPANY,09/02/2024,194.90
"Communities, Customer & Commercial Services",Sport & Leisure,Supplies & Services,Provisions,ROWLANDS & COMPANY,09/02/2024,100.27
"Communities, Customer & Commercial Services",Sport & Leisure,Supplies & Services,Provisions,BIKOLD,01/02/2024,265.09
"Communities, Customer & Commercial Services",Sport & Leisure,Supplies & Services,Provisions,BIKOLD,01/02/2024,199.64
"Communities, Customer & Commercial Services",Sport & Leisure,Supplies & Services,Provisions,BIKOLD,01/02/2024,236.48
"Communities, Customer & Commercial Services",Sport & Leisure,Supplies & Services,Provisions,BIKOLD,01/02/2024,132.03
"Communities, Customer & Commercial Services",Sport & Leisure,Supplies & Services,Provisions,BIKOLD,01/02/2024,"1,556.14"
"Communities, Customer & Commercial Services",Sport & Leisure,Supplies & Services,Provisions,BIKOLD,01/02/2024,353.52
"Communities, Customer & Commercial Services",Sport & Leisure,Supplies & Services,Provisions,BIKOLD,01/02/2024,378.95
"Communities, Customer & Commercial Services",Sport & Leisure,Supplies & Services,Provisions,BIKOLD,01/02/2024,171.83
"Communities, Customer & Commercial Services",Sport & Leisure,Supplies & Services,Provisions,BIKOLD,01/02/2024,174.90
"Communities, Customer & Commercial Services",Sport & Leisure,Supplies & Services,Provisions,BIKOLD,01/02/2024,240.86
"Communities, Customer & Commercial Services",Sport & Leisure,Supplies & Services,Provisions,BIKOLD,01/02/2024,467.48
"Communities, Customer & Commercial Services",Sport & Leisure,Supplies & Services,Provisions,BIKOLD,01/02/2024,102.30
"Communities, Customer & Commercial Services",Sport & Leisure,Supplies & Services,Provisions,BIKOLD,01/02/2024,967.19
"Communities, Customer & Commercial Services",Sport & Leisure,Supplies & Services,Provisions,BIKOLD,01/02/2024,135.57
"Communities, Customer & Commercial Services",Sport & Leisure,Supplies & Services,Provisions,BIKOLD,01/02/2024,265.13
"Communities, Customer & Commercial Services",Sport & Leisure,Supplies & Services,Provisions,BIKOLD,01/02/2024,170.50
"Communities, Customer & Commercial Services",Sport & Leisure,Supplies & Services,Provisions,BIKOLD,01/02/2024,514.59
"Communities, Customer & Commercial Services",Sport & Leisure,Supplies & Services,Provisions,BIKOLD,01/02/2024,211.77
"Communities, Customer & Commercial Services",Sport & Leisure,Supplies & Services,Provisions,BIKOLD,01/02/2024,462.19
"Communities, Customer & Commercial Services",Sport & Leisure,Supplies & Services,Provisions,BIKOLD,01/02/2024,371.88
"Communities, Customer & Commercial Services",Sport & Leisure,Supplies & Services,Provisions,BIKOLD,01/02/2024,232.57
"Communities, Customer & Commercial Services",Sport & Leisure,Supplies & Services,Provisions,BIKOLD,01/02/2024,275.86
"Communities, Customer & Commercial Services",Sport & Leisure,Supplies & Services,Provisions,BIKOLD,01/02/2024,965.94
"Communities, Customer & Commercial Services",Sport & Leisure,Supplies & Services,Provisions,BIKOLD,01/02/2024,140.93
"Communities, Customer & Commercial Services",Sport & Leisure,Supplies & Services,Provisions,BIKOLD,01/02/2024,241.68
"Communities, Customer & Commercial Services",Sport & Leisure,Supplies & Services,Provisions,BIKOLD,01/02/2024,319.32
"Communities, Customer & Commercial Services",Sport & Leisure,Supplies & Services,Provisions,BIKOLD,01/02/2024,181.95
"Communities, Customer & Commercial Services",Sport & Leisure,Supplies & Services,Provisions,BIKOLD,01/02/2024,192.08
"Communities, Customer & Commercial Services",Sport & Leisure,Supplies & Services,Provisions,BIKOLD,01/02/2024,212.91
"Communities, Customer & Commercial Services",Sport & Leisure,Supplies & Services,Provisions,BIKOLD,01/02/2024,109.04
"Communities, Customer & Commercial Services",Sport & Leisure,Supplies & Services,Provisions,ROWLANDS & COMPANY,02/02/2024,121.07
"Communities, Customer & Commercial Services",Sport & Leisure,Supplies & Services,Provisions,ROWLANDS & COMPANY,02/02/2024,131.56
"Communities, Customer & Commercial Services",Sport & Leisure,Supplies & Services,Provisions,BIKOLD,08/02/2024,290.03
"Communities, Customer & Commercial Services",Sport & Leisure,Supplies & Services,Provisions,BIKOLD,08/02/2024,182.90
"Communities, Customer & Commercial Services",Sport & Leisure,Supplies & Services,Provisions,BIKOLD,08/02/2024,322.23
"Communities, Customer & Commercial Services",Sport & Leisure,Supplies & Services,Provisions,BIKOLD,08/02/2024,220.24
"Communities, Customer & Commercial Services",Sport & Leisure,Supplies & Services,Provisions,BIKOLD,08/02/2024,534.40
"Communities, Customer & Commercial Services",Sport & Leisure,Supplies & Services,Provisions,BIKOLD,08/02/2024,494.80
"Communities, Customer & Commercial Services",Sport & Leisure,Supplies & Services,Provisions,BIKOLD,08/02/2024,312.80
"Communities, Customer & Commercial Services",Sport & Leisure,Supplies & Services,Provisions,BIKOLD,08/02/2024,"1,378.99"
"Communities, Customer & Commercial Services",Sport & Leisure,Supplies & Services,Provisions,BIKOLD,08/02/2024,451.13
"Communities, Customer & Commercial Services",Sport & Leisure,Supplies & Services,Provisions,BIKOLD,08/02/2024,155.33
"Communities, Customer & Commercial Services",Sport & Leisure,Supplies & Services,Provisions,BIKOLD,08/02/2024,442.30
"Communities, Customer & Commercial Services",Sport & Leisure,Supplies & Services,Provisions,BIKOLD,08/02/2024,423.46
"Communities, Customer & Commercial Services",Sport & Leisure,Supplies & Services,Provisions,BIKOLD,08/02/2024,519.84
"Communities, Customer & Commercial Services",Sport & Leisure,Supplies & Services,Provisions,THEOS FOOD SERVICE LTD,22/02/2024,858.90
"Communities, Customer & Commercial Services",Sport & Leisure,Supplies & Services,Provisions,THEOS FOOD SERVICE LTD,22/02/2024,244.65
"Communities, Customer & Commercial Services",Sport & Leisure,Supplies & Services,Provisions,THEOS FOOD SERVICE LTD,22/02/2024,988.56
"Communities, Customer & Commercial Services",Sport & Leisure,Supplies & Services,Provisions,THEOS FOOD SERVICE LTD,22/02/2024,342.95
"Communities, Customer & Commercial Services",Sport & Leisure,Supplies & Services,Provisions,THEOS FOOD SERVICE LTD,22/02/2024,"1,211.86"
"Communities, Customer & Commercial Services",Sport & Leisure,Supplies & Services,Provisions,THEOS FOOD SERVICE LTD,22/02/2024,285.06
"Communities, Customer & Commercial Services",Sport & Leisure,Supplies & Services,Provisions,THEOS FOOD SERVICE LTD,22/02/2024,903.00
"Communities, Customer & Commercial Services",Sport & Leisure,Supplies & Services,Provisions,PASTA KING (UK) LIMITED,22/02/2024,600.96
"Communities, Customer & Commercial Services",Sport & Leisure,Supplies & Services,Provisions,John Sheppard Catering Butchers,09/02/2024,130.05
"Communities, Customer & Commercial Services",Sport & Leisure,Supplies & Services,Provisions,John Sheppard Catering Butchers,09/02/2024,-109.35
"Communities, Customer & Commercial Services",Sport & Leisure,Supplies & Services,Provisions,John Sheppard Catering Butchers,09/02/2024,109.35
"Communities, Customer & Commercial Services",Sport & Leisure,Supplies & Services,Provisions,PASTA KING (UK) LIMITED,09/02/2024,354.48
"Communities, Customer & Commercial Services",Sport & Leisure,Supplies & Services,Provisions,Delice de France,09/02/2024,332.00
"Communities, Customer & Commercial Services",Sport & Leisure,Supplies & Services,Provisions,On A Roll,09/02/2024,125.16
"Communities, Customer & Commercial Services",Sport & Leisure,Supplies & Services,Provisions,On A Roll,09/02/2024,229.57
"Communities, Customer & Commercial Services",Sport & Leisure,Supplies & Services,Provisions,John Sheppard Catering Butchers,09/02/2024,109.35
"Communities, Customer & Commercial Services",Sport & Leisure,Supplies & Services,Provisions,John Sheppard Catering Butchers,09/02/2024,130.05
"Communities, Customer & Commercial Services",Sport & Leisure,Supplies & Services,Provisions,John Sheppard Catering Butchers,09/02/2024,-109.35
"Communities, Customer & Commercial Services",Sport & Leisure,Supplies & Services,Provisions,THEOS FOOD SERVICE LTD,14/02/2024,"1,030.56"
"Communities, Customer & Commercial Services",Sport & Leisure,Supplies & Services,Provisions,THEOS FOOD SERVICE LTD,14/02/2024,345.53
"Communities, Customer & Commercial Services",Sport & Leisure,Supplies & Services,Provisions,BIKOLD,15/02/2024,154.26
"Communities, Customer & Commercial Services",Sport & Leisure,Supplies & Services,Provisions,BIKOLD,15/02/2024,183.73
"Communities, Customer & Commercial Services",Sport & Leisure,Supplies & Services,Provisions,On A Roll,16/02/2024,187.33
"Communities, Customer & Commercial Services",Sport & Leisure,Supplies & Services,Provisions,PASTA KING (UK) LIMITED,16/02/2024,174.96
"Communities, Customer & Commercial Services",Sport & Leisure,Supplies & Services,Provisions,PASTA KING (UK) LIMITED,16/02/2024,450.72
"Communities, Customer & Commercial Services",Sport & Leisure,Supplies & Services,Provisions,PASTA KING (UK) LIMITED,16/02/2024,450.72
"Communities, Customer & Commercial Services",Sport & Leisure,Supplies & Services,Provisions,PASTA KING (UK) LIMITED,16/02/2024,161.20
"Communities, Customer & Commercial Services",Sport & Leisure,Supplies & Services,Provisions,On A Roll,20/02/2024,140.29
"Communities, Customer & Commercial Services",Sport & Leisure,Supplies & Services,Provisions,On A Roll,20/02/2024,187.33
"Communities, Customer & Commercial Services",Sport & Leisure,Supplies & Services,Provisions,THEOS FOOD SERVICE LTD,27/02/2024,988.56
"Communities, Customer & Commercial Services",Sport & Leisure,Supplies & Services,Provisions,THEOS FOOD SERVICE LTD,27/02/2024,223.80
"Communities, Customer & Commercial Services",Sport & Leisure,Supplies & Services,Provisions,PASTA KING (UK) LIMITED,23/02/2024,488.28
"Communities, Customer & Commercial Services",Sport & Leisure,Supplies & Services,Provisions,John Sheppard Catering Butchers,23/02/2024,119.25
"Communities, Customer & Commercial Services",Sport & Leisure,Supplies & Services,Provisions,ROWLANDS & COMPANY,23/02/2024,197.15
"Communities, Customer & Commercial Services",Sport & Leisure,Supplies & Services,Provisions,ROWLANDS & COMPANY,23/02/2024,291.71
"Communities, Customer & Commercial Services",Sport & Leisure,Supplies & Services,Provisions,ROWLANDS & COMPANY,23/02/2024,136.61
"Communities, Customer & Commercial Services",Sport & Leisure,Supplies & Services,Provisions,BIKOLD,22/02/2024,194.11
"Communities, Customer & Commercial Services",Sport & Leisure,Supplies & Services,Provisions,BIKOLD,22/02/2024,580.41
"Communities, Customer & Commercial Services",Sport & Leisure,Supplies & Services,Provisions,BIKOLD,22/02/2024,223.93
"Communities, Customer & Commercial Services",Sport & Leisure,Supplies & Services,Provisions,BIKOLD,22/02/2024,337.86
"Communities, Customer & Commercial Services",Sport & Leisure,Supplies & Services,Provisions,BIKOLD,22/02/2024,491.87
"Communities, Customer & Commercial Services",Sport & Leisure,Supplies & Services,Provisions,BIKOLD,22/02/2024,341.67
"Communities, Customer & Commercial Services",Sport & Leisure,Supplies & Services,Provisions,BIKOLD,22/02/2024,146.21
"Communities, Customer & Commercial Services",Sport & Leisure,Supplies & Services,Provisions,BIKOLD,22/02/2024,391.84
"Communities, Customer & Commercial Services",Sport & Leisure,Supplies & Services,Provisions,BIKOLD,22/02/2024,624.65
"Communities, Customer & Commercial Services",Sport & Leisure,Supplies & Services,Provisions,BIKOLD,22/02/2024,786.86
"Communities, Customer & Commercial Services",Sport & Leisure,Supplies & Services,Provisions,BIKOLD,22/02/2024,337.88
"Communities, Customer & Commercial Services",Sport & Leisure,Supplies & Services,Provisions,BIKOLD,22/02/2024,436.72
"Communities, Customer & Commercial Services",Sport & Leisure,Supplies & Services,Provisions,BIKOLD,22/02/2024,375.14
"Communities, Customer & Commercial Services",Sport & Leisure,Supplies & Services,Provisions,BIKOLD,22/02/2024,125.50
"Communities, Customer & Commercial Services",Sport & Leisure,Supplies & Services,Provisions,BIKOLD,22/02/2024,565.42
"Communities, Customer & Commercial Services",Sport & Leisure,Supplies & Services,Provisions,BIKOLD,22/02/2024,"1,945.63"
"Communities, Customer & Commercial Services",Sport & Leisure,Supplies & Services,Provisions,BIKOLD,22/02/2024,913.52
"Communities, Customer & Commercial Services",Sport & Leisure,Supplies & Services,Provisions,BIKOLD,22/02/2024,130.97
"Communities, Customer & Commercial Services",Sport & Leisure,Supplies & Services,Provisions,BIKOLD,22/02/2024,433.35
"Communities, Customer & Commercial Services",Sport & Leisure,Supplies & Services,Provisions,BIKOLD,22/02/2024,113.72
"Communities, Customer & Commercial Services",Sport & Leisure,Supplies & Services,Provisions,BIKOLD,22/02/2024,762.54
"Communities, Customer & Commercial Services",Sport & Leisure,Supplies & Services,Provisions,BIKOLD,22/02/2024,349.03
"Communities, Customer & Commercial Services",Sport & Leisure,Supplies & Services,Provisions,BIKOLD,22/02/2024,942.48
"Communities, Customer & Commercial Services",Sport & Leisure,Supplies & Services,Provisions,BIKOLD,29/02/2024,243.04
"Communities, Customer & Commercial Services",Sport & Leisure,Supplies & Services,Provisions,BIKOLD,29/02/2024,272.78
"Communities, Customer & Commercial Services",Sport & Leisure,Supplies & Services,Provisions,BIKOLD,29/02/2024,433.69
"Communities, Customer & Commercial Services",Sport & Leisure,Supplies & Services,Provisions,BIKOLD,29/02/2024,"1,073.64"
"Communities, Customer & Commercial Services",Sport & Leisure,Supplies & Services,Provisions,BIKOLD,29/02/2024,190.17
"Communities, Customer & Commercial Services",Sport & Leisure,Supplies & Services,Provisions,BIKOLD,29/02/2024,152.48
"Communities, Customer & Commercial Services",Sport & Leisure,Supplies & Services,Provisions,BIKOLD,29/02/2024,910.14
"Communities, Customer & Commercial Services",Sport & Leisure,Supplies & Services,Provisions,BIKOLD,29/02/2024,556.66
"Communities, Customer & Commercial Services",Sport & Leisure,Supplies & Services,Provisions,BIKOLD,29/02/2024,516.30
"Communities, Customer & Commercial Services",Sport & Leisure,Supplies & Services,Provisions,BIKOLD,29/02/2024,527.63
"Communities, Customer & Commercial Services",Sport & Leisure,Supplies & Services,Provisions,BIKOLD,01/02/2024,115.18
"Communities, Customer & Commercial Services",Sport & Leisure,Supplies & Services,Provisions,BIKOLD,15/02/2024,259.87
"Communities, Customer & Commercial Services",Sport & Leisure,Supplies & Services,Provisions,BIKOLD,29/02/2024,121.31
"Communities, Customer & Commercial Services",Sport & Leisure,Supplies & Services,Crockery/Hardware/Light Equip,PLANGLOW LTD,27/02/2024,194.70
"Communities, Customer & Commercial Services",Sport & Leisure,Supplies & Services,Provisions,BIKOLD,08/02/2024,991.78
"Communities, Customer & Commercial Services",Sport & Leisure,Supplies & Services,Provisions,BIKOLD,08/02/2024,486.72
"Communities, Customer & Commercial Services",Sport & Leisure,Supplies & Services,Provisions,BIKOLD,29/02/2024,360.22
"Communities, Customer & Commercial Services",Sport & Leisure,Supplies & Services,Provisions,BIKOLD,29/02/2024,480.61
"Communities, Customer & Commercial Services",Sport & Leisure,Supplies & Services,Provisions,BIKOLD,29/02/2024,424.11
"Communities, Customer & Commercial Services",Sport & Leisure,Supplies & Services,Provisions,BIKOLD,29/02/2024,371.75
"Communities, Customer & Commercial Services",Sport & Leisure,Supplies & Services,Provisions,BIKOLD,01/02/2024,135.61
"Communities, Customer & Commercial Services",Sport & Leisure,Supplies & Services,Provisions,BIKOLD,01/02/2024,137.88
"Communities, Customer & Commercial Services",Sport & Leisure,Supplies & Services,Provisions,BIKOLD,01/02/2024,774.03
"Communities, Customer & Commercial Services",Sport & Leisure,Supplies & Services,Provisions,BIKOLD,01/02/2024,386.88
"Communities, Customer & Commercial Services",Sport & Leisure,Supplies & Services,Provisions,BIKOLD,08/02/2024,106.99
"Communities, Customer & Commercial Services",Sport & Leisure,Supplies & Services,Provisions,BIKOLD,08/02/2024,162.99
"Communities, Customer & Commercial Services",Sport & Leisure,Supplies & Services,Provisions,BIKOLD,08/02/2024,132.22
"Communities, Customer & Commercial Services",Sport & Leisure,Supplies & Services,Provisions,TROPICAL ICE,09/02/2024,566.20
"Communities, Customer & Commercial Services",Sport & Leisure,Supplies & Services,Provisions,TROPICAL ICE,09/02/2024,757.50
"Communities, Customer & Commercial Services",Sport & Leisure,Supplies & Services,Provisions,BIKOLD,15/02/2024,314.19
"Communities, Customer & Commercial Services",Sport & Leisure,Supplies & Services,Provisions,BIKOLD,15/02/2024,521.68
"Communities, Customer & Commercial Services",Sport & Leisure,Supplies & Services,Provisions,BIKOLD,15/02/2024,492.96
"Communities, Customer & Commercial Services",Sport & Leisure,Supplies & Services,Provisions,BIKOLD,15/02/2024,869.36
"Communities, Customer & Commercial Services",Sport & Leisure,Supplies & Services,Computer Hardware (Maint),Paperwrite,27/02/2024,200.00
"Communities, Customer & Commercial Services",Sport & Leisure,Supplies & Services,Provisions,BIKOLD,22/02/2024,709.25
"Communities, Customer & Commercial Services",Sport & Leisure,Supplies & Services,Provisions,BIKOLD,22/02/2024,453.04
"Communities, Customer & Commercial Services",Sport & Leisure,Supplies & Services,Provisions,BIKOLD,22/02/2024,304.26
"Communities, Customer & Commercial Services",Sport & Leisure,Supplies & Services,Provisions,BIKOLD,22/02/2024,201.05
"Communities, Customer & Commercial Services",Sport & Leisure,Supplies & Services,Payment Of Income Collected,Telford Tigers Limited,05/02/2024,"4,748.16"
"Communities, Customer & Commercial Services",Sport & Leisure,Supplies & Services,Payment Of Income Collected,Telford Tigers Limited,13/02/2024,"7,167.84"
"Communities, Customer & Commercial Services",Sport & Leisure,Supplies & Services,Payment Of Income Collected,Telford Tigers Limited,20/02/2024,"5,247.12"
"Communities, Customer & Commercial Services",Sport & Leisure,Supplies & Services,Payment Of Income Collected,Telford Tigers Limited,26/02/2024,"7,313.78"
"Communities, Customer & Commercial Services",Sport & Leisure,Premises-Related Expenditure,R&M -Building Other,GRANVILLE CONSTRUCTION & MAINTENANCE LTD,27/02/2024,979.78
"Communities, Customer & Commercial Services",Sport & Leisure,Supplies & Services,Stationery,CCR,02/02/2024,187.00
"Communities, Customer & Commercial Services",Sport & Leisure,Third Party Payments,Contribution To Other La's,PS PROMOTIONS LTD,19/02/2024,480.00
"Communities, Customer & Commercial Services",Sport & Leisure,Supplies & Services,Stationery,THE TILL ROLL CO LTD,27/02/2024,114.00
"Communities, Customer & Commercial Services",Sport & Leisure,Supplies & Services,Items For Resale,Whittaker Workplace Solutions,12/02/2024,326.50
"Communities, Customer & Commercial Services",Sport & Leisure,Premises-Related Expenditure,Grounds Maint - Sports Pitches,Technical Surfaces Ltd,22/02/2024,513.00
"Communities, Customer & Commercial Services",Sport & Leisure,Premises-Related Expenditure,Grounds Maint - Sports Pitches,Technical Surfaces Ltd,22/02/2024,"3,500.00"
"Communities, Customer & Commercial Services",Sport & Leisure,Supplies & Services,Comp Hardware (Purch / Hire),CCS MEDIA LIMITED,13/02/2024,447.99
"Communities, Customer & Commercial Services",Sport & Leisure,Premises-Related Expenditure,R&M - Mechanical,Culligan (UK) LTD,22/02/2024,117.72
"Communities, Customer & Commercial Services",Sport & Leisure,Premises-Related Expenditure,Swimming Pool Chemicals,BRENNTAG UK LIMITED,19/02/2024,216.00
"Communities, Customer & Commercial Services",Sport & Leisure,Supplies & Services,Chemicals/Cleaning Products,BRENNTAG UK LIMITED,15/02/2024,125.00
"Communities, Customer & Commercial Services",Sport & Leisure,Supplies & Services,Chemicals/Cleaning Products,BRENNTAG UK LIMITED,14/02/2024,"1,336.24"
"Communities, Customer & Commercial Services",Sport & Leisure,Supplies & Services,Equipment - Purchase,Badcock Services,15/02/2024,189.00
"Communities, Customer & Commercial Services",Sport & Leisure,Premises-Related Expenditure,R&M WC Planned,Agrovista UK LTD,02/02/2024,515.35
"Communities, Customer & Commercial Services",Sport & Leisure,Premises-Related Expenditure,R&M WC Planned,Agrovista UK LTD,09/02/2024,"1,150.00"
"Communities, Customer & Commercial Services",Sport & Leisure,Supplies & Services,Equipment - Purchase,Agrovista UK LTD,23/02/2024,208.75
"Communities, Customer & Commercial Services",Sport & Leisure,Transport-Related Expenditure,Servicing & Repairs V&P,Charlies AG & Turf,28/02/2024,172.95
"Communities, Customer & Commercial Services",Sport & Leisure,Supplies & Services,Chemicals/Cleaning Products,Border Janitorial Supplies Limited,16/02/2024,446.03
"Communities, Customer & Commercial Services",Sport & Leisure,Supplies & Services,Chemicals/Cleaning Products,BRENNTAG UK LIMITED,26/02/2024,325.00
"Communities, Customer & Commercial Services",Sport & Leisure,Supplies & Services,Chemicals/Cleaning Products,BRENNTAG UK LIMITED,26/02/2024,129.00
"Communities, Customer & Commercial Services",Sport & Leisure,Supplies & Services,Equipment - Purchase,Jordan Fitness  Ltd,28/02/2024,123.50
"Communities, Customer & Commercial Services",Sport & Leisure,Supplies & Services,Licences,Les Mills Fitness UK Ltd,14/02/2024,"1,097.25"
"Communities, Customer & Commercial Services",Sport & Leisure,Supplies & Services,Items For Resale,SWIM ENGLAND TRADING LIMITED ,16/02/2024,599.10
"Communities, Customer & Commercial Services",Sport & Leisure,Supplies & Services,Chemicals/Cleaning Products,Border Janitorial Supplies Limited,14/02/2024,159.62
"Communities, Customer & Commercial Services",Sport & Leisure,Supplies & Services,Sport Equip - Purchase,PULSE FITNESS LIMITED,05/02/2024,"4,584.98"
"Communities, Customer & Commercial Services",Sport & Leisure,Supplies & Services,Licences,Les Mills Fitness UK Ltd,14/02/2024,682.50
"Communities, Customer & Commercial Services",Sport & Leisure,Supplies & Services,Sport Equip - Purchase,PULSE FITNESS LIMITED,19/02/2024,"8,682.22"
"Communities, Customer & Commercial Services",Sport & Leisure,Supplies & Services,Sport Equip - Purchase,PULSE FITNESS LIMITED,19/02/2024,285.57
"Communities, Customer & Commercial Services",Sport & Leisure,Supplies & Services,Equipment - Purchase,PULSE FITNESS LIMITED,19/02/2024,546.16
"Communities, Customer & Commercial Services",Sport & Leisure,Supplies & Services,Consultancy,Cornwall Street Barristers,01/02/2024,"1,550.00"
"Communities, Customer & Commercial Services",Sport & Leisure,Supplies & Services,Equipment - Purchase,We Do Tennis CIC,16/02/2024,750.00
"Communities, Customer & Commercial Services",Sport & Leisure,Supplies & Services,Equipment - Purchase,NOBRIDGE LTD,01/02/2024,600.00
"Communities, Customer & Commercial Services",Sport & Leisure,Supplies & Services,Fees,APSE (MANCHESTER),07/02/2024,368.00
"Communities, Customer & Commercial Services",Sport & Leisure,Employees,Staff Training,Really Rural LTD,08/02/2024,"1,049.00"
"Communities, Customer & Commercial Services",Sport & Leisure,Premises-Related Expenditure,Electricity,West Mercia Energy (WME),22/02/2024,754.49
"Communities, Customer & Commercial Services",Sport & Leisure,Supplies & Services,Sub Contractors,BUSINESS WATCH GUARDING LIMITED,09/02/2024,574.06
"Communities, Customer & Commercial Services",Sport & Leisure,Supplies & Services,Sub Contractors,GRANVILLE CONSTRUCTION & MAINTENANCE LTD,12/02/2024,154.87
"Communities, Customer & Commercial Services",Sport & Leisure,Supplies & Services,Sub Contractors,Austin Mix Ltd,15/02/2024,225.00
"Communities, Customer & Commercial Services",Sport & Leisure,Supplies & Services,Equipment - Purchase,RLSS UK Enterprises Ltd,12/02/2024,144.00
"Communities, Customer & Commercial Services",Sport & Leisure,Supplies & Services,Equipment - Purchase,RLSS UK Enterprises Ltd,12/02/2024,168.00
"Communities, Customer & Commercial Services",Sport & Leisure,Supplies & Services,Equipment - Purchase,RLSS UK Enterprises Ltd,28/02/2024,120.00
"Communities, Customer & Commercial Services",Sport & Leisure,Supplies & Services,Equipment - Purchase,RLSS UK Enterprises Ltd,28/02/2024,168.00
Corporate Communications,Communications & Marketing,Supplies & Services,Other Expenses,The Curious Agency T/A The Curiuous Way,19/02/2024,325.00
Corporate Items,Corporate Codes,Supplies & Services,Other Services,MITIE FM Ltd,01/02/2024,"22,250.60"
Corporate Items,Corporate Codes,Employees,Agency Supply Costs,Opus People Solutions Limited,07/02/2024,"38,658.07"
Corporate Items,Corporate Codes,Employees,Agency Supply Costs,Opus People Solutions Limited,14/02/2024,"40,721.38"
Corporate Items,Corporate Codes,Employees,Agency Supply Costs,Opus People Solutions Limited,27/02/2024,"38,829.66"
Corporate Items,Corporate Codes,Employees,Agency Supply Costs,Opus People Solutions Limited,22/02/2024,"39,788.04"
Corporate Items,Corporate Codes,Capital Financing Costs,Unitary Charge,PYRAMID SCHOOLS (HADLEY) LTD,13/02/2024,"1,031,046.45"
Corporate Items,Corporate Codes,Capital Financing Costs,Unitary Charge,PYRAMID SCHOOLS (HADLEY) LTD,13/02/2024,"-225,253.55"
Corporate Items,Corporate Codes,Capital Financing Costs,Unitary Charge,PYRAMID SCHOOLS (HADLEY) LTD,29/02/2024,"1,031,046.45"
Corporate Items,Corporate Codes,Capital Financing Costs,Penalty Deductions,PYRAMID SCHOOLS (HADLEY) LTD,29/02/2024,-837.26
Education & Skills,Consultancy & Advisory Services,Supplies & Services,Materials,I Can Charity T/A Speech and Language UK,01/02/2024,"12,500.00"
Education & Skills,Consultancy & Advisory Services,Premises-Related Expenditure,Hire Of Rooms,MEETING POINT TRUST LTD,15/02/2024,112.50
Education & Skills,Consultancy & Advisory Services,Employees,Course Fees,National Children's Bureau,20/02/2024,"11,270.00"
Education & Skills,Consultancy & Advisory Services,Supplies & Services,Other Grants (Expenses),Active Future Franchising Ltd,12/02/2024,"1,228.97"
Education & Skills,Consultancy & Advisory Services,Supplies & Services,Other Grants (Expenses),CEIA,07/02/2024,"1,010.14"
Education & Skills,Consultancy & Advisory Services,Supplies & Services,Other Grants (Expenses),Genius Tuition,07/02/2024,998.40
Education & Skills,Consultancy & Advisory Services,Supplies & Services,Other Grants (Expenses),Genius Tuition,07/02/2024,"1,248.04"
Education & Skills,Consultancy & Advisory Services,Supplies & Services,Other Grants (Expenses),AFC Telford United Foundation CIC,07/02/2024,852.60
Education & Skills,Consultancy & Advisory Services,Supplies & Services,Other Grants (Expenses),4 All Foundation,07/02/2024,595.00
Education & Skills,Consultancy & Advisory Services,Supplies & Services,Other Grants (Expenses),4 All Foundation,07/02/2024,390.00
Education & Skills,Consultancy & Advisory Services,Supplies & Services,Other Grants (Expenses),Cordingley Hall,07/02/2024,"1,600.00"
Education & Skills,Consultancy & Advisory Services,Supplies & Services,Other Grants (Expenses),Great Dawley Town Council,07/02/2024,500.00
Education & Skills,Consultancy & Advisory Services,Supplies & Services,Other Grants (Expenses),HALESFIELD DAY NURSERY CENTRE ,07/02/2024,462.41
Education & Skills,Consultancy & Advisory Services,Supplies & Services,Other Grants (Expenses),OAKENGATES TOWN COUNCIL,07/02/2024,873.78
Education & Skills,Consultancy & Advisory Services,Supplies & Services,Other Grants (Expenses),Old Park Primary ,07/02/2024,460.00
Education & Skills,Consultancy & Advisory Services,Supplies & Services,Other Grants (Expenses),Windmill Primary School Academy,07/02/2024,750.00
Education & Skills,Consultancy & Advisory Services,Supplies & Services,Other Grants (Expenses),Genius Tuition,07/02/2024,998.40
Education & Skills,Consultancy & Advisory Services,Supplies & Services,Other Grants (Expenses),Genius Tuition,07/02/2024,"3,308.75"
Education & Skills,Consultancy & Advisory Services,Supplies & Services,Other Grants (Expenses),Great Dawley Town Council,07/02/2024,441.50
Education & Skills,Consultancy & Advisory Services,Supplies & Services,Other Grants (Expenses),PODS,07/02/2024,"1,006.81"
Education & Skills,Consultancy & Advisory Services,Supplies & Services,Other Grants (Expenses),School of Coding Ltd,07/02/2024,750.00
Education & Skills,Consultancy & Advisory Services,Supplies & Services,Other Grants (Expenses),Moonstruck Astronaut C.I.C,07/02/2024,"2,200.00"
Education & Skills,Consultancy & Advisory Services,Supplies & Services,Other Grants (Expenses),Educating Kids Outdoors Ltd,07/02/2024,250.00
Education & Skills,Consultancy & Advisory Services,Supplies & Services,Other Grants (Expenses),Lantern Academy,07/02/2024,"2,000.00"
Education & Skills,Consultancy & Advisory Services,Supplies & Services,Other Grants (Expenses),Active Future Franchising Ltd,12/02/2024,"1,986.43"
Education & Skills,Consultancy & Advisory Services,Supplies & Services,Other Grants (Expenses),Charlton Academy,12/02/2024,"2,000.00"
Education & Skills,Consultancy & Advisory Services,Supplies & Services,Other Services,CASTLE HOUSE SCHOOL TRUST LTD,15/02/2024,406.71
Education & Skills,Consultancy & Advisory Services,Supplies & Services,Other Services,THE LEARNING TREE PRE-SCHOOL ,15/02/2024,426.71
Education & Skills,Consultancy & Advisory Services,Premises-Related Expenditure,Hire Of Rooms,Mercure Telford Centre Hotel,29/02/2024,476.67
Education & Skills,Consultancy & Advisory Services,Supplies & Services,Training Costs - Participants Recharged,Mercure Telford Centre Hotel,29/02/2024,"2,164.14"
Education & Skills,Consultancy & Advisory Services,Supplies & Services,Training Costs - Participants Recharged,Mercure Telford Centre Hotel,21/02/2024,344.40
Education & Skills,Consultancy & Advisory Services,Supplies & Services,Training Costs - Participants Recharged,Mercure Telford Centre Hotel,21/02/2024,344.40
Education & Skills,Consultancy & Advisory Services,Premises-Related Expenditure,Hire Of Rooms,Mercure Telford Centre Hotel,21/02/2024,124.46
Education & Skills,Consultancy & Advisory Services,Premises-Related Expenditure,Hire Of Rooms,Mercure Telford Centre Hotel,21/02/2024,124.46
Education & Skills,Education & Skills,Capital Expenditure,Payments to Contractor,PAVE AWAYS LTD,15/02/2024,"145,195.24"
Education & Skills,Education & Skills,Capital Expenditure,Payments to Contractor,PAVE AWAYS LTD,15/02/2024,"237,980.24"
Education & Skills,Education & Skills,Capital Expenditure,Legal Fees,WARD HADAWAY SOLICITORS,13/02/2024,"1,941.60"
Education & Skills,Education & Skills,Capital Expenditure,Payments to Contractor,WINDOW & DOOR CONTRACT SERVICES,28/02/2024,"2,389.95"
Education & Skills,Education & Skills,Capital Expenditure,Legal Fees,WARD HADAWAY SOLICITORS,13/02/2024,276.60
Education & Skills,Education & Skills,Capital Expenditure,Legal Fees,WARD HADAWAY SOLICITORS,13/02/2024,"1,357.30"
Education & Skills,Education & Skills,Capital Expenditure,Legal Fees,WARD HADAWAY SOLICITORS,13/02/2024,882.00
Education & Skills,Education & Skills,Capital Expenditure,Legal Fees,WARD HADAWAY SOLICITORS,27/02/2024,380.00
Education & Skills,Education & Skills,Capital Expenditure,Payments to Contractor,Hankinson Whittle Programmed Limited,13/02/2024,"3,320.00"
Education & Skills,Education & Skills,Capital Expenditure,Payments to Contractor,Hankinson Whittle Programmed Limited,13/02/2024,"3,915.00"
Education & Skills,Education & Skills,Capital Expenditure,Payments to Contractor,Hankinson Whittle Programmed Limited,13/02/2024,"2,625.00"
Education & Skills,Education & Skills,Capital Expenditure,Payments to Contractor,Inspectas Compliance Ltd,07/02/2024,360.00
Education & Skills,Education & Skills,Capital Expenditure,Payments to Contractor,Inspectas Compliance Ltd,07/02/2024,960.00
Education & Skills,Education & Skills,Capital Expenditure,Payments to Contractor,Inspectas Compliance Ltd,07/02/2024,960.00
Education & Skills,Education & Skills,Capital Expenditure,Payments to Contractor,Inspectas Compliance Ltd,07/02/2024,420.00
Education & Skills,Education & Skills,Capital Expenditure,Payments to Contractor,WINDOW & DOOR CONTRACT SERVICES,27/02/2024,"4,063.50"
Education & Skills,Education & Skills,Capital Expenditure,Payments to Contractor,TAYLORS MECHANICAL H & P SERVICES LTD,09/02/2024,"1,375.00"
Education & Skills,Education & Skills,Capital Expenditure,Payments to Contractor,TAYLORS MECHANICAL H & P SERVICES LTD,09/02/2024,"2,776.00"
Education & Skills,Education & Skills,Capital Expenditure,Payments to Contractor,Services in Design Ltd,09/02/2024,"4,275.00"
Education & Skills,Education & Skills,Capital Expenditure,Payments to Contractor,KN Services Staffordshire Ltd,22/02/2024,"3,000.00"
Education & Skills,Education & Skills,Capital Expenditure,Payments to Contractor,KN Services Staffordshire Ltd,22/02/2024,"2,270.28"
Education & Skills,Education & Skills,Capital Expenditure,Payments to Contractor,TAYLORS MECHANICAL H & P SERVICES LTD,29/02/2024,"18,268.00"
Education & Skills,Education & Skills,Capital Expenditure,Payments to Contractor,PRYCE (BUILDERS) LTD,07/02/2024,"12,460.00"
Education & Skills,Education & Skills,Capital Expenditure,Payments to Contractor,PAVE AWAYS LTD,12/02/2024,"149,069.04"
Education & Skills,Education & Skills,Capital Expenditure,Payments to Contractor,GRANVILLE CONSTRUCTION & MAINTENANCE LTD,22/02/2024,"4,155.00"
Education & Skills,Education & Skills,Capital Expenditure,Payments to Contractor,GRANVILLE CONSTRUCTION & MAINTENANCE LTD,22/02/2024,263.92
Education & Skills,Education & Skills,Capital Expenditure,Payments to Contractor,TAYLORS MECHANICAL H & P SERVICES LTD,09/02/2024,"5,700.00"
Education & Skills,Education & Skills,Capital Expenditure,Payments to Contractor,TDR Heating & Ventilation Engineers,07/02/2024,"20,131.38"
Education & Skills,Education & Skills,Capital Expenditure,Payments to Contractor,ASLES (TOOL HIRE & SALES) LTD,07/02/2024,"1,870.00"
Education & Skills,Education & Skills,Capital Expenditure,Payments to Contractor,PRYCE (BUILDERS) LTD,05/02/2024,"1,882.68"
Education & Skills,Education & Skills,Capital Expenditure,Payments to Contractor,Services in Design Ltd,05/02/2024,751.25
Education & Skills,Education & Skills,Capital Expenditure,Payments to Contractor,Inspectas Compliance Ltd,20/02/2024,480.00
Education & Skills,Education & Skills,Capital Expenditure,Legal Fees,FREETHS LLP,23/02/2024,"1,330.58"
Education & Skills,Education & Skills,Capital Expenditure,Payments to Contractor,COOPER & WILLIAMS LTD,22/02/2024,"5,650.65"
Education & Skills,Education & Skills,Capital Expenditure,Legal Fees,Shakespeare Martineau LLP,22/02/2024,750.00
Education & Skills,Education & Skills,Capital Expenditure,Payments to Contractor,WINDOW & DOOR CONTRACT SERVICES,28/02/2024,"86,395.19"
Education & Skills,Pupil Support Services,Third Party Payments,Misc. Education Payments to Other LEA Schools,Christ the King Catholic Voluntary Academy,09/02/2024,"18,050.00"
Education & Skills,Pupil Support Services,Third Party Payments,DSG - High Needs Block,The Telford Langley School ,20/02/2024,"31,609.00"
Education & Skills,Pupil Support Services,Supplies & Services,Equipment - Purchase,CHAMBERLAIN MUSIC,06/02/2024,138.51
Education & Skills,Pupil Support Services,Supplies & Services,Instructors Fees,Entrust Support Services Ltd,02/02/2024,"6,720.00"
Education & Skills,Pupil Support Services,Supplies & Services,Instructors Fees,Entrust Support Services Ltd,02/02/2024,"1,152.00"
Education & Skills,Pupil Support Services,Supplies & Services,Instructors Fees,Entrust Support Services Ltd,02/02/2024,"3,120.00"
Education & Skills,Pupil Support Services,Supplies & Services,Instructors Fees,Entrust Support Services Ltd,02/02/2024,"3,360.00"
Education & Skills,Pupil Support Services,Supplies & Services,Other Expenses,Music Education Solutions Ltd,12/02/2024,"1,600.00"
Education & Skills,Pupil Support Services,Supplies & Services,Other Expenses,Music Education Solutions Ltd,12/02/2024,975.00
Education & Skills,Pupil Support Services,Supplies & Services,Artistes Fees,Redacted Personal Information,19/02/2024,"2,500.00"
Education & Skills,SEND (0-25),Transport-Related Expenditure,Taxi Costs,More Than Care Telford,01/02/2024,600.00
Education & Skills,SEND (0-25),Transport-Related Expenditure,Taxi Costs,More Than Care Telford,01/02/2024,600.00
Education & Skills,SEND (0-25),Third Party Payments,DSG - High Needs Block,Lawley Village Academy,21/02/2024,610.69
Education & Skills,SEND (0-25),Third Party Payments,DSG - High Needs Block,Dawley C of E Primary Academy,21/02/2024,610.69
Education & Skills,SEND (0-25),Third Party Payments,DSG - High Needs Block,Windmill Primary School Academy,21/02/2024,"2,966.18"
Education & Skills,SEND (0-25),Third Party Payments,DSG - High Needs Block,Crudgington Primary School,21/02/2024,610.69
Education & Skills,SEND (0-25),Third Party Payments,DSG - High Needs Block,PRIORSLEE ACADEMY,21/02/2024,"2,617.22"
Education & Skills,SEND (0-25),Third Party Payments,DSG - High Needs Block,Hadley Learning Community Academy,21/02/2024,"1,483.09"
Education & Skills,SEND (0-25),Third Party Payments,DSG - High Needs Block,St Patricks Catholic Primary Part of OLHOC,16/02/2024,"2,442.74"
Education & Skills,SEND (0-25),Third Party Payments,DSG - High Needs Block,Hadley Learning Community Academy,16/02/2024,"1,483.09"
Education & Skills,SEND (0-25),Third Party Payments,DSG - High Needs Block,Lawley Village Academy,16/02/2024,610.69
Education & Skills,SEND (0-25),Third Party Payments,DSG - High Needs Block,Dawley C of E Primary Academy,16/02/2024,610.69
Education & Skills,SEND (0-25),Third Party Payments,DSG - High Needs Block,Windmill Primary School Academy,16/02/2024,"2,966.18"
Education & Skills,SEND (0-25),Third Party Payments,DSG - High Needs Block,Crudgington Primary School,16/02/2024,610.69
Education & Skills,SEND (0-25),Third Party Payments,DSG - High Needs Block,PRIORSLEE ACADEMY,16/02/2024,"2,617.22"
Education & Skills,SEND (0-25),Third Party Payments,DSG - High Needs Block,Redhill Primary Academy,16/02/2024,"3,140.67"
Education & Skills,SEND (0-25),Third Party Payments,DSG - High Needs Block,Wrekin View Primary School,16/02/2024,"3,925.83"
Education & Skills,SEND (0-25),Third Party Payments,DSG - High Needs Block,St Peter's Bratton C of E Academy,16/02/2024,"1,832.06"
Education & Skills,SEND (0-25),Third Party Payments,DSG - High Needs Block,Grange Park Primary School - Community Academies Trust,16/02/2024,"4,013.07"
Education & Skills,SEND (0-25),Third Party Payments,DSG - High Needs Block,CAT - Telford Priory School,16/02/2024,"6,892.02"
Education & Skills,SEND (0-25),Third Party Payments,DSG - High Needs Block,Charlton Academy,16/02/2024,"4,623.76"
Education & Skills,SEND (0-25),Third Party Payments,DSG - High Needs Block,NEWPORT GIRLS HIGH SCHOOL ACADEMY TRUST,16/02/2024,610.69
Education & Skills,SEND (0-25),Third Party Payments,DSG - High Needs Block,The Telford Langley School ,16/02/2024,"6,892.02"
Education & Skills,SEND (0-25),Third Party Payments,DSG - High Needs Block,Telford Park School,16/02/2024,"9,596.49"
Education & Skills,SEND (0-25),Third Party Payments,DSG - High Needs Block,Hadley Learning Community Academy,16/02/2024,"18,931.24"
Education & Skills,SEND (0-25),Third Party Payments,DSG - High Needs Block,Ercall Wood Academy,16/02/2024,"9,160.28"
Education & Skills,SEND (0-25),Third Party Payments,DSG - High Needs Block,MADELEY ACADEMY TRUST LTD,16/02/2024,"4,711.00"
Education & Skills,SEND (0-25),Third Party Payments,DSG - High Needs Block,ABRAHAM DARBY ACADEMY ,16/02/2024,"6,455.82"
Education & Skills,SEND (0-25),Transport-Related Expenditure,Taxi Costs,More Than Care Telford,14/02/2024,600.00
Education & Skills,SEND (0-25),Transport-Related Expenditure,Taxi Costs,24X7 Ltd,14/02/2024,"2,278.68"
Education & Skills,SEND (0-25),Transport-Related Expenditure,Taxi Costs,Telford Taxi Hire Limited,14/02/2024,"1,100.00"
Education & Skills,SEND (0-25),Third Party Payments,DSG - High Needs Block,CAT - Telford Priory School,21/02/2024,"6,892.02"
Education & Skills,SEND (0-25),Third Party Payments,DSG - High Needs Block,Redhill Primary Academy,21/02/2024,"3,140.67"
Education & Skills,SEND (0-25),Third Party Payments,DSG - High Needs Block,Wrekin View Primary School,21/02/2024,"3,925.83"
Education & Skills,SEND (0-25),Third Party Payments,DSG - High Needs Block,St Peter's Bratton C of E Academy,21/02/2024,"1,832.06"
Education & Skills,SEND (0-25),Third Party Payments,DSG - High Needs Block,Grange Park Primary School - Community Academies Trust,21/02/2024,"4,013.07"
Education & Skills,SEND (0-25),Third Party Payments,DSG - High Needs Block,St Patricks Catholic Primary Part of OLHOC,21/02/2024,"2,442.74"
Education & Skills,SEND (0-25),Third Party Payments,DSG - High Needs Block,Charlton Academy,21/02/2024,"4,623.76"
Education & Skills,SEND (0-25),Third Party Payments,DSG - High Needs Block,NEWPORT GIRLS HIGH SCHOOL ACADEMY TRUST,21/02/2024,610.69
Education & Skills,SEND (0-25),Third Party Payments,DSG - High Needs Block,The Telford Langley School ,21/02/2024,"6,892.02"
Education & Skills,SEND (0-25),Third Party Payments,DSG - High Needs Block,Telford Park School,21/02/2024,"9,596.49"
Education & Skills,SEND (0-25),Third Party Payments,DSG - High Needs Block,Hadley Learning Community Academy,21/02/2024,"18,931.24"
Education & Skills,SEND (0-25),Third Party Payments,DSG - High Needs Block,Ercall Wood Academy,21/02/2024,"9,160.28"
Education & Skills,SEND (0-25),Third Party Payments,DSG - High Needs Block,MADELEY ACADEMY TRUST LTD,21/02/2024,"4,711.00"
Education & Skills,SEND (0-25),Third Party Payments,DSG - High Needs Block,ABRAHAM DARBY ACADEMY ,21/02/2024,"6,455.82"
Education & Skills,SEND (0-25),Transport-Related Expenditure,Taxi Costs,More Than Care Telford,23/02/2024,600.00
Education & Skills,SEND (0-25),Third Party Payments,DSG - High Needs Block,Bridge Therapy,26/02/2024,"1,038.00"
Education & Skills,SEND (0-25),Third Party Payments,DSG - High Needs Block,Coppice Academy,13/02/2024,"3,681.00"
Education & Skills,SEND (0-25),Third Party Payments,DSG - High Needs Block,Coppice Academy,13/02/2024,"10,951.41"
Education & Skills,SEND (0-25),Third Party Payments,DSG - High Needs Block,Pine Green Academy,13/02/2024,"5,701.00"
Education & Skills,SEND (0-25),Third Party Payments,DSG - High Needs Block,HADLEY UNDER 5'S ,13/02/2024,"2,016.90"
Education & Skills,SEND (0-25),Third Party Payments,DSG - High Needs Block,Hazels Childcare Ltd,13/02/2024,"1,027.72"
Education & Skills,SEND (0-25),Third Party Payments,DSG - High Needs Block,CLUB 0-5 LTD,13/02/2024,847.87
Education & Skills,SEND (0-25),Third Party Payments,DSG - High Needs Block,EARLYWORLD LIMITED,13/02/2024,"1,318.91"
Education & Skills,SEND (0-25),Third Party Payments,DSG - High Needs Block,PRIORSLEE ACADEMY,13/02/2024,"1,477.35"
Education & Skills,SEND (0-25),Third Party Payments,DSG - High Needs Block,THE EDUCATION DEVELOPMENT SERVICE LTD,01/02/2024,"28,500.00"
Education & Skills,SEND (0-25),Third Party Payments,DSG - High Needs Block,HORIZON CARE & EDUCATION GROUP LTD,01/02/2024,"33,333.30"
Education & Skills,SEND (0-25),Third Party Payments,DSG - High Needs Block,HORIZON CARE & EDUCATION GROUP LTD,01/02/2024,"-30,769.20"
Education & Skills,SEND (0-25),Third Party Payments,DSG - High Needs Block,Young Foundations Ltd,26/02/2024,"5,054.02"
Education & Skills,SEND (0-25),Third Party Payments,DSG - High Needs Block,Monarch Education,26/02/2024,420.00
Education & Skills,SEND (0-25),Third Party Payments,DSG - High Needs Block,Young Foundations Ltd,29/02/2024,"6,001.65"
